Workbook

Sheet Esquema
B2: Antecedentes (Ley Orgánica de las Alcaldías)
B4: Artículo 125. Sujeto a las previsiones de ingresos de la hacienda pública de la Ciudad, las Alcaldías contarán con los recursos públicos siguientes:
C6: I. Las participaciones, aportaciones y demás ingresos de procedencia federal, de conformidad con las leyes de la materia;
C7: II. Los recursos de aplicación automática que generen;
C8: III. Las asignaciones determinadas para sus presupuestos, contempladas en el Presupuesto de Egresos de la Ciudad de México; y
C9: IV. Los ingresos provenientes del Fondo Adicional de Financiamiento de las Alcaldías previsto en el artículo 55 de la Constitución Local.
B11: Artículo 127. Los presupuestos de las Alcaldías estarán conformados por:
C13: I. Las participaciones, fondos federales y demás ingresos provenientes de la federación a que se tengan derecho, mismos que serán transferidos conforme a las leyes en la materia;
C14: II. Las asignaciones determinadas a partir de los procedimientos y mecanismos de coordinación fiscal.
C15: III. Los recursos aprobados por el Congreso de la Ciudad;
C16: IV. Los recursos que deriven de actos y convenios que suscriba la alcaldía con opinión de su concejo;
C17: V. Los recursos por concepto de ingresos de aplicación automática, generadas por las mismas, por el uso de bienes del dominio público que le estén asignados, o por servicios prestados en el ejercicio de sus funciones de derecho público, u otros;
C18: VI. Los recursos del Fondo Adicional de Financiamiento de las Alcaldías que le serán asignados en cada ejercicio fiscal, considerando para su distribución los criterios de población, marginación, infraestructura y equipamiento urbano.
C19: VII. Los recursos del Fondo Adicional de Financiamiento de las Alcaldías serán aplicados al gasto bajo los principios de solidaridad, subsidiariedad y cooperación, el cual tendrá como objetivo el desarrollo integral y equilibrado de las demarcaciones territoriales a fin de erradicar la desigualdad económica y social.
C20: Dichos recursos deberán destinarse en su totalidad a la inversión en materia de infraestructura dentro de la demarcación territorial. La transferencia directa de los recursos correspondientes al Fondo Adicional de Financiamiento de las Alcaldías, no podrá ser condicionada; y
C21: VIII. El fondo de cuidado al patrimonio, establecido en la Constitución Local, según su artículo 18, apartado A, numeral 3, segundo párrafo. Este fondo otorgará recursos a todas las Alcaldías, destinado únicamente a la creación de infraestructura y obra pública, y al cuidado y rescate del patrimonio de la demarcación territorial. su distribución será sujeta a los criterios considerados en la ley de coordinación fiscal de la Ciudad.
B23: Objetivos
B25: Objetivo general:
B27: Diseñar un esquema de asignación de recursos que sirva como instrumento de política pública y de rendición de cuentas, alineado con la Ley Orgánica de las Alcaldías y la Consititución de la CDMX
B29: Objetivos particulares:
B31: 1) Desarrollar una formula de repartición de (III) que sea proporcional a las facultades y responsabilidades de las alcaldías
B32: Ajustado por:
C33: Costo de operación de las facultades y responsabilidades, tomando en cuenta el inventario y cartectristicas de los activos de las alcaldías
C34: Objetivos del plan y programa de gobierno
B36: 2) Diseñar un mecanismo para asignar los ingresos provenientes del Fondo Adicional de Financiamiento de las Alcaldías a proyectos especiales de infraestructura
B37: El mecanismo priorizará los proyectos con base en criterios de población, marginación, infraestructura y equipamiento urbano:
C38: Priorizar le ejecución de proyectos de acuerdo con una métrica que cuantifique el impacto social generado por cada peso invertido. (algo parecido a un valor presente neto del impacto social)
B40: 3) Diseñar un mecanismo de incentivos que promueva la rendición de cuentas y el gasto eficiente y eficaz de las alcaldías
B42: Metodologías para definir la fórmula para reparticion de recursos (objetivo particular 1)
B44: 1) Agrupación de las facultades de las alcaldías según el driver principal del gasto y el programa de gobierno | F44: Resumen en número de facultades
B46: Codigo | C46: Rubro (de acuerdo a objetivos del programa de gobierno) | D46: Driver principal del gasto | F46: Número | G46: %
B47: 1 | C47: Administración y gobierno | D47: Población atendida | F47: =COUNTIF('Modelo (Ideal)'!$L$35:$L$132,Esquema!C47) -> 75 | G47: =F47/SUM($F$47:$F$50) -> 0.78125
B48: 2 | C48: Servicios públicos e infraestructura urbana | D48: Activos e infraestructura urbana administrada (tomando en cuenta la cantidad y sus carácterísticas) | F48: =COUNTIF('Modelo (Ideal)'!$L$35:$L$132,Esquema!C48) -> 13 | G48: =F48/SUM($F$47:$F$50) -> 0.1354166667
B49: 3 | C49: Protección al medio ambiente | D49: Activos ambientales administrados (tomando en cuenta la cantidad y sus carácterísticas) | F49: =COUNTIF('Modelo (Ideal)'!$L$35:$L$132,Esquema!C49) -> 3 | G49: 0.03125
B50: 4 | C50: Programas sociales | D50: Población en pobreza y/o rezago | F50: =COUNTIF('Modelo (Ideal)'!$L$35:$L$132,Esquema!C50) -> 5 | G50: 0.05208333333
B52: 2) Clasificación de las facultades de la alcaldía según el rubro
B54: A) Match de las categorias de las facultades de la Ley Orgánica con los rubros propuestos
B56: Codigo | C56: Facultades en materia de (según Ley Orgánica de la CDMX) | D56: Rubro (de acuerdo a objetivos del programa de gobierno) | E56: Nota: hay interesecciones aunque muy pocas
B57: 01 | C57: Gobierno y régimen interior | D57: Administración y gobierno
B58: 02 | C58: Obra pública, desarrollo urbano y servicios públicos | D58: Servicios públicos e infraestructura urbana
B59: 03 | C59: Movilidad, vía pública y espacios públicos | D59: Servicios públicos e infraestructura urbana
B60: 04 | C60: Desarrollo económico y social | D60: Programas sociales
B61: 05 | C61: Educación y cultura | D61: Programas sociales
B62: 06 | C62: Asuntos jurídicos | D62: Administración y gobierno
B63: 07 | C63: Rendición de cuentas | D63: Administración y gobierno
B64: 08 | C64: Seguridad ciudadana y protección civil | D64: Administración y gobierno
B65: 09 | C65: Protección al medio ambiente | D65: Protección al medio ambiente
B66: 10 | C66: Alcaldía digital | D66: Administración y gobierno
B68: B) Lista completa del match de las facultades de la Ley Orgánica con los rubros propuestos (Ver PESTAÑA Modelo)
B70: 3) Resumen de las principales variables y su relación con las facultades de la delegación
B72: Actuación | C72: Materia | D72: Facultades | E72: Rubro | F72: Resumen descripción facultad | G72: Variable driver del costo (dimensional, es decir cuánto hay) | H72: Variable simplificada (variable representativa) | I72: Afectado por población flotante
B73: De manera exclusiva | C73: Gobierno y régimen interior | D73: Establecer la Unidad de Género como parte de la estructura de la alcaldía; | E73: Servicios públicos e infraestructura urbana | F73: Unidad de Género | G73: Población de mujeres ocupadas | H73: Población | I73: TRUE
B74: De manera exclusiva | C74: Obra pública, desarrollo urbano y servicios públicos | D74: Prestar los siguientes servicios públicos: alumbrado público en las vialidades; limpia y recolección de basura; poda de árboles; regulación de mercados; y pavimentación, de conformidad con la normatividad aplicable; | E74: Servicios públicos e infraestructura urbana | F74: Alumbrado público | G74: Metros lineales de banqueta | H74: Superficie urbana | I74: TRUE
B75: De manera exclusiva | C75: Obra pública, desarrollo urbano y servicios públicos | D75: Prestar los siguientes servicios públicos: alumbrado público en las vialidades; limpia y recolección de basura; poda de árboles; regulación de mercados; y pavimentación, de conformidad con la normatividad aplicable; | E75: Servicios públicos e infraestructura urbana | F75: Limpia | G75: Superficie de banqueta y vialidades secundarias y locales | H75: Superficie urbana | I75: TRUE
B76: De manera exclusiva | C76: Obra pública, desarrollo urbano y servicios públicos | D76: Prestar los siguientes servicios públicos: alumbrado público en las vialidades; limpia y recolección de basura; poda de árboles; regulación de mercados; y pavimentación, de conformidad con la normatividad aplicable; | E76: Servicios públicos e infraestructura urbana | F76: Recolección de basura | G76: Población | H76: Población | I76: TRUE
B77: De manera exclusiva | C77: Obra pública, desarrollo urbano y servicios públicos | D77: Prestar los siguientes servicios públicos: alumbrado público en las vialidades; limpia y recolección de basura; poda de árboles; regulación de mercados; y pavimentación, de conformidad con la normatividad aplicable; | E77: Servicios públicos e infraestructura urbana | F77: Jardinería, poda de árboles | G77: Superficie de parques | H77: Superficie urbana | I77: TRUE
B78: De manera exclusiva | C78: Obra pública, desarrollo urbano y servicios públicos | D78: Prestar los siguientes servicios públicos: alumbrado público en las vialidades; limpia y recolección de basura; poda de árboles; regulación de mercados; y pavimentación, de conformidad con la normatividad aplicable; | E78: Servicios públicos e infraestructura urbana | F78: Pavimentación | G78: Superficie de vialidades secundarias y locales | H78: Superficie urbana | I78: TRUE
B79: De manera exclusiva | C79: Obra pública, desarrollo urbano y servicios públicos | D79: Prestar los siguientes servicios públicos: alumbrado público en las vialidades; limpia y recolección de basura; poda de árboles; regulación de mercados; y pavimentación, de conformidad con la normatividad aplicable; | E79: Servicios públicos e infraestructura urbana | F79: Administración de mercados públicos | G79: Número de locales | H79: Población | I79: TRUE
B80: De manera exclusiva | C80: Movilidad, vía pública y espacios públicos | D80: Diseñar e instrumentar acciones, programas y obras que garanticen la accesibilidad y el diseño universal; | E80: Servicios públicos e infraestructura urbana | F80: Accesibilidad y diseño universal | G80: Rampas | H80: Superficie urbana | I80: TRUE
B81: De manera exclusiva | C81: Movilidad, vía pública y espacios públicos | D81: Diseñar e instrumentar medidas que contribuyan a la movilidad peatonal sin riesgo, así como al fomento y protección del transporte no motorizado; | E81: Servicios públicos e infraestructura urbana | F81: Cruces seguros (cruces de riesgo) | G81: Cruces de riesgo | H81: Superficie urbana | I81: TRUE
B82: De manera exclusiva | C82: Movilidad, vía pública y espacios públicos | D82: Construir, rehabilitar y mantener los espacios públicos que se encuentren a su cargo, de conformidad con la normatividad aplicable; | E82: Servicios públicos e infraestructura urbana | F82: Espacio público (parques y plazas) | G82: Superficie de parques | H82: Superficie urbana | I82: TRUE
B83: De manera exclusiva | C83: Movilidad, vía pública y espacios públicos | D83: Construir, rehabilitar y mantener las vialidades, así como las guarniciones y banquetas requeridas en su demarcación, con base en los principios de diseño universal y accesibilidad; | E83: Servicios públicos e infraestructura urbana | F83: Accesibilidad y diseño universal | G83: Rampas | H83: Superficie urbana | I83: TRUE
B84: De manera exclusiva | C84: Desarrollo económico y social | D84: Ejecutar en su demarcación territorial programas de desarrollo social, tomando en consideración la participación ciudadana, así como políticas y lineamientos que emita el Gobierno de la Ciudad de México; | E84: Programas sociales | F84: Programas sociales | G84: Población pobreza | H84: Población pobreza (coneval) | I84: FALSE
B85: De manera exclusiva | C85: Desarrollo económico y social | D85: Diseñar e instrumentar políticas públicas y proyectos comunitarios encaminados a promover el progreso económico, el desarrollo de las personas, la generación de empleo y el desarrollo turístico sustentable y accesible dentro de la demarcación territorial; | E85: Programas sociales | F85: Programas sociales (desarrollo económico) | G85: Desempleo | H85: Población | I85: FALSE
B86: De manera exclusiva | C86: Desarrollo económico y social | D86: Instrumentar políticas y programas de manera permanente dirigidas a la promoción y fortalecimiento del deporte; | E86: Programas sociales | F86: Programas sociales | G86: Población pobreza | H86: Población pobreza (coneval) | I86: FALSE
B87: De manera exclusiva | C87: Desarrollo económico y social | D87: Diseñar e instrumentar políticas y acciones sociales, encaminadas a la promoción de la cultura, la inclusión, la convivencia social y la igualdad sustantiva; así como desarrollar estrategias de mejoramiento urbano y territorial, dirigidas a la juventud y los diversos sectores sociales, con el propósito de avanzar en la reconstrucción del tejido social, el bienestar y el ejercicio pleno de los derechos sociales. Lo anterior se regirá bajo los principios de transparencia, objetividad, universalidad, integralidad, igualdad, territorialidad, efectividad, participación y no discriminación. Por ningún motivo serán utilizadas para fines de promoción personal o política de las personas servidoras públicas, ni para influir de manera indebida en los procesos electorales o mecanismos de participación ciudadana. La ley de la materia establecerá la prohibición de crear nuevos programas sociales en año electoral; | E87: Programas sociales | F87: Programas sociales | G87: Población pobreza | H87: Población pobreza (coneval) | I87: FALSE
B88: De manera exclusiva | C88: Desarrollo económico y social | D88: Prestar en forma gratuita, servicios funerarios cuando se trate de personas en situación de calle, y no hubiera quien reclame el cadáver, o sus deudos carezcan de recursos económicos; | E88: Programas sociales | F88: Programas sociales | G88: Población pobreza | H88: Población pobreza (coneval) | I88: FALSE
B89: En forma coordinada con el Gobierno de la Ciudad de México u otras autoridades: | C89: Obra pública, desarrollo urbano y servicios públicos | D89: Construir, rehabilitar y mantener puentes, pasos peatonales y reductores de velocidad en las vialidades primarias y secundarias de su demarcación, con base en los lineamientos que determinen las dependencias centrales; | E89: Servicios públicos e infraestructura urbana | F89: Pasos peatonales | G89: Pasos peatonales | H89: Superficie urbana | I89: TRUE
B90: En forma coordinada con el Gobierno de la Ciudad de México u otras autoridades: | C90: Obra pública, desarrollo urbano y servicios públicos | D90: Dar mantenimiento a los monumentos, plazas públicas y obras de ornato, propiedad de la Ciudad de México, así como participar en el mantenimiento de aquéllos de propiedad federal que se encuentren dentro de su demarcación territorial, sujeto a la autorización de las autoridades competentes, y respetando las leyes, los acuerdos y convenios que les competan; | E90: Servicios públicos e infraestructura urbana | F90: Espacio público (parques y plazas) | G90: Superficie de parques | H90: Superficie urbana | I90: TRUE
B91: En forma coordinada con el Gobierno de la Ciudad de México u otras autoridades: | C91: Obra pública, desarrollo urbano y servicios públicos | D91: Rehabilitar y mantener escuelas, así como construir, rehabilitar y mantener bibliotecas, museos y demás centros de servicio social, cultural y deportivo a su cargo, de conformidad con la normatividad correspondiente; | E91: Servicios públicos e infraestructura urbana | F91: Rehabilitar y mantener escuelas, así como construir, bibliotecas, museos y demás centros de servicio social, cultural y deportivo a su cargo | G91: Número de escuelas, bibliotecas, museos y demás centros | H91: Población | I91: FALSE
B92: En forma coordinada con el Gobierno de la Ciudad de México u otras autoridades: | C92: Obra pública, desarrollo urbano y servicios públicos | D92: Construir, rehabilitar, mantener y, en su caso, administrar y mantener en buen estado los mercados públicos, de conformidad con la normatividad que al efecto expida el Congreso de la Ciudad de México; | E92: Servicios públicos e infraestructura urbana | F92: Administrar los centros sociales, instalaciones recreativas, de capacitación para el trabajo y centros deportivos, cuya administración no corresponda a otro orden de gobierno; | G92: Número de centros sociales, instalaciones recreativas, de capacitación para el trabajo y centros deportivos | H92: Población | I92: FALSE
B93: En forma coordinada con el Gobierno de la Ciudad de México u otras autoridades: | C93: Obra pública, desarrollo urbano y servicios públicos | D93: Proponer y ejecutar las obras tendientes a la regeneración de barrios y, en su caso, promover su incorporación al patrimonio cultural, en coordinación con las autoridades competentes; | E93: Servicios públicos e infraestructura urbana | F93: Obras de regeneración de barrios | G93: Número de barrios | H93: Superficie urbana | I93: FALSE
B94: En forma coordinada con el Gobierno de la Ciudad de México u otras autoridades: | C94: Protección al medio ambiente | D94: Participar en la creación y administración de sus reservas territoriales; | E94: Protección al medio ambiente | F94: Áreas verdes | G94: Superficie de áreas verdes | H94: Superficie de áreas verdes | I94: FALSE
B95: En forma coordinada con el Gobierno de la Ciudad de México u otras autoridades: | C95: Protección al medio ambiente | D95: Implementar acciones de protección, preservación y restauración del equilibrio ecológico que garanticen la conservación, integridad y mejora de los recursos naturales, suelo de conservación, áreas naturales protegidas, parques urbanos y áreas verdes de la demarcación territorial; | E95: Protección al medio ambiente | F95: Áreas verdes | G95: Superficie de áreas verdes | H95: Superficie de áreas verdes | I95: FALSE
B96: En forma coordinada con el Gobierno de la Ciudad de México u otras autoridades: | C96: Protección al medio ambiente | D96: Vigilar, en coordinación con el Gobierno de la Ciudad de México, que no sean ocupadas de manera ilegal las áreas naturales protegidas y el suelo de conservación; | E96: Protección al medio ambiente | F96: Suelo de conservación | G96: Superficie de suelo de conservación | H96: Superficie de suelo de conservación | I96: FALSE
B98: Modelo (no incluye el esquema de incentivos)
B100: 4) Construcción de un modelo lineal que relacione las variables representativas (simplificadas) con los objetivos de distribución de recursos (es decir, proporcional a las facultades y responsabilidades de las alcaldías en gasto de operación)
B148: 5) Calibrar los coefcientes del modelo empleando un proceso de costeo (árboles de costos), ya sea incercial a lo que históricamente se ha gastaado; o utilizando benchmarks de las mejores prácticas en ciudades comparables

Sheet Presupuesto
B2: Inputs del modelo
B4: Variables representativas para fórmula
B6: Clave | C6: Nombre | D6: Poblacion total (hab.) | E6: Población en pobreza (hab.) | F6: Población flotante (hab.) | G6: Superficie urbana (m2) | H6: Area verde (m2) | I6: Suelo de conservación (m2) | J6: Poblacion total (%) | K6: Población en pobreza (%) | L6: Población flotante (%) | M6: Superficie urbana (%) | N6: Area verde (%) | O6: Suelo de conservación (%)
B7: 02CD01 | C7: Álvaro Obregón | D7: 749982 | E7: 216712 | F7: 143835 | G7: 69720073.3 | H7: 3089843.014 | I7: 19809700 | J7: =D7/D$23 -> 0.08409139811 | K7: =E7/E$23 -> 0.0845600099 | L7: =F7/F$23 -> 0.06102263991 | M7: =G7/G$23 -> 0.08791259594 | N7: =H7/H$23 -> 0.1310379344 | O7: =I7/I$23 -> 0.02277514191
B8: 02CD02 | C8: Azcapotzalco | D8: 400161 | E8: 79991 | F8: 113653 | G8: 33496384.9 | H8: 809861.1765 | I8: 0 | J8: 0.04486787411 | K8: 0.03121211447 | L8: 0.04821779187 | M8: 0.0422368195 | N8: 0.0343456076 | O8: 0
B9: 02CD03 | C9: Benito Juárez | D9: 417416 | E9: 16899 | F9: 231828 | G9: 26680070.5 | H9: 673696.5961 | I9: 0 | J9: 0.0468025833 | K9: 0.006593910846 | L9: 0.09835406241 | M9: 0.03364187882 | N9: 0.02857096945 | O9: 0
B10: 02CD04 | C10: Coyoacán | D10: 608479 | E10: 116682 | F10: 196622 | G10: 53879871.1 | H10: 2036418.869 | I10: 0 | J10: 0.06822543718 | K10: 0.04552877125 | L10: 0.08341775997 | M10: 0.06793910438 | N10: 0.08636300323 | O10: 0
B11: 02CD05 | C11: Cuajimalpa de Morelos | D11: 199224 | E11: 58189 | F11: 85601 | G11: 32481911.8 | H11: 1445911.399 | I11: 64730000 | J11: 0.02233790237 | K11: 0.02270507593 | L11: 0.03631660583 | M11: 0.04095763318 | N11: 0.06132002244 | O11: 0.07441985167
B12: 02CD06 | C12: Cuauhtémoc | D12: 532553 | E12: 77840 | F12: 502884 | G12: 32499018.3 | H12: 1133795.243 | I12: 0 | J12: 0.05971226821 | K12: 0.03037280432 | L12: 0.2133507787 | M12: 0.04097920339 | N12: 0.04808340941 | O12: 0
B13: 02CD07 | C13: Gustavo A. Madero | D13: 1164477 | E13: 358916 | F13: 158878 | G13: 87836199.1 | H13: 4471860.638 | I13: 12380000 | J13: 0.1305664656 | K13: 0.1400473463 | L13: 0.06740469972 | M13: 0.110755883 | N13: 0.1896482696 | O13: 0.01423324214
B14: 02CD08 | C14: Iztacalco | D14: 390348 | E14: 62563 | F14: 79403 | G14: 23077044.4 | H14: 559962.4305 | I14: 0 | J14: 0.04376759585 | K14: 0.0244117903 | L14: 0.0336870767 | M14: 0.02909869115 | N14: 0.02374758844 | O14: 0
B15: 02CD09 | C15: Iztapalapa | D15: 1827868 | E15: 698149 | F15: 174098 | G15: 112980057 | H15: 3002433.023 | I15: 8516900 | J15: 0.2049488863 | K15: 0.272414478 | L15: 0.07386185257 | M15: 0.142460695 | N15: 0.127330942 | O15: 0.009791849756
B16: 02CD10 | C16: La Magdalena Contreras | D16: 243886 | E16: 89206 | F16: 25321 | G16: 18188413.7 | H16: 685716.3247 | I16: 61530000 | J16: 0.02734560925 | K16: 0.03480776442 | L16: 0.01074254712 | M16: 0.02293443751 | N16: 0.02908071716 | O16: 0.07074082301
B17: 02CD11 | C17: Miguel Hidalgo | D17: 364439 | E17: 20737 | F17: 308837 | G17: 46355324.4 | H17: 2413224.108 | I17: 0 | J17: 0.04086256075 | K17: 0.008091480514 | L17: 0.1310254739 | M17: 0.05845112764 | N17: 0.102343032 | O17: 0
B18: 02CD12 | C18: Milpa Alta | D18: 137927 | E18: 79828 | F18: 5577 | G18: 27085857.8 | H18: 33488.50499 | I18: 283750000 | J18: 0.01546500352 | K18: 0.03114851263 | L18: 0.00236606711 | M18: 0.03415355091 | N18: 0.001420222483 | O18: 0.3262263697
B19: 02CD13 | C19: Tláhuac | D19: 361593 | E19: 160162 | F19: 27725 | G19: 38292399.9 | H19: 336766.0535 | I19: 64698200 | J19: 0.04054345426 | K19: 0.0624944641 | L19: 0.01176245484 | M19: 0.0482842906 | N19: 0.01428199679 | O19: 0.07438329132
B20: 02CD14 | C20: Tlalpan | D20: 677104 | E20: 229226 | F20: 134368 | G20: 93313210.7 | H20: 1368265.721 | I20: 254260000 | J20: 0.07591998478 | K20: 0.08944291423 | L20: 0.05700622296 | M20: 0.1176620477 | N20: 0.05802712727 | O20: 0.2923218212
B21: 02CD15 | C21: Venustiano Carranza | D21: 427263 | E21: 99528 | F21: 132053 | G21: 33836369.5 | H21: 863646.016 | I21: 0 | J21: 0.0479066738 | K21: 0.03883536059 | L21: 0.05602407389 | M21: 0.04266551854 | N21: 0.03662658247 | O21: 0
B22: 02CD16 | C22: Xochimilco | D22: 415933 | E22: 198191 | F22: 36393 | G22: 63339044.4 | H22: 654870.6552 | I22: 100120000 | J22: 0.04663630259 | K22: 0.07733320223 | L22: 0.01543989248 | M22: 0.07986652271 | N22: 0.02777257535 | O22: 0.1151076093
B23: TOTAL | D23: =SUM(D7:D22) -> 8918653 | E23: =SUM(E7:E22) -> 2562819 | F23: 2357076 | G23: 793061250.8 | H23: 23579759.77 | I23: 869794800 | J23: =SUM(J7:J22) -> 1 | K23: =SUM(K7:K22) -> 1 | L23: =SUM(L7:L22) -> 1 | M23: =SUM(M7:M22) -> 1 | N23: =SUM(N7:N22) -> 1 | O23: =SUM(O7:O22) -> 1
B25: Presupuesto ingresos 2018 | T25: Presupuesto egresos 2018
B27: Clave | C27: Delegación | D27: Erogaciones Previstas (Art 7) | G27: Más Erogaciones Previstas (Arts 8 y 13) | L27: Ramo 23 (estimado) | M27: Total Ingresos (Pesos) | P27: Total (%) | T27: Egresos por Capítulo (Pesos) | AA27: Egresos por Capítulo (Porcentual)
D28: CDMX | E28: Participaciones Federales | F28: FORTAMUN (Federal) | G28: FISM (FAIS Federal) | H28: Fondo de Inversión | I28: Aplicación Automática (estimado) | J28: Operación | K28: Adicionales | M28: Federal | N28: CMDX | O28: Total | P28: Federal | Q28: CMDX | R28: Total | T28: 1000 | U28: 2000 | V28: 3000 | W28: 4000 | X28: 5000 | Y28: 6000 | Z28: Total | AA28: =T28 -> 1000 | AB28: =U28 -> 2000 | AC28: 3000 | AD28: 4000 | AE28: 5000 | AF28: 6000 | AG28: Total
B29: 02CD01 | C29: =VLOOKUP(B29,$B$7:$C$22,2,FALSE) -> Álvaro Obregón | D29: 360655007.3 | E29: 1442278243 | F29: 517434123.6 | G29: 63502668.73 | H29: 53582949 | I29: 45051875 | J29: 19375000 | K29: 495000000 | L29: 937500 | M29: =E29+F29+G29+L29 -> 2024152535 | N29: =O29-M29 -> 973664831.3 | O29: =SUM(D29:L29) -> 2997817367 | P29: =M29/M$45 -> 0.0786322144 | Q29: =N29/N$45 -> 0.06418042168 | R29: =O29/O$45 -> 0.07327338737 | T29: =SUMIFS(BD_Gastos!$M$5:$M$3025,BD_Gastos!$B$5:$B$3025,Presupuesto!T$28,BD_Gastos!$E$5:$E$3025,Presupuesto!$B29) -> 1158465721 | U29: =SUMIFS(BD_Gastos!$M$5:$M$3025,BD_Gastos!$B$5:$B$3025,Presupuesto!U$28,BD_Gastos!$E$5:$E$3025,Presupuesto!$B29) -> 282456735 | V29: =SUMIFS(BD_Gastos!$M$5:$M$3025,BD_Gastos!$B$5:$B$3025,Presupuesto!V$28,BD_Gastos!$E$5:$E$3025,Presupuesto!$B29) -> 541169303 | W29: =SUMIFS(BD_Gastos!$M$5:$M$3025,BD_Gastos!$B$5:$B$3025,Presupuesto!W$28,BD_Gastos!$E$5:$E$3025,Presupuesto!$B29) -> 158888040 | X29: =SUMIFS(BD_Gastos!$M$5:$M$3025,BD_Gastos!$B$5:$B$3025,Presupuesto!X$28,BD_Gastos!$E$5:$E$3025,Presupuesto!$B29) -> 23162808 | Y29: =SUMIFS(BD_Gastos!$M$5:$M$3025,BD_Gastos!$B$5:$B$3025,Presupuesto!Y$28,BD_Gastos!$E$5:$E$3025,Presupuesto!$B29) -> 809926966 | Z29: =SUM(T29:Y29) -> 2974069573 | AA29: =T29/$Z29 -> 0.3895220648 | AB29: =U29/$Z29 -> 0.09497314305 | AC29: =V29/$Z29 -> 0.1819625566 | AD29: =W29/$Z29 -> 0.05342445296 | AE29: =X29/$Z29 -> 0.00778825358 | AF29: =Y29/$Z29 -> 0.272329529 | AG29: =Z29/$Z29 -> 1 | AI29: =O29/Z29 -> 1.007984949 | AJ29: =T29*AI29 -> 1167716011 | AK29: =Z29*AI29-AJ29 -> 1830101356 | AL29: =Z29-T29-V29-Y29 -> 464507583 | AM29: =Z29-T29 -> 1815603852
B30: 02CD02 | C30: =VLOOKUP(B30,$B$7:$C$22,2,FALSE) -> Azcapotzalco | D30: 62455295.03 | E30: 1288779109 | F30: 276082567.8 | G30: 23364300.13 | H30: 11824885 | I30: 28346584 | J30: 19375000 | K30: 140000000 | L30: 56937500 | M30: 1645163477 | N30: =O30-M30 -> 262001764 | O30: 1907165241 | P30: =M30/M$45 -> 0.06390963378 | Q30: 0.01727019726 | R30: 0.04661540061 | T30: =SUMIFS(BD_Gastos!$M$5:$M$3025,BD_Gastos!$B$5:$B$3025,Presupuesto!T$28,BD_Gastos!$E$5:$E$3025,Presupuesto!$B30) -> 979600514 | U30: =SUMIFS(BD_Gastos!$M$5:$M$3025,BD_Gastos!$B$5:$B$3025,Presupuesto!U$28,BD_Gastos!$E$5:$E$3025,Presupuesto!$B30) -> 117403195 | V30: =SUMIFS(BD_Gastos!$M$5:$M$3025,BD_Gastos!$B$5:$B$3025,Presupuesto!V$28,BD_Gastos!$E$5:$E$3025,Presupuesto!$B30) -> 401467421 | W30: =SUMIFS(BD_Gastos!$M$5:$M$3025,BD_Gastos!$B$5:$B$3025,Presupuesto!W$28,BD_Gastos!$E$5:$E$3025,Presupuesto!$B30) -> 26785481 | X30: =SUMIFS(BD_Gastos!$M$5:$M$3025,BD_Gastos!$B$5:$B$3025,Presupuesto!X$28,BD_Gastos!$E$5:$E$3025,Presupuesto!$B30) -> 5400000 | Y30: =SUMIFS(BD_Gastos!$M$5:$M$3025,BD_Gastos!$B$5:$B$3025,Presupuesto!Y$28,BD_Gastos!$E$5:$E$3025,Presupuesto!$B30) -> 310478688 | Z30: =SUM(T30:Y30) -> 1841135299 | AA30: 0.5320632951 | AB30: 0.0637667395 | AC30: 0.218054274 | AD30: 0.01454835015 | AE30: 0.002932972934 | AF30: 0.1686343682 | AG30: 1 | AI30: =O30/Z30 -> 1.03586371 | AJ30: =T30*AI30 -> 1014732623 | AK30: =Z30*AI30-AJ30 -> 892432618.5 | AL30: =Z30-T30-V30-Y30 -> 149588676 | AM30: =Z30-T30 -> 861534785
B31: 02CD03 | C31: Benito Juárez | D31: 140790033.1 | E31: 1218144705 | F31: 287987287.9 | G31: 21502510.49 | H31: 51082950 | I31: 33271977 | J31: 19375000 | K31: 410000000 | L31: 23437500 | M31: 1551072003 | N31: 654519960.1 | O31: 2205591963 | P31: 0.06025446412 | Q31: 0.04314355997 | R31: 0.05390961975 | T31: =SUMIFS(BD_Gastos!$M$5:$M$3025,BD_Gastos!$B$5:$B$3025,Presupuesto!T$28,BD_Gastos!$E$5:$E$3025,Presupuesto!$B31) -> 1132202150 | U31: =SUMIFS(BD_Gastos!$M$5:$M$3025,BD_Gastos!$B$5:$B$3025,Presupuesto!U$28,BD_Gastos!$E$5:$E$3025,Presupuesto!$B31) -> 114714270 | V31: =SUMIFS(BD_Gastos!$M$5:$M$3025,BD_Gastos!$B$5:$B$3025,Presupuesto!V$28,BD_Gastos!$E$5:$E$3025,Presupuesto!$B31) -> 356230996 | W31: =SUMIFS(BD_Gastos!$M$5:$M$3025,BD_Gastos!$B$5:$B$3025,Presupuesto!W$28,BD_Gastos!$E$5:$E$3025,Presupuesto!$B31) -> 9350000 | X31: =SUMIFS(BD_Gastos!$M$5:$M$3025,BD_Gastos!$B$5:$B$3025,Presupuesto!X$28,BD_Gastos!$E$5:$E$3025,Presupuesto!$B31) -> 1000000 | Y31: =SUMIFS(BD_Gastos!$M$5:$M$3025,BD_Gastos!$B$5:$B$3025,Presupuesto!Y$28,BD_Gastos!$E$5:$E$3025,Presupuesto!$B31) -> 601818788 | Z31: 2215316204 | AA31: 0.5110792527 | AB31: 0.05178234592 | AC31: 0.1608036791 | AD31: 0.004220616444 | AE31: 0.0004514028283 | AF31: 0.271662703 | AG31: 1 | AI31: 0.9956104503 | AJ31: 1127232292 | AK31: 1078359671 | AL31: 125064270 | AM31: 1083114054
B32: 02CD04 | C32: Coyoacán | D32: 639666551.5 | E32: 987962228 | F32: 419807139.5 | G32: 33514659.29 | H32: 53582949 | I32: 42136392 | J32: 19375000 | K32: 495000000 | L32: 937500 | M32: 1442221527 | N32: 1249760893 | O32: 2691982419 | P32: 0.05602595176 | Q32: 0.08237966341 | R32: 0.06579809457 | T32: =SUMIFS(BD_Gastos!$M$5:$M$3025,BD_Gastos!$B$5:$B$3025,Presupuesto!T$28,BD_Gastos!$E$5:$E$3025,Presupuesto!$B32) -> 1266964616 | U32: =SUMIFS(BD_Gastos!$M$5:$M$3025,BD_Gastos!$B$5:$B$3025,Presupuesto!U$28,BD_Gastos!$E$5:$E$3025,Presupuesto!$B32) -> 107501236 | V32: =SUMIFS(BD_Gastos!$M$5:$M$3025,BD_Gastos!$B$5:$B$3025,Presupuesto!V$28,BD_Gastos!$E$5:$E$3025,Presupuesto!$B32) -> 446015054 | W32: =SUMIFS(BD_Gastos!$M$5:$M$3025,BD_Gastos!$B$5:$B$3025,Presupuesto!W$28,BD_Gastos!$E$5:$E$3025,Presupuesto!$B32) -> 132400878 | X32: =SUMIFS(BD_Gastos!$M$5:$M$3025,BD_Gastos!$B$5:$B$3025,Presupuesto!X$28,BD_Gastos!$E$5:$E$3025,Presupuesto!$B32) -> 0 | Y32: =SUMIFS(BD_Gastos!$M$5:$M$3025,BD_Gastos!$B$5:$B$3025,Presupuesto!Y$28,BD_Gastos!$E$5:$E$3025,Presupuesto!$B32) -> 748274330 | Z32: 2701156114 | AA32: 0.4690453134 | AB32: 0.03979823137 | AC32: 0.1651200579 | AD32: 0.04901637388 | AE32: 0 | AF32: 0.2770200234 | AG32: 1 | AI32: 0.9966037895 | AJ32: 1262661737 | AK32: 1429320682 | AL32: 239902114 | AM32: 1434191498
B33: 02CD05 | C33: Cuajimalpa de Morelos | D33: 309862927.1 | E33: 637457186 | F33: 137450359.9 | G33: 22978228.11 | H33: 36562212 | I33: 25656986 | J33: 19375000 | K33: 495000000 | L33: 15937500 | M33: 813823274 | N33: 886457125.1 | O33: 1700280399 | P33: 0.03161457699 | Q33: 0.0584320089 | R33: 0.04155867055 | T33: =SUMIFS(BD_Gastos!$M$5:$M$3025,BD_Gastos!$B$5:$B$3025,Presupuesto!T$28,BD_Gastos!$E$5:$E$3025,Presupuesto!$B33) -> 826016851 | U33: =SUMIFS(BD_Gastos!$M$5:$M$3025,BD_Gastos!$B$5:$B$3025,Presupuesto!U$28,BD_Gastos!$E$5:$E$3025,Presupuesto!$B33) -> 65879675 | V33: =SUMIFS(BD_Gastos!$M$5:$M$3025,BD_Gastos!$B$5:$B$3025,Presupuesto!V$28,BD_Gastos!$E$5:$E$3025,Presupuesto!$B33) -> 126824610 | W33: =SUMIFS(BD_Gastos!$M$5:$M$3025,BD_Gastos!$B$5:$B$3025,Presupuesto!W$28,BD_Gastos!$E$5:$E$3025,Presupuesto!$B33) -> 61418421 | X33: =SUMIFS(BD_Gastos!$M$5:$M$3025,BD_Gastos!$B$5:$B$3025,Presupuesto!X$28,BD_Gastos!$E$5:$E$3025,Presupuesto!$B33) -> 1500854 | Y33: =SUMIFS(BD_Gastos!$M$5:$M$3025,BD_Gastos!$B$5:$B$3025,Presupuesto!Y$28,BD_Gastos!$E$5:$E$3025,Presupuesto!$B33) -> 591456932 | Z33: 1673097343 | AA33: 0.4937051956 | AB33: 0.03937587689 | AC33: 0.07580229 | AD33: 0.03670941279 | AE33: 0.0008970512124 | AF33: 0.3535101735 | AG33: 1 | AI33: 1.016247146 | AJ33: 839437267 | AK33: 860843132.1 | AL33: 128798950 | AM33: 847080492
B34: 02CD06 | C34: Cuauhtémoc | D34: 600583171.6 | E34: 1994992755 | F34: 367423611.3 | G34: 47334491.9 | H34: 28330261 | I34: 52148327 | J34: 19375000 | K34: 140000000 | L34: 56937500 | M34: 2466688358 | N34: 840436759.6 | O34: 3307125118 | P34: 0.09582339495 | Q34: 0.05539851486 | R34: 0.08083356329 | T34: =SUMIFS(BD_Gastos!$M$5:$M$3025,BD_Gastos!$B$5:$B$3025,Presupuesto!T$28,BD_Gastos!$E$5:$E$3025,Presupuesto!$B34) -> 2006124289 | U34: =SUMIFS(BD_Gastos!$M$5:$M$3025,BD_Gastos!$B$5:$B$3025,Presupuesto!U$28,BD_Gastos!$E$5:$E$3025,Presupuesto!$B34) -> 128744123 | V34: =SUMIFS(BD_Gastos!$M$5:$M$3025,BD_Gastos!$B$5:$B$3025,Presupuesto!V$28,BD_Gastos!$E$5:$E$3025,Presupuesto!$B34) -> 589968109 | W34: =SUMIFS(BD_Gastos!$M$5:$M$3025,BD_Gastos!$B$5:$B$3025,Presupuesto!W$28,BD_Gastos!$E$5:$E$3025,Presupuesto!$B34) -> 149989701 | X34: =SUMIFS(BD_Gastos!$M$5:$M$3025,BD_Gastos!$B$5:$B$3025,Presupuesto!X$28,BD_Gastos!$E$5:$E$3025,Presupuesto!$B34) -> 58172651 | Y34: =SUMIFS(BD_Gastos!$M$5:$M$3025,BD_Gastos!$B$5:$B$3025,Presupuesto!Y$28,BD_Gastos!$E$5:$E$3025,Presupuesto!$B34) -> 302452796 | Z34: 3235451669 | AA34: 0.6200445855 | AB34: 0.03979170025 | AC34: 0.1823448994 | AD34: 0.0463581955 | AE34: 0.01797976201 | AF34: 0.09348085737 | AG34: 1 | AI34: 1.022152533 | AJ34: 2050565023 | AK34: 1256560095 | AL34: 336906475 | AM34: 1229327380
B35: 02CD07 | C35: Gustavo A. Madero | D35: 1445469343 | E35: 1499723964 | F35: 803406129.7 | G35: 107868930.7 | H35: 41082949 | I35: 67104814 | J35: 19375000 | K35: 500000000 | L35: 937500 | M35: 2411936524 | N35: 2073032106 | O35: 4484968630 | P35: 0.0936964515 | Q35: 0.1366466883 | R35: 0.1096227033 | T35: =SUMIFS(BD_Gastos!$M$5:$M$3025,BD_Gastos!$B$5:$B$3025,Presupuesto!T$28,BD_Gastos!$E$5:$E$3025,Presupuesto!$B35) -> 2105562597 | U35: =SUMIFS(BD_Gastos!$M$5:$M$3025,BD_Gastos!$B$5:$B$3025,Presupuesto!U$28,BD_Gastos!$E$5:$E$3025,Presupuesto!$B35) -> 230143698 | V35: =SUMIFS(BD_Gastos!$M$5:$M$3025,BD_Gastos!$B$5:$B$3025,Presupuesto!V$28,BD_Gastos!$E$5:$E$3025,Presupuesto!$B35) -> 823780294 | W35: =SUMIFS(BD_Gastos!$M$5:$M$3025,BD_Gastos!$B$5:$B$3025,Presupuesto!W$28,BD_Gastos!$E$5:$E$3025,Presupuesto!$B35) -> 142397268 | X35: =SUMIFS(BD_Gastos!$M$5:$M$3025,BD_Gastos!$B$5:$B$3025,Presupuesto!X$28,BD_Gastos!$E$5:$E$3025,Presupuesto!$B35) -> 49806764 | Y35: =SUMIFS(BD_Gastos!$M$5:$M$3025,BD_Gastos!$B$5:$B$3025,Presupuesto!Y$28,BD_Gastos!$E$5:$E$3025,Presupuesto!$B35) -> 1093648015 | Z35: 4445338636 | AA35: 0.4736562879 | AB35: 0.0517719159 | AC35: 0.1853132824 | AD35: 0.03203294049 | AE35: 0.01120426768 | AF35: 0.2460213056 | AG35: 1 | AI35: 1.008914955 | AJ35: 2124333593 | AK35: 2360635037 | AL35: 422347730 | AM35: 2339776039
B36: 02CD08 | C36: Iztacalco | D36: 558387923.8 | E36: 746989393 | F36: 269312297.2 | G36: 22495863.95 | H36: 30721966 | I36: 30485019 | J36: 19375000 | K36: 300000000 | L36: 937500 | M36: 1039735054 | N36: 938969908.8 | O36: 1978704963 | P36: 0.04039056754 | Q36: 0.06189345939 | R36: 0.04836399203 | T36: =SUMIFS(BD_Gastos!$M$5:$M$3025,BD_Gastos!$B$5:$B$3025,Presupuesto!T$28,BD_Gastos!$E$5:$E$3025,Presupuesto!$B36) -> 985133459 | U36: =SUMIFS(BD_Gastos!$M$5:$M$3025,BD_Gastos!$B$5:$B$3025,Presupuesto!U$28,BD_Gastos!$E$5:$E$3025,Presupuesto!$B36) -> 97545557 | V36: =SUMIFS(BD_Gastos!$M$5:$M$3025,BD_Gastos!$B$5:$B$3025,Presupuesto!V$28,BD_Gastos!$E$5:$E$3025,Presupuesto!$B36) -> 340981978 | W36: =SUMIFS(BD_Gastos!$M$5:$M$3025,BD_Gastos!$B$5:$B$3025,Presupuesto!W$28,BD_Gastos!$E$5:$E$3025,Presupuesto!$B36) -> 72295852 | X36: =SUMIFS(BD_Gastos!$M$5:$M$3025,BD_Gastos!$B$5:$B$3025,Presupuesto!X$28,BD_Gastos!$E$5:$E$3025,Presupuesto!$B36) -> 26927248 | Y36: =SUMIFS(BD_Gastos!$M$5:$M$3025,BD_Gastos!$B$5:$B$3025,Presupuesto!Y$28,BD_Gastos!$E$5:$E$3025,Presupuesto!$B36) -> 454497187 | Z36: 1977381281 | AA36: 0.4982010644 | AB36: 0.04933067686 | AC36: 0.1724411884 | AD36: 0.03656141215 | AE36: 0.01361763068 | AF36: 0.2298480275 | AG36: 1 | AI36: 1.000669412 | AJ36: 985792918.8 | AK36: 992912044.2 | AL36: 196768657 | AM36: 992247822
B37: 02CD09 | C37: Iztapalapa | D37: 905622960 | E37: 2251545156 | F37: 1261098634 | G37: 219626452.4 | H37: 41082949 | I37: 79657288 | J37: 19375000 | K37: 606000000 | L37: 937500 | M37: 3733207742 | N37: 1651738197 | O37: 5384945939 | P37: 0.145023849 | Q37: 0.1088765359 | R37: 0.1316201695 | T37: =SUMIFS(BD_Gastos!$M$5:$M$3025,BD_Gastos!$B$5:$B$3025,Presupuesto!T$28,BD_Gastos!$E$5:$E$3025,Presupuesto!$B37) -> 2043116478 | U37: =SUMIFS(BD_Gastos!$M$5:$M$3025,BD_Gastos!$B$5:$B$3025,Presupuesto!U$28,BD_Gastos!$E$5:$E$3025,Presupuesto!$B37) -> 480690299 | V37: =SUMIFS(BD_Gastos!$M$5:$M$3025,BD_Gastos!$B$5:$B$3025,Presupuesto!V$28,BD_Gastos!$E$5:$E$3025,Presupuesto!$B37) -> 1083189003 | W37: =SUMIFS(BD_Gastos!$M$5:$M$3025,BD_Gastos!$B$5:$B$3025,Presupuesto!W$28,BD_Gastos!$E$5:$E$3025,Presupuesto!$B37) -> 683191507 | X37: =SUMIFS(BD_Gastos!$M$5:$M$3025,BD_Gastos!$B$5:$B$3025,Presupuesto!X$28,BD_Gastos!$E$5:$E$3025,Presupuesto!$B37) -> 30000000 | Y37: =SUMIFS(BD_Gastos!$M$5:$M$3025,BD_Gastos!$B$5:$B$3025,Presupuesto!Y$28,BD_Gastos!$E$5:$E$3025,Presupuesto!$B37) -> 1059476130 | Z37: 5379663417 | AA37: 0.3797851872 | AB37: 0.08935322933 | AC37: 0.2013488427 | AD37: 0.126995214 | AE37: 0.005576557058 | AF37: 0.1969409697 | AG37: 1 | AI37: 1.000981943 | AJ37: 2045122702 | AK37: 3339823238 | AL37: 1193881806 | AM37: 3336546939
B38: 02CD10 | C38: La Magdalena Contreras | D38: 301674354.9 | E38: 573036910.5 | F38: 168263956.6 | G38: 27907257.06 | H38: 47546851 | I38: 25581633 | J38: 19375000 | K38: 495000000 | L38: 937500 | M38: 770145624.1 | N38: 889177838.9 | O38: 1659323463 | P38: 0.02991783217 | Q38: 0.0586113484 | R38: 0.04055759108 | T38: =SUMIFS(BD_Gastos!$M$5:$M$3025,BD_Gastos!$B$5:$B$3025,Presupuesto!T$28,BD_Gastos!$E$5:$E$3025,Presupuesto!$B38) -> 662335132 | U38: =SUMIFS(BD_Gastos!$M$5:$M$3025,BD_Gastos!$B$5:$B$3025,Presupuesto!U$28,BD_Gastos!$E$5:$E$3025,Presupuesto!$B38) -> 80620807 | V38: =SUMIFS(BD_Gastos!$M$5:$M$3025,BD_Gastos!$B$5:$B$3025,Presupuesto!V$28,BD_Gastos!$E$5:$E$3025,Presupuesto!$B38) -> 180047895 | W38: =SUMIFS(BD_Gastos!$M$5:$M$3025,BD_Gastos!$B$5:$B$3025,Presupuesto!W$28,BD_Gastos!$E$5:$E$3025,Presupuesto!$B38) -> 30152060 | X38: =SUMIFS(BD_Gastos!$M$5:$M$3025,BD_Gastos!$B$5:$B$3025,Presupuesto!X$28,BD_Gastos!$E$5:$E$3025,Presupuesto!$B38) -> 1000000 | Y38: =SUMIFS(BD_Gastos!$M$5:$M$3025,BD_Gastos!$B$5:$B$3025,Presupuesto!Y$28,BD_Gastos!$E$5:$E$3025,Presupuesto!$B38) -> 693979908 | Z38: 1648135802 | AA38: 0.4018692702 | AB38: 0.04891636169 | AC38: 0.1092433614 | AD38: 0.01829464536 | AE38: 0.0006067461181 | AF38: 0.4210696152 | AG38: 1 | AI38: 1.00678807 | AJ38: 666831109.2 | AK38: 992492353.9 | AL38: 111772867 | AM38: 985800670
B39: 02CD11 | C39: Miguel Hidalgo | D39: 259887287.1 | E39: 1531872239 | F39: 251436933.9 | G39: 16748918.93 | H39: 15360983 | I39: 36395289 | J39: 19375000 | K39: 200000000 | L39: 8437500 | M39: 1808495592 | N39: 531018559.1 | O39: 2339514151 | P39: 0.07025459328 | Q39: 0.03500279968 | R39: 0.0571829787 | T39: =SUMIFS(BD_Gastos!$M$5:$M$3025,BD_Gastos!$B$5:$B$3025,Presupuesto!T$28,BD_Gastos!$E$5:$E$3025,Presupuesto!$B39) -> 999913845 | U39: =SUMIFS(BD_Gastos!$M$5:$M$3025,BD_Gastos!$B$5:$B$3025,Presupuesto!U$28,BD_Gastos!$E$5:$E$3025,Presupuesto!$B39) -> 206306814 | V39: =SUMIFS(BD_Gastos!$M$5:$M$3025,BD_Gastos!$B$5:$B$3025,Presupuesto!V$28,BD_Gastos!$E$5:$E$3025,Presupuesto!$B39) -> 581450482 | W39: =SUMIFS(BD_Gastos!$M$5:$M$3025,BD_Gastos!$B$5:$B$3025,Presupuesto!W$28,BD_Gastos!$E$5:$E$3025,Presupuesto!$B39) -> 88942296 | X39: =SUMIFS(BD_Gastos!$M$5:$M$3025,BD_Gastos!$B$5:$B$3025,Presupuesto!X$28,BD_Gastos!$E$5:$E$3025,Presupuesto!$B39) -> 38313268 | Y39: =SUMIFS(BD_Gastos!$M$5:$M$3025,BD_Gastos!$B$5:$B$3025,Presupuesto!Y$28,BD_Gastos!$E$5:$E$3025,Presupuesto!$B39) -> 433089984 | Z39: 2348016689 | AA39: 0.4258546584 | AB39: 0.08786428775 | AC39: 0.2476347314 | AD39: 0.03787975461 | AE39: 0.01631728947 | AF39: 0.1844492784 | AG39: 1 | AI39: 0.9963788426 | AJ39: 996292999.6 | AK39: 1343221151 | AL39: 333562378 | AM39: 1348102844
B40: 02CD12 | C40: Milpa Alta | D40: 318979723.5 | E40: 695593286.5 | F40: 95159798.99 | G40: 45451350.53 | H40: 13824885 | I40: 21181029 | J40: 19375000 | K40: 155000000 | L40: 937500 | M40: 837141936 | N40: 528360637.5 | O40: 1365502574 | P40: 0.0325204366 | Q40: 0.03482759921 | R40: 0.03337594883 | T40: =SUMIFS(BD_Gastos!$M$5:$M$3025,BD_Gastos!$B$5:$B$3025,Presupuesto!T$28,BD_Gastos!$E$5:$E$3025,Presupuesto!$B40) -> 678410177 | U40: =SUMIFS(BD_Gastos!$M$5:$M$3025,BD_Gastos!$B$5:$B$3025,Presupuesto!U$28,BD_Gastos!$E$5:$E$3025,Presupuesto!$B40) -> 91440087 | V40: =SUMIFS(BD_Gastos!$M$5:$M$3025,BD_Gastos!$B$5:$B$3025,Presupuesto!V$28,BD_Gastos!$E$5:$E$3025,Presupuesto!$B40) -> 138801999 | W40: =SUMIFS(BD_Gastos!$M$5:$M$3025,BD_Gastos!$B$5:$B$3025,Presupuesto!W$28,BD_Gastos!$E$5:$E$3025,Presupuesto!$B40) -> 89185210 | X40: =SUMIFS(BD_Gastos!$M$5:$M$3025,BD_Gastos!$B$5:$B$3025,Presupuesto!X$28,BD_Gastos!$E$5:$E$3025,Presupuesto!$B40) -> 10908234 | Y40: =SUMIFS(BD_Gastos!$M$5:$M$3025,BD_Gastos!$B$5:$B$3025,Presupuesto!Y$28,BD_Gastos!$E$5:$E$3025,Presupuesto!$B40) -> 343935717 | Z40: 1352681424 | AA40: 0.5015298983 | AB40: 0.06759912968 | AC40: 0.1026124825 | AD40: 0.06593216142 | AE40: 0.008064155984 | AF40: 0.2542621721 | AG40: 1 | AI40: 1.009478322 | AJ40: 684840366.8 | AK40: 680662206.7 | AL40: 191533531 | AM40: 674271247
B41: 02CD13 | C41: Tláhuac | D41: 413934194.3 | E41: 719645638.9 | F41: 249473396.8 | G41: 48436446.15 | H41: 11824885 | I41: 24381289 | J41: 19375000 | K41: 140000000 | L41: 56937500 | M41: 1074492982 | N41: 609515368.3 | O41: 1684008350 | P41: 0.04174080809 | Q41: 0.04017702201 | R41: 0.04116094514 | T41: =SUMIFS(BD_Gastos!$M$5:$M$3025,BD_Gastos!$B$5:$B$3025,Presupuesto!T$28,BD_Gastos!$E$5:$E$3025,Presupuesto!$B41) -> 980751725 | U41: =SUMIFS(BD_Gastos!$M$5:$M$3025,BD_Gastos!$B$5:$B$3025,Presupuesto!U$28,BD_Gastos!$E$5:$E$3025,Presupuesto!$B41) -> 129131539 | V41: =SUMIFS(BD_Gastos!$M$5:$M$3025,BD_Gastos!$B$5:$B$3025,Presupuesto!V$28,BD_Gastos!$E$5:$E$3025,Presupuesto!$B41) -> 206197011 | W41: =SUMIFS(BD_Gastos!$M$5:$M$3025,BD_Gastos!$B$5:$B$3025,Presupuesto!W$28,BD_Gastos!$E$5:$E$3025,Presupuesto!$B41) -> 23300792 | X41: =SUMIFS(BD_Gastos!$M$5:$M$3025,BD_Gastos!$B$5:$B$3025,Presupuesto!X$28,BD_Gastos!$E$5:$E$3025,Presupuesto!$B41) -> 10947041 | Y41: =SUMIFS(BD_Gastos!$M$5:$M$3025,BD_Gastos!$B$5:$B$3025,Presupuesto!Y$28,BD_Gastos!$E$5:$E$3025,Presupuesto!$B41) -> 291259660 | Z41: 1641587768 | AA41: 0.5974409313 | AB41: 0.07866258601 | AC41: 0.1256082769 | AD41: 0.01419405801 | AE41: 0.006668568817 | AF41: 0.1774255789 | AG41: 1 | AI41: 1.02584119 | AJ41: 1006095517 | AK41: 677912833 | AL41: 163379372 | AM41: 660836043
B42: 02CD14 | C42: Tlalpan | D42: 568421599.9 | E42: 1101468281 | F42: 467153498.1 | G42: 74284511.7 | H42: 13360983 | I42: 36471058 | J42: 19375000 | K42: 140000000 | L42: 56937500 | M42: 1699843791 | N42: 777628640.9 | O42: 2477472432 | P42: 0.06603379887 | Q42: 0.05125843358 | R42: 0.06055498884 | T42: =SUMIFS(BD_Gastos!$M$5:$M$3025,BD_Gastos!$B$5:$B$3025,Presupuesto!T$28,BD_Gastos!$E$5:$E$3025,Presupuesto!$B42) -> 989504529 | U42: =SUMIFS(BD_Gastos!$M$5:$M$3025,BD_Gastos!$B$5:$B$3025,Presupuesto!U$28,BD_Gastos!$E$5:$E$3025,Presupuesto!$B42) -> 183826123 | V42: =SUMIFS(BD_Gastos!$M$5:$M$3025,BD_Gastos!$B$5:$B$3025,Presupuesto!V$28,BD_Gastos!$E$5:$E$3025,Presupuesto!$B42) -> 530368234 | W42: =SUMIFS(BD_Gastos!$M$5:$M$3025,BD_Gastos!$B$5:$B$3025,Presupuesto!W$28,BD_Gastos!$E$5:$E$3025,Presupuesto!$B42) -> 182297919 | X42: =SUMIFS(BD_Gastos!$M$5:$M$3025,BD_Gastos!$B$5:$B$3025,Presupuesto!X$28,BD_Gastos!$E$5:$E$3025,Presupuesto!$B42) -> 20000000 | Y42: =SUMIFS(BD_Gastos!$M$5:$M$3025,BD_Gastos!$B$5:$B$3025,Presupuesto!Y$28,BD_Gastos!$E$5:$E$3025,Presupuesto!$B42) -> 536656405 | Z42: 2442653210 | AA42: 0.4050941513 | AB42: 0.07525674224 | AC42: 0.2171279295 | AD42: 0.07463110942 | AE42: 0.008187818033 | AF42: 0.2197022495 | AG42: 1 | AI42: 1.014254673 | AJ42: 1003609592 | AK42: 1473862840 | AL42: 386124042 | AM42: 1453148681
B43: 02CD15 | C43: Venustiano Carranza | D43: 971076204 | E43: 888208418 | F43: 294781016 | G43: 43395870.72 | H43: 38402458 | I43: 41445212 | J43: 19375000 | K43: 450000000 | L43: 937500 | M43: 1227322805 | N43: 1520298874 | O43: 2747621679 | P43: 0.04767778526 | Q43: 0.1002125369 | R43: 0.067158043 | T43: =SUMIFS(BD_Gastos!$M$5:$M$3025,BD_Gastos!$B$5:$B$3025,Presupuesto!T$28,BD_Gastos!$E$5:$E$3025,Presupuesto!$B43) -> 1576832082 | U43: =SUMIFS(BD_Gastos!$M$5:$M$3025,BD_Gastos!$B$5:$B$3025,Presupuesto!U$28,BD_Gastos!$E$5:$E$3025,Presupuesto!$B43) -> 122715972 | V43: =SUMIFS(BD_Gastos!$M$5:$M$3025,BD_Gastos!$B$5:$B$3025,Presupuesto!V$28,BD_Gastos!$E$5:$E$3025,Presupuesto!$B43) -> 376950052 | W43: =SUMIFS(BD_Gastos!$M$5:$M$3025,BD_Gastos!$B$5:$B$3025,Presupuesto!W$28,BD_Gastos!$E$5:$E$3025,Presupuesto!$B43) -> 88635287 | X43: =SUMIFS(BD_Gastos!$M$5:$M$3025,BD_Gastos!$B$5:$B$3025,Presupuesto!X$28,BD_Gastos!$E$5:$E$3025,Presupuesto!$B43) -> 5597920 | Y43: =SUMIFS(BD_Gastos!$M$5:$M$3025,BD_Gastos!$B$5:$B$3025,Presupuesto!Y$28,BD_Gastos!$E$5:$E$3025,Presupuesto!$B43) -> 610581143 | Z43: 2781312456 | AA43: 0.5669381297 | AB43: 0.04412160588 | AC43: 0.1355295595 | AD43: 0.0318681516 | AE43: 0.002012690084 | AF43: 0.2195298632 | AG43: 1 | AI43: 0.9878867341 | AJ43: 1557731496 | AK43: 1189890183 | AL43: 216949179 | AM43: 1204480374
B44: 02CD16 | C44: Xochimilco | D44: 584071343.4 | E44: 781690437 | F44: 286964123.6 | G44: 70991069.21 | H44: 11824885 | I44: 28892620 | J44: 19375000 | K44: 140000000 | L44: 56937500 | M44: 1196583130 | N44: 784163848.4 | O44: 1980746978 | P44: 0.0464836417 | Q44: 0.05168921054 | R44: 0.04841390347 | T44: =SUMIFS(BD_Gastos!$M$5:$M$3025,BD_Gastos!$B$5:$B$3025,Presupuesto!T$28,BD_Gastos!$E$5:$E$3025,Presupuesto!$B44) -> 1035071993 | U44: =SUMIFS(BD_Gastos!$M$5:$M$3025,BD_Gastos!$B$5:$B$3025,Presupuesto!U$28,BD_Gastos!$E$5:$E$3025,Presupuesto!$B44) -> 152330787 | V44: =SUMIFS(BD_Gastos!$M$5:$M$3025,BD_Gastos!$B$5:$B$3025,Presupuesto!V$28,BD_Gastos!$E$5:$E$3025,Presupuesto!$B44) -> 293210169 | W44: =SUMIFS(BD_Gastos!$M$5:$M$3025,BD_Gastos!$B$5:$B$3025,Presupuesto!W$28,BD_Gastos!$E$5:$E$3025,Presupuesto!$B44) -> 26797873 | X44: =SUMIFS(BD_Gastos!$M$5:$M$3025,BD_Gastos!$B$5:$B$3025,Presupuesto!X$28,BD_Gastos!$E$5:$E$3025,Presupuesto!$B44) -> 25503793 | Y44: =SUMIFS(BD_Gastos!$M$5:$M$3025,BD_Gastos!$B$5:$B$3025,Presupuesto!Y$28,BD_Gastos!$E$5:$E$3025,Presupuesto!$B44) -> 388078875 | Z44: 1920993490 | AA44: 0.5388211873 | AB44: 0.07929791943 | AC44: 0.15263465 | AD44: 0.01395000719 | AE44: 0.01327635577 | AF44: 0.2020198803 | AG44: 1 | AI44: 1.031105513 | AJ44: 1067268438 | AK44: 913478539.8 | AL44: 204632453 | AM44: 885921497
B45: TOTAL | D45: =SUM(D29:D44) -> 8441537919 | E45: 1.835938795e+10 | F45: 6153234875 | G45: 889403530 | H45: 500000000 | I45: 618207392 | J45: 310000000 | K45: 5301000000 | L45: =SUM(L29:L44) -> 340000000 | M45: =SUM(M29:M44) -> 2.574202635e+10 | N45: =SUM(N29:N44) -> 1.517074531e+10 | O45: =SUM(O29:O44) -> 4.091277167e+10 | P45: =SUM(P29:P44) -> 1 | Q45: 1 | R45: 1 | T45: =SUM(T29:T44) -> 19426006158 | U45: =SUM(U29:U44) -> 2591450917 | V45: =SUM(V29:V44) -> 7016652610 | W45: =SUM(W29:W44) -> 1966028585 | X45: =SUM(X29:X44) -> 308240581 | Y45: =SUM(Y29:Y44) -> 9269611524 | Z45: 40577990375 | AA45: 0.4787325833 | AB45: 0.06386346128 | AC45: 0.1729176961 | AD45: 0.0484506149 | AE45: 0.007596250533 | AF45: 0.2284393938 | AG45: 1
B48: Cálculo de presupuesto 2019 y fórmula de repartición
B51: Fondo | D51: ¿En fórmula para 2019? | E51: Incremento para 2019
B52: Erogaciones Previstas (Art 7) | C52: CDMX | D52: 1 | E52: 1.08
C53: Participaciones Federales | D53: 1 | E53: 1.08
C54: FORTAMUN (Federal) | D54: 0 | E54: 1.08
B55: Más Erogaciones Previstas (Arts 8 y 13) | C55: FISM (FAIS Federal) | D55: 0 | E55: 1.08
C56: Fondo de Inversión | D56: 1 | E56: 1.08
C57: Aplicación Automática | D57: 1 | E57: 1.08
C58: Operación | D58: 1 | E58: 1.08
C59: Adicionales | D59: 1 | E59: 1.08
B60: Ramo 23 | C60: Ramo 23 | D60: 0 | E60: 1.08
B62: A) Modelo ideal, sin gasto inercial (sin 2018)
B64: Ajuste por rubro | G64: Calibrar escenario ideal
B66: Rubro | C66: Ajuste (sobre gasto real 2018) | D66: Total gasto (Pesos) | E66: % | G66: % buscado | H66: Dif^2 | I66: Total gasto (Pesos)
B67: Administración y gobierno | C67: 0.5394111814 | D67: ='Modelo (Ideal)'!E139 -> 1.420229663e+10 | E67: =D67/$D$71 -> 0.35 | G67: 0.4 | H67: =(E67-G67)^2 -> 0.0025 | I67: =G67*$I$71 -> 16231196150
B68: Servicios públicos e infraestructura urbana | C68: 1.175469935 | D68: ='Modelo (Ideal)'!E140 -> 1.420229663e+10 | E68: =D68/$D$71 -> 0.35 | G68: 0.2 | H68: =(E68-G68)^2 -> 0.0225 | I68: =G68*$I$71 -> 8115598075
B69: Programas sociales | C69: 2.854078872 | D69: ='Modelo (Ideal)'!E141 -> 6086698556 | E69: 0.15 | G69: 0.2 | H69: 0.0025 | I69: 8115598075
B70: Protección al medio ambiente | C70: 179.7051249 | D70: ='Modelo (Ideal)'!E142 -> 6086698556 | E70: 0.15 | G70: 0.2 | H70: 0.0025 | I70: 8115598075
D71: =SUM(D67:D70) -> 40577990375 | G71: =SUM(G67:G70) -> 1 | H71: =SUM(H67:H70) -> 0.03 | I71: ='Modelo (Ideal)'!E143 -> 40577990375
B73: Coeficientes de la fórmula de repartición
B75: Variable | C75: Total costo | D75: Coeficientes
A76: 𝜶1 | B76: Población | C76: ='Modelo (Ideal)'!D148 -> 2.050276942e+10 | D76: ='Modelo (Ideal)'!E148 -> 0.5052682311
A77: 𝜶2 | B77: Población pobreza (coneval) | C77: ='Modelo (Ideal)'!D149 -> 3055621846 | D77: ='Modelo (Ideal)'!E149 -> 0.07530244396
A78: 𝜶3 | B78: Población flotante | C78: ='Modelo (Ideal)'!D150 -> 4177583303 | D78: ='Modelo (Ideal)'!E150 -> 0.1029519517
A79: 𝜶4 | B79: Superficie urbana | C79: ='Modelo (Ideal)'!D151 -> 6042266655 | D79: ='Modelo (Ideal)'!E151 -> 0.1489050246
A80: 𝜶5 | B80: Superficie Área verde alcaldía | C80: ='Modelo (Ideal)'!D152 -> 3756399872 | D80: ='Modelo (Ideal)'!E152 -> 0.09257234863
A81: 𝜶6 | B81: Superficie de suelo de conservación | C81: ='Modelo (Ideal)'!D153 -> 3043349278 | D81: ='Modelo (Ideal)'!E153 -> 0.075
D82: =SUM(D76:D81) -> 1
B84: Presupuesto 2019
E86: 1 | F86: 2 | G86: 3 | H86: 4 | I86: 5 | J86: 6 | K86: 7 | L86: 8 | M86: 9
B87: Clave | C87: Delegación | D87: Fórmula repartición 2019 | E87: Erogaciones Previstas (Art 7) | H87: Más Erogaciones Previstas (Arts 8 y 13) | M87: Ramo 23 (estimado) | N87: Total | R87: Comparación vs. Presupuesto 2018 real
D88: Valor de 𝜷𝒊 | E88: CDMX | F88: Participaciones Federales | G88: FORTAMUN (Federal) | H88: FISM (FAIS Federal) | I88: Fondo de Inversión | J88: Aplicación Automática (estimado) | K88: Operación | L88: Adicionales | N88: Federal | O88: CMDX | P88: Total | R88: Total | S88: Cambio nominal | T88: Cambio porcentual
B89: 02CD01 | C89: =VLOOKUP(B89,$B$7:$C$22,2,FALSE) -> Álvaro Obregón | D89: =SUMPRODUCT(TRANSPOSE(J7:O7),$D$76:$D$81) -> 0.08206793951 | E89: =IF(INDEX($D$52:$D$60,E$86,1)=1,D$45*$D89,D29)*INDEX($E$52:$E$60,E$86,1) -> 748201993.2 | F89: =IF(INDEX($D$52:$D$60,F$86,1)=1,E$45*$D89,E29)*INDEX($E$52:$E$60,F$86,1) -> 1627254511 | G89: 558828853.5 | H89: 68582882.23 | I89: 44316687.33 | J89: 54793807.4 | K89: 27476346.15 | L89: 469845519.1 | M89: =IF(INDEX($D$52:$D$60,M$86,1)=1,L$45*$D89,L29)*INDEX($E$52:$E$60,M$86,1) -> 1012500 | N89: =F89+G89+H89+M89 -> 2255678747 | O89: =P89-N89 -> 1344634353 | P89: =SUM(E89:M89) -> 3600313100 | R89: =O29 -> 2997817367 | S89: =P89-R89 -> 602495733 | T89: =(P89-R89)/R89 -> 0.2009781315 | V89: =S89/1000000 -> 602.495733 | W89: =ABS(T89) -> 0.2009781315
B90: 02CD02 | C90: =VLOOKUP(B90,$B$7:$C$22,2,FALSE) -> Azcapotzalco | D90: =SUMPRODUCT(TRANSPOSE(J8:O8),$D$76:$D$81) -> 0.03945350387 | E90: =IF(INDEX($D$52:$D$60,E$86,1)=1,D$45*$D90,D30)*INDEX($E$52:$E$60,E$86,1) -> 359692108.9 | F90: 782289558.2 | G90: 298169173.2 | H90: 25233444.14 | I90: 21304892.09 | J90: 26341683.55 | K90: 13209033.1 | L90: 225874465.9 | M90: 61492500 | N90: 1167184676 | O90: =P90-N90 -> 646422183.6 | P90: 1813606859 | R90: 1907165241 | S90: =P90-R90 -> -93558381.99 | T90: -0.04905625374 | V90: =S90/1000000 -> -93.55838199 | W90: =ABS(T90) -> 0.04905625374
B91: 02CD03 | C91: Benito Juárez | D91: =SUMPRODUCT(TRANSPOSE(J9:O9),$D$76:$D$81) -> 0.0419244653 | E91: =IF(INDEX($D$52:$D$60,E$86,1)=1,D$45*$D91,D31)*INDEX($E$52:$E$60,E$86,1) -> 382219520.6 | F91: 831284124.8 | G91: 311026270.9 | H91: 23222711.33 | I91: 22639211.26 | J91: 27991455.5 | K91: 14036310.98 | L91: 240020917.8 | M91: 25312500 | N91: 1190845607 | O91: 686907416.2 | P91: 1877753023 | R91: 2205591963 | S91: -327838940.2 | T91: -0.148639887 | V91: -327.8389402 | W91: 0.148639887
B92: 02CD04 | C92: Coyoacán | D92: =SUMPRODUCT(TRANSPOSE(J10:O10),$D$76:$D$81) -> 0.06459989495 | E92: =IF(INDEX($D$52:$D$60,E$86,1)=1,D$45*$D92,D32)*INDEX($E$52:$E$60,E$86,1) -> 588948259.9 | F92: 1280895696 | G92: 453391710.7 | H92: 36195832.03 | I92: 34883943.28 | J92: 43131023.19 | K92: 21628044.83 | L92: 369839566.6 | M92: 1012500 | N92: 1771495738 | O92: 1058430838 | P92: 2829926576 | R92: 2691982419 | S92: 137944156.8 | T92: 0.05124259201 | V92: 137.9441568 | W92: 0.05124259201
B93: 02CD05 | C93: Cuajimalpa de Morelos | D93: =SUMPRODUCT(TRANSPOSE(J11:O11),$D$76:$D$81) -> 0.03409207032 | E93: =IF(INDEX($D$52:$D$60,E$86,1)=1,D$45*$D93,D33)*INDEX($E$52:$E$60,E$86,1) -> 310812664.7 | F93: 675982308.7 | G93: 148446388.7 | H93: 24816486.35 | I93: 18409717.97 | J93: 22762047.47 | K93: 11414025.14 | L93: 195179830 | M93: 17212500 | N93: 866457683.7 | O93: 558578285.3 | P93: 1425035969 | R93: 1700280399 | S93: -275244430.1 | T93: -0.1618817874 | V93: -275.2444301 | W93: 0.1618817874
B94: 02CD06 | C94: Cuauhtémoc | D94: =SUMPRODUCT(TRANSPOSE(J12:O12),$D$76:$D$81) -> 0.06497594101 | E94: =IF(INDEX($D$52:$D$60,E$86,1)=1,D$45*$D94,D34)*INDEX($E$52:$E$60,E$86,1) -> 592376619.5 | F94: 1288351989 | G94: 396817500.2 | H94: 51121251.25 | I94: 35087008.15 | J94: 43382095.6 | K94: 21753945.05 | L94: 371992460.4 | M94: 61492500 | N94: 1797783241 | O94: 1064592129 | P94: 2862375369 | R94: 3307125118 | S94: -444749748.7 | T94: -0.1344822868 | V94: -444.7497487 | W94: 0.1344822868
B95: 02CD07 | C95: Gustavo A. Madero | D95: =SUMPRODUCT(TRANSPOSE(J13:O13),$D$76:$D$81) -> 0.1185722263 | E95: =IF(INDEX($D$52:$D$60,E$86,1)=1,D$45*$D95,D35)*INDEX($E$52:$E$60,E$86,1) -> 1081006500 | F95: 2351066583 | G95: 867678620.1 | H95: 116498445.1 | I95: 64029002.21 | J95: 79166404.94 | K95: 39697981.37 | L95: 678835481.5 | M95: 1012500 | N95: 3336256149 | O95: 1942735370 | P95: 5278991519 | R95: 4484968630 | S95: 794022889 | T95: 0.1770409014 | V95: 794.022889 | W95: 0.1770409014
B96: 02CD08 | C96: Iztacalco | D96: =SUMPRODUCT(TRANSPOSE(J14:O14),$D$76:$D$81) -> 0.03395210486 | E96: =IF(INDEX($D$52:$D$60,E$86,1)=1,D$45*$D96,D36)*INDEX($E$52:$E$60,E$86,1) -> 309536619 | F96: 673207053.9 | G96: 290857281 | H96: 24295533.07 | I96: 18334136.62 | J96: 22668597.57 | K96: 11367164.71 | L96: 194378516.5 | M96: 1012500 | N96: 989372368 | O96: 556285034.4 | P96: 1545657402 | R96: 1978704963 | S96: -433047560.6 | T96: -0.2188540327 | V96: -433.0475606 | W96: 0.2188540327
B97: 02CD09 | C97: Iztapalapa | D97: =SUMPRODUCT(TRANSPOSE(J15:O15),$D$76:$D$81) -> 0.1654066855 | E97: =IF(INDEX($D$52:$D$60,E$86,1)=1,D$45*$D97,D37)*INDEX($E$52:$E$60,E$86,1) -> 1507989752 | F97: 3279706749 | G97: 1361986525 | H97: 237196568.6 | I97: 89319610.17 | J97: 110436086.5 | K97: 55378158.3 | L97: 946966507 | M97: 1012500 | N97: 4879902343 | O97: 2710090114 | P97: 7589992457 | R97: 5384945939 | S97: 2205046517 | T97: 0.4094835013 | V97: 2205.046517 | W97: 0.4094835013
B98: 02CD10 | C98: La Magdalena Contreras | D98: =SUMPRODUCT(TRANSPOSE(J16:O16),$D$76:$D$81) -> 0.02895662853 | E98: =IF(INDEX($D$52:$D$60,E$86,1)=1,D$45*$D98,D38)*INDEX($E$52:$E$60,E$86,1) -> 263993556 | F98: 574156055.1 | G98: 181725073.1 | H98: 30139837.62 | I98: 15636579.41 | J98: 19333297.95 | K98: 9694679.233 | L98: 165779014.9 | M98: 1012500 | N98: 787033465.8 | O98: 474437127.5 | P98: 1261470593 | R98: 1659323463 | S98: -397852869.7 | T98: -0.2397681215 | V98: -397.8528697 | W98: 0.2397681215
B99: 02CD11 | C99: Miguel Hidalgo | D99: =SUMPRODUCT(TRANSPOSE(J17:O17),$D$76:$D$81) -> 0.05292299174 | E99: =IF(INDEX($D$52:$D$60,E$86,1)=1,D$45*$D99,D39)*INDEX($E$52:$E$60,E$86,1) -> 482491556.9 | F99: 1049364436 | G99: 271551888.6 | H99: 18088832.45 | I99: 28578415.54 | J99: 35334775.48 | K99: 17718617.63 | L99: 302988361.6 | M99: 9112500 | N99: 1348117657 | O99: 867111727.1 | P99: 2215229384 | R99: 2339514151 | S99: -124284766.9 | T99: -0.05312417832 | V99: -124.2847669 | W99: 0.05312417832
B100: 02CD12 | C100: Milpa Alta | D100: =SUMPRODUCT(TRANSPOSE(J18:O18),$D$76:$D$81) -> 0.04008721172 | E100: =IF(INDEX($D$52:$D$60,E$86,1)=1,D$45*$D100,D40)*INDEX($E$52:$E$60,E$86,1) -> 365469535.3 | F100: 794854805.6 | G100: 102772582.9 | H100: 49087458.57 | I100: 21647094.33 | J100: 26764787.46 | K100: 13421198.48 | L100: 229502494.1 | M100: 1012500 | N100: 947727347.1 | O100: 656805109.6 | P100: 1604532457 | R100: 1365502574 | S100: 239029883.2 | T100: 0.175049017 | V100: 239.0298832 | W100: 0.175049017
B101: 02CD13 | C101: Tláhuac | D101: =SUMPRODUCT(TRANSPOSE(J19:O19),$D$76:$D$81) -> 0.0404929113 | E101: =IF(INDEX($D$52:$D$60,E$86,1)=1,D$45*$D101,D41)*INDEX($E$52:$E$60,E$86,1) -> 369168241.9 | F101: 802899073.2 | G101: 269431268.5 | H101: 52311361.84 | I101: 21866172.1 | J101: 27035658.46 | K101: 13557026.7 | L101: 231825156.6 | M101: 61492500 | N101: 1186134204 | O101: 663452255.8 | P101: 1849586459 | R101: 1684008350 | S101: 165578109.2 | T101: 0.09832380531 | V101: 165.5781092 | W101: 0.09832380531
B102: 02CD14 | C102: Tlalpan | D102: =SUMPRODUCT(TRANSPOSE(J20:O20),$D$76:$D$81) -> 0.09578044251 | E102: =IF(INDEX($D$52:$D$60,E$86,1)=1,D$45*$D102,D42)*INDEX($E$52:$E$60,E$86,1) -> 873216976.4 | F102: 1899147926 | G102: 504525778 | H102: 80227272.64 | I102: 51721438.96 | J102: 63949151.78 | K102: 32067292.15 | L102: 548350695.8 | M102: 61492500 | N102: 2545393477 | O102: 1569305555 | P102: 4114699032 | R102: 2477472432 | S102: 1637226600 | T102: 0.6608455373 | V102: 1637.2266 | W102: 0.6608455373
B103: 02CD15 | C103: Venustiano Carranza | D103: =SUMPRODUCT(TRANSPOSE(J21:O21),$D$76:$D$81) -> 0.04264162449 | E103: =IF(INDEX($D$52:$D$60,E$86,1)=1,D$45*$D103,D43)*INDEX($E$52:$E$60,E$86,1) -> 388757761.3 | F103: 845504057 | G103: 318363497.3 | H103: 46867540.38 | I103: 23026477.23 | J103: 28470276.87 | K103: 14276415.88 | L103: 244126711.5 | M103: 1012500 | N103: 1211747595 | O103: 698657642.8 | P103: 1910405238 | R103: 2747621679 | S103: -837216441.2 | T103: -0.3047058653 | V103: -837.2164412 | W103: 0.3047058653
B104: 02CD16 | C104: Xochimilco | D104: =SUMPRODUCT(TRANSPOSE(J22:O22),$D$76:$D$81) -> 0.05407335806 | E104: =IF(INDEX($D$52:$D$60,E$86,1)=1,D$45*$D104,D44)*INDEX($E$52:$E$60,E$86,1) -> 492979286.7 | F104: 1072174059 | G104: 309921253.5 | H104: 76670354.75 | I104: 29199613.35 | J104: 36102833.64 | K104: 18103760.28 | L104: 309574300.8 | M104: 61492500 | N104: 1520258167 | O104: 885959794.8 | P104: 2406217962 | R104: 1980746978 | S104: 425470983.8 | T104: 0.2148032982 | V104: 425.4709838 | W104: 0.2148032982
B105: TOTAL | E105: =SUM(E89:E104) -> 9116860953 | F105: 1.982813899e+10 | G105: 6645493665 | H105: 960555812.4 | I105: 540000000 | J105: 667663983.4 | K105: 334800000 | L105: 5725080000 | M105: =SUM(M89:M104) -> 367200000 | N105: =SUM(N89:N104) -> 2.780138846e+10 | O105: =SUM(O89:O104) -> 1.638440494e+10 | P105: =SUM(P89:P104) -> 4.41857934e+10 | R105: =SUM(R89:R104) -> 4.091277167e+10 | S105: 3273021733 | T105: 0.08
B108: B) Modelo con gasto inercial (constante)
B110: Restricciones de cambio respecto a presupuesto real del 2018 (máximos y mínimos)
B112: Clave | C112: Delegación | D112: Mínimo | E112: Máximo | F112: Mínimo | G112: Máximo
B113: 02CD01 | C113: =C89 -> Álvaro Obregón | D113: 0 | E113: 0.15 | F113: =$O29*(1+D113) -> 2997817367 | G113: =$O29*(1+E113) -> 3447489972
B114: 02CD02 | C114: Azcapotzalco | D114: 0 | E114: 0.15 | F114: 1907165241 | G114: 2193240027
B115: 02CD03 | C115: Benito Juárez | D115: 0 | E115: 0.15 | F115: 2205591963 | G115: 2536430758
B116: 02CD04 | C116: Coyoacán | D116: 0 | E116: 0.15 | F116: 2691982419 | G116: 3095779782
B117: 02CD05 | C117: Cuajimalpa de Morelos | D117: 0 | E117: 0.15 | F117: 1700280399 | G117: 1955322459
B118: 02CD06 | C118: Cuauhtémoc | D118: 0 | E118: 0.15 | F118: 3307125118 | G118: 3803193886
B119: 02CD07 | C119: Gustavo A. Madero | D119: 0 | E119: 0.15 | F119: 4484968630 | G119: 5157713924
B120: 02CD08 | C120: Iztacalco | D120: 0 | E120: 0.15 | F120: 1978704963 | G120: 2275510707
B121: 02CD09 | C121: Iztapalapa | D121: 0 | E121: 0.15 | F121: 5384945939 | G121: 6192687830
B122: 02CD10 | C122: La Magdalena Contreras | D122: 0 | E122: 0.15 | F122: 1659323463 | G122: 1908221983
B123: 02CD11 | C123: Miguel Hidalgo | D123: 0 | E123: 0.15 | F123: 2339514151 | G123: 2690441274
B124: 02CD12 | C124: Milpa Alta | D124: 0 | E124: 0.15 | F124: 1365502574 | G124: 1570327960
B125: 02CD13 | C125: Tláhuac | D125: 0 | E125: 0.15 | F125: 1684008350 | G125: 1936609603
B126: 02CD14 | C126: Tlalpan | D126: 0 | E126: 0.15 | F126: 2477472432 | G126: 2849093296
B127: 02CD15 | C127: Venustiano Carranza | D127: 0 | E127: 0.15 | F127: 2747621679 | G127: 3159764931
B128: 02CD16 | C128: Xochimilco | D128: 0 | E128: 0.15 | F128: 1980746978 | G128: 2277859025
B130: Calibración del modelo de transición
B132: Modelo de constante | C132: Global
B134: Ajuste por rubro | E134: 0
D135: Para buscar escenario:
B136: Rubro | C136: Ajuste (sobre gasto real 2018) | D136: Mínimo | E136: Máximo | F136: Total gasto 2018 ajustado (Pesos) | G136: %
B137: Coeficiente global 𝝁 | C137: 0.9026231746 | D137: 0.48 | E137: 0.95
B138: Administración y gobierno | C138: 0.7705873578 | D138: =C67*(1-$E$134) -> 0.5394111814 | E138: =C67*(1+$E$134) -> 0.5394111814 | F138: ='Modelo (Ajuste)'!D139 -> 2.07799927e+10 | G138: =F138/$F$142 -> 0.3501777289
B139: Servicios públicos e infraestructura urbana | C139: 1.007545364 | D139: =C68*(1-$E$134) -> 1.175469935 | E139: =C68*(1+$E$134) -> 1.175469935 | F139: ='Modelo (Ajuste)'!D140 -> 9094079199 | G139: =F139/$F$142 -> 0.153250487
B140: Programas sociales | C140: 1.902719389 | D140: 2.854078872 | E140: 2.854078872 | F140: ='Modelo (Ajuste)'!D141 -> 8390332930 | G140: 0.141391182
B141: Protección al medio ambiente | C141: 119.803517 | D141: 179.7051249 | E141: 179.7051249 | F141: ='Modelo (Ajuste)'!D142 -> 2.107686957e+10 | G141: 0.3551806021
F142: =SUM(F138:F141) -> 5.93412744e+10 | G142: =SUM(G138:G141) -> 1
B144: Parte fija de cada delegación (para modelo "Por alcaldía", no efectivo para "Global")
B146: Clave | C146: Delegación | D146: Parte fija
B147: 02CD01 | C147: =VLOOKUP(B147,$B$7:$C$22,2,FALSE) -> Álvaro Obregón | D147: =AA29 -> 0.3895220648
B148: 02CD02 | C148: =VLOOKUP(B148,$B$7:$C$22,2,FALSE) -> Azcapotzalco | D148: =AA30 -> 0.5320632951
B149: 02CD03 | C149: Benito Juárez | D149: 0.5110792527
B150: 02CD04 | C150: Coyoacán | D150: 0.4690453134
B151: 02CD05 | C151: Cuajimalpa de Morelos | D151: 0.4937051956
B152: 02CD06 | C152: Cuauhtémoc | D152: 0.6200445855
B153: 02CD07 | C153: Gustavo A. Madero | D153: 0.4736562879
B154: 02CD08 | C154: Iztacalco | D154: 0.4982010644
B155: 02CD09 | C155: Iztapalapa | D155: 0.3797851872
B156: 02CD10 | C156: La Magdalena Contreras | D156: 0.4018692702
B157: 02CD11 | C157: Miguel Hidalgo | D157: 0.4258546584
B158: 02CD12 | C158: Milpa Alta | D158: 0.5015298983
B159: 02CD13 | C159: Tláhuac | D159: 0.5974409313
B160: 02CD14 | C160: Tlalpan | D160: 0.4050941513
B161: 02CD15 | C161: Venustiano Carranza | D161: 0.5669381297
B162: 02CD16 | C162: Xochimilco | D162: 0.5388211873
B164: Coeficientes de la fórmula de repartición
B166: Variable | C166: Total costo | D166: Coeficientes
A167: 𝜶1 | B167: Población | C167: ='Modelo (Ajuste)'!C148 -> 2.377067356e+10 | D167: ='Modelo (Ajuste)'!D148 -> 0.4005757173
A168: 𝜶2 | B168: Población pobreza (coneval) | C168: ='Modelo (Ajuste)'!C149 -> 4212083835 | D168: ='Modelo (Ajuste)'!D149 -> 0.07098067706
A169: 𝜶3 | B169: Población flotante | C169: ='Modelo (Ajuste)'!C150 -> 5956051962 | D169: ='Modelo (Ajuste)'!D150 -> 0.100369465
A170: 𝜶4 | B170: Superficie urbana | C170: ='Modelo (Ajuste)'!C151 -> 3869011677 | D170: ='Modelo (Ajuste)'!D151 -> 0.0651993358
A171: 𝜶5 | B171: Superficie Área verde alcaldía | C171: ='Modelo (Ajuste)'!C152 -> 1.099501859e+10 | D171: ='Modelo (Ajuste)'!D152 -> 0.1852845039
A172: 𝜶6 | B172: Superficie de suelo de conservación | C172: ='Modelo (Ajuste)'!C153 -> 1.053843479e+10 | D172: ='Modelo (Ajuste)'!D153 -> 0.177590301
D173: =SUM(D167:D172) -> 1
B174: Presupuesto ajustado 2019
E175: 1 | F175: 2 | G175: 3 | H175: 4 | I175: 5 | J175: 6 | K175: 7 | L175: 8 | M175: 9
B176: Clave | C176: Delegación | D176: Fórmula repartición 2019 | E176: Erogaciones Previstas (Art 7) | H176: Más Erogaciones Previstas (Arts 8 y 13) | M176: Ramo 23 (estimado) | N176: Total 2019 | R176: Comparacion vs. Presupuesto real 2018 | W176: Comparación vs. Presupuesto Ideal 2019
D177: Valor de 𝜷𝒊 | E177: CDMX | F177: Participaciones Federales | G177: FORTAMUN (Federal) | H177: FISM (FAIS Federal) | I177: Fondo de Inversión | J177: Aplicación Automática (estimado) | K177: Operación | L177: Adicionales | N177: Federal | O177: CMDX | P177: Total | R177: Total | S177: Cambio nominal | T177: Cambio porcentual | U177: ¿Válido? | W177: 2019 ideal | X177: Error vs. Ideal | Y177: Dif^2
B178: 02CD01 | C178: =VLOOKUP(B178,$B$7:$C$22,2,FALSE) -> Álvaro Obregón | D178: =SUMPRODUCT(TRANSPOSE(J7:O7),$D$167:$D$172) -> 0.07986769442 | E178: =IF(INDEX($D$52:$D$60,E$175,1)=1,$C$137*IF($C$132="Global",1,$D147)*D29+$D178*(E$105-E$215),D29*INDEX($E$52:$E$60,E$175,1)) -> 445124117.9 | F178: =IF(INDEX($D$52:$D$60,F$175,1)=1,$C$137*IF($C$132="Global",1,$D147)*E29+$D178*(F$105-F$215),E29*INDEX($E$52:$E$60,F$175,1)) -> 1561925305 | G178: 558828853.5 | H178: 68582882.23 | I178: 55448550.57 | J178: 49422811.55 | K178: 21879994.22 | L178: 521896032 | M178: 1012500 | N178: =F178+G178+H178+M178 -> 2190349541 | O178: =P178-N178 -> 1093771506 | P178: =SUM(E178:M178) -> 3284121047 | R178: =O29 -> 2997817367 | S178: =P178-R178 -> 286303680.6 | T178: =(P178-R178)/R178 -> 0.09550404364 | U178: =IF(OR(P178<F113,P178>G113),0,1) -> 1 | V178: =S178/$S$194 -> 0.08747380981 | W178: =P89 -> 3600313100 | X178: =ABS(P178-W178)/W178 -> 0.08782348747 | Y178: =(P178-W178)^2 -> 9.9977414e+16
B179: 02CD02 | C179: =VLOOKUP(B179,$B$7:$C$22,2,FALSE) -> Azcapotzalco | D179: =SUMPRODUCT(TRANSPOSE(J8:O8),$D$167:$D$172) -> 0.03414555328 | E179: =IF(INDEX($D$52:$D$60,E$175,1)=1,$C$137*IF($C$132="Global",1,$D148)*D30+$D179*(E$105-E$215),D30*INDEX($E$52:$E$60,E$175,1)) -> 107500867.2 | F179: 1274477908 | G179: 298169173.2 | H179: 25233444.14 | I179: 13701730.16 | J179: 29330536.98 | K179: 19365879.26 | L179: 158473439.2 | M179: 61492500 | N179: 1659373025 | O179: =P179-N179 -> 328372452.8 | P179: 1987745478 | R179: 1907165241 | S179: =P179-R179 -> 80580236.85 | T179: =(P179-R179)/R179 -> 0.04225131368 | U179: 1 | V179: =S179/$S$194 -> 0.02461952392 | W179: 1813606859 | X179: =ABS(P179-W179)/W179 -> 0.0960178431 | Y179: 3.032425857e+16
B180: 02CD03 | C180: Benito Juárez | D180: =SUMPRODUCT(TRANSPOSE(J9:O9),$D$167:$D$172) -> 0.03657494931 | E180: =IF(INDEX($D$52:$D$60,E$175,1)=1,$C$137*IF($C$132="Global",1,$D149)*D31+$D180*(E$105-E$215),D31*INDEX($E$52:$E$60,E$175,1)) -> 181845232.4 | F180: 1218633059 | G180: 311026270.9 | H180: 23222711.33 | I180: 49352428.7 | J180: 34042707.88 | K180: 19499464.01 | L180: 404465995.6 | M180: 25312500 | N180: 1578194541 | O180: 689205828.7 | P180: 2267400370 | R180: 2205591963 | S180: 61808406.03 | T180: 0.02802349984 | U180: 1 | V180: 0.01888420276 | W180: 1877753023 | X180: 0.2075072395 | Y180: 1.518250545e+17
B181: 02CD04 | C181: Coyoacán | D181: =SUMPRODUCT(TRANSPOSE(J10:O10),$D$167:$D$172) -> 0.05936502307 | E181: =IF(INDEX($D$52:$D$60,E$175,1)=1,$C$137*IF($C$132="Global",1,$D150)*D32+$D181*(E$105-E$215),D32*INDEX($E$52:$E$60,E$175,1)) -> 666267073.2 | F181: 1085081578 | G181: 453391710.7 | H181: 36195832.03 | I181: 53630201.2 | J181: 44542994.97 | K181: 20752617.6 | L181: 502617891.9 | M181: 1012500 | N181: 1575681621 | O181: 1287810779 | P181: 2863492400 | R181: 2691982419 | S181: 171509980.5 | T181: 0.06371140439 | U181: 1 | V181: 0.05240111264 | W181: 2829926576 | X181: 0.01186102282 | Y181: 1.126664521e+15
B182: 02CD05 | C182: Cuajimalpa de Morelos | D182: =SUMPRODUCT(TRANSPOSE(J11:O11),$D$167:$D$172) -> 0.0414530255 | E182: =IF(INDEX($D$52:$D$60,E$175,1)=1,$C$137*IF($C$132="Global",1,$D151)*D33+$D182*(E$105-E$215),D33*INDEX($E$52:$E$60,E$175,1)) -> 341758450.1 | F182: 710376648 | G182: 148446388.7 | H182: 24816486.35 | I182: 36678302.9 | J182: 27704149.22 | K182: 19767693.89 | L182: 485775696.4 | M182: 17212500 | N182: 900852023.1 | O182: 911684292.5 | P182: 1812536316 | R182: 1700280399 | S182: 112255916.5 | T182: 0.06602200235 | U182: 1 | V182: 0.03429733306 | W182: 1425035969 | X182: 0.2719232041 | Y182: 1.501565186e+17
B183: 02CD06 | C183: Cuauhtémoc | D183: =SUMPRODUCT(TRANSPOSE(J12:O12),$D$167:$D$172) -> 0.05906999789 | E183: =IF(INDEX($D$52:$D$60,E$175,1)=1,$C$137*IF($C$132="Global",1,$D152)*D34+$D183*(E$105-E$215),D34*INDEX($E$52:$E$60,E$175,1)) -> 630547757.8 | F183: 1993089911 | G183: 396817500.2 | H183: 51121251.25 | I183: 30810374.47 | J183: 53547648.34 | K183: 20736395.11 | L183: 181909260.2 | M183: 61492500 | N183: 2502521163 | O183: 917551435.9 | P183: 3420072599 | R183: 3307125118 | S183: 112947480.7 | T183: 0.03415276914 | U183: 1 | V183: 0.03450862533 | W183: 2862375369 | X183: 0.1948372095 | Y183: 3.110261996e+17
B184: 02CD07 | C184: Gustavo A. Madero | D184: =SUMPRODUCT(TRANSPOSE(J13:O13),$D$167:$D$172) -> 0.113895566 | E184: =IF(INDEX($D$52:$D$60,E$175,1)=1,$C$137*IF($C$132="Global",1,$D153)*D35+$D184*(E$105-E$215),D35*INDEX($E$52:$E$60,E$175,1)) -> 1475253739 | F184: 1724589927 | G184: 867678620.1 | H184: 116498445.1 | I184: 47183638.81 | J184: 73059654.23 | K184: 23751078.53 | L184: 558404689.5 | M184: 1012500 | N184: 2709779492 | O184: 2177652800 | P184: 4887432292 | R184: 4484968630 | S184: 402463662.6 | T184: 0.08973611542 | U184: 1 | V184: 0.1229639445 | W184: 5278991519 | X184: 0.07417311148 | Y184: 1.533186278e+17
B185: 02CD08 | C185: Iztacalco | D185: =SUMPRODUCT(TRANSPOSE(J14:O14),$D$167:$D$172) -> 0.02894343084 | E185: =IF(INDEX($D$52:$D$60,E$175,1)=1,$C$137*IF($C$132="Global",1,$D154)*D36+$D185*(E$105-E$215),D36*INDEX($E$52:$E$60,E$175,1)) -> 547351840.3 | F185: 768505086.7 | G185: 290857281 | H185: 24295533.07 | I185: 30297305.42 | J185: 30690295.77 | K185: 19079831.11 | L185: 298001723.8 | M185: 1012500 | N185: 1084670401 | O185: 925420996.4 | P185: 2010091397 | R185: 1978704963 | S185: 31386434.25 | T185: 0.01586210923 | U185: 1 | V185: 0.009589436553 | W185: 1545657402 | X185: 0.3004766736 | Y185: 2.156989356e+17
B186: 02CD09 | C186: Iztapalapa | D186: =SUMPRODUCT(TRANSPOSE(J15:O15),$D$167:$D$172) -> 0.1434669165 | E186: =IF(INDEX($D$52:$D$60,E$175,1)=1,$C$137*IF($C$132="Global",1,$D155)*D37+$D186*(E$105-E$215),D37*INDEX($E$52:$E$60,E$175,1)) -> 1032254048 | F186: 2499501147 | G186: 1361986525 | H186: 237196568.6 | I186: 49806274.95 | J186: 87632474.26 | K186: 25377112.93 | L186: 681887934.4 | M186: 1012500 | N186: 4099696740 | O186: 1876957845 | P186: 5976654585 | R186: 5384945939 | S186: 591708645.5 | T186: 0.1098820029 | U186: 1 | V186: 0.1807835981 | W186: 7589992457 | X186: 0.2125611957 | Y186: 2.602859089e+18
B187: 02CD10 | C187: La Magdalena Contreras | D187: =SUMPRODUCT(TRANSPOSE(J16:O16),$D$167:$D$172) -> 0.03394928983 | E187: =IF(INDEX($D$52:$D$60,E$175,1)=1,$C$137*IF($C$132="Global",1,$D156)*D38+$D187*(E$105-E$215),D38*INDEX($E$52:$E$60,E$175,1)) -> 323131662.7 | F187: 627793274.5 | G187: 181725073.1 | H187: 30139837.62 | I187: 45927798.22 | J187: 26813306.73 | K187: 19355087.36 | L187: 478720124.7 | M187: 1012500 | N187: 840670685.2 | O187: 893947979.7 | P187: 1734618665 | R187: 1659323463 | S187: 75295201.76 | T187: 0.0453770488 | U187: 1 | V187: 0.02300479737 | W187: 1261470593 | X187: 0.3750765765 | Y187: 2.238690976e+17
B188: 02CD11 | C188: Miguel Hidalgo | D188: =SUMPRODUCT(TRANSPOSE(J17:O17),$D$167:$D$172) -> 0.05286739766 | E188: =IF(INDEX($D$52:$D$60,E$175,1)=1,$C$137*IF($C$132="Global",1,$D157)*D39+$D188*(E$105-E$215),D39*INDEX($E$52:$E$60,E$175,1)) -> 313740397.7 | F188: 1554867647 | G188: 271551888.6 | H188: 18088832.45 | I188: 18553904.82 | J188: 38648440.93 | K188: 20395333.87 | L188: 230234503.5 | M188: 9112500 | N188: 1853620868 | O188: 621572580.9 | P188: 2475193449 | R188: 2339514151 | S188: 135679298.4 | T188: 0.05799464744 | U188: 1 | V188: 0.04145383362 | W188: 2215229384 | X188: 0.1173531135 | Y188: 6.758131525e+16
B189: 02CD12 | C189: Milpa Alta | D189: =SUMPRODUCT(TRANSPOSE(J18:O18),$D$167:$D$172) -> 0.06906790154 | E189: =IF(INDEX($D$52:$D$60,E$175,1)=1,$C$137*IF($C$132="Global",1,$D158)*D40+$D189*(E$105-E$215),D40*INDEX($E$52:$E$60,E$175,1)) -> 391336152.5 | F189: 852780310.5 | G189: 102772582.9 | H189: 49087458.57 | I189: 18604184.14 | J189: 26692174.29 | K189: 21286147.99 | L189: 204849382.2 | M189: 1012500 | N189: 1005652852 | O189: 662768041.1 | P189: 1668420893 | R189: 1365502574 | S189: 302918319.6 | T189: 0.2218365058 | U189: 0 | V189: 0.09255004834 | W189: 1604532457 | X189: 0.03981747842 | Y189: 4081732315205993
B190: 02CD13 | C190: Tláhuac | D190: =SUMPRODUCT(TRANSPOSE(J19:O19),$D$167:$D$172) -> 0.04086130141 | E190: =IF(INDEX($D$52:$D$60,E$175,1)=1,$C$137*IF($C$132="Global",1,$D159)*D41+$D190*(E$105-E$215),D41*INDEX($E$52:$E$60,E$175,1)) -> 434809579.6 | F190: 782634883.1 | G190: 269431268.5 | H190: 52311361.84 | I190: 14297339.2 | J190: 26487789.64 | K190: 19735156.86 | L190: 164788086.3 | M190: 61492500 | N190: 1165870013 | O190: 660117951.6 | P190: 1825987965 | R190: 1684008350 | S190: 141979614.9 | T190: 0.08431051717 | U190: 1 | V190: 0.04337875715 | W190: 1849586459 | X190: 0.01275879487 | Y190: 5.568889302e+14
B191: 02CD14 | C191: Tlalpan | D191: =SUMPRODUCT(TRANSPOSE(J20:O20),$D$167:$D$172) -> 0.1128186401 | E191: =IF(INDEX($D$52:$D$60,E$175,1)=1,$C$137*IF($C$132="Global",1,$D160)*D42+$D191*(E$105-E$215),D42*INDEX($E$52:$E$60,E$175,1)) -> 681997604.2 | F191: 1361608077 | G191: 504525778 | H191: 80227272.64 | I191: 22065639.01 | J191: 45290825.12 | K191: 23691861.8 | L191: 232447740.7 | M191: 61492500 | N191: 2007853628 | O191: 1005493671 | P191: 3013347299 | R191: 2477472432 | S191: 535874866.9 | T191: 0.2162990232 | U191: 0 | V191: 0.1637248117 | W191: 4114699032 | X191: 0.2676627683 | Y191: 1.212975641e+18
B192: 02CD15 | C192: Venustiano Carranza | D192: =SUMPRODUCT(TRANSPOSE(J21:O21),$D$167:$D$172) -> 0.03713801836 | E192: =IF(INDEX($D$52:$D$60,E$175,1)=1,$C$137*IF($C$132="Global",1,$D161)*D43+$D192*(E$105-E$215),D43*INDEX($E$52:$E$60,E$175,1)) -> 932123873.8 | F192: 922658571.1 | G192: 318363497.3 | H192: 46867540.38 | I192: 37956660.45 | J192: 41481802.91 | K192: 19530425.39 | L192: 441100362.1 | M192: 1012500 | N192: 1288902109 | O192: 1472193125 | P192: 2761095233 | R192: 2747621679 | S192: 13473554.7 | T192: 0.004903715385 | U192: 1 | V192: 0.004116549109 | W192: 1910405238 | X192: 0.4452929563 | Y192: 7.236734691e+17
B193: 02CD16 | C193: Xochimilco | D193: =SUMPRODUCT(TRANSPOSE(J22:O22),$D$167:$D$172) -> 0.05651529423 | E193: =IF(INDEX($D$52:$D$60,E$175,1)=1,$C$137*IF($C$132="Global",1,$D162)*D44+$D193*(E$105-E$215),D44*INDEX($E$52:$E$60,E$175,1)) -> 611818556.4 | F193: 889615652.1 | G193: 309921253.5 | H193: 76670354.75 | I193: 15685666.98 | J193: 32276370.54 | K193: 20595920.09 | L193: 179507137.4 | M193: 61492500 | N193: 1337699760 | O193: 859883651.4 | P193: 2197583412 | R193: 1980746978 | S193: 216836433.5 | T193: 0.1094720506 | U193: 1 | V193: 0.06624961616 | W193: 2406217962 | X193: 0.08670642212 | Y193: 4.352837559e+16
B194: TOTAL | E194: =SUM(E178:E193) -> 9116860953 | F194: 1.982813899e+10 | G194: 6645493665 | H194: 960555812.4 | I194: 540000000 | J194: 667663983.4 | K194: 334800000 | L194: 5725080000 | M194: =SUM(M178:M193) -> 367200000 | N194: =SUM(N178:N193) -> 2.780138846e+10 | O194: =SUM(O178:O193) -> 1.638440494e+10 | P194: =SUM(P178:P193) -> 4.41857934e+10 | R194: =SUM(R178:R193) -> 4.091277167e+10 | S194: 3273021733 | T194: =(P194-R194)/R194 -> 0.08 | W194: =SUM(W178:W193) -> 4.41857934e+10 | X194: =SUMPRODUCT(X178:X193,W178:W193)/SUM(W178:W193) -> 0.1654230307 | Y194: =SUM(Y178:Y193) -> 5.992579282e+18
B196: Componente fijo del 2018
B198: Clave | C198: Delegación | E198: CDMX | F198: Participaciones Federales | G198: FORTAMUN (Federal) | H198: FISM (FAIS Federal) | I198: Fondo de Inversión | J198: Aplicación Automática (estimado) | K198: Operación | L198: Adicionales | M198: Ramo 23 | N198: Federal | O198: CMDX | P198: Total
B199: 02CD01 | C199: Álvaro Obregón | E199: =IF(INDEX($D$52:$D$60,E$175,1)=1,$C$137*D29*IF($C$132="Global",1,$D147),D29) -> 325535567.6 | F199: =IF(INDEX($D$52:$D$60,F$175,1)=1,$C$137*E29*IF($C$132="Global",1,$D147),E29) -> 1301833766 | G199: 517434123.6 | H199: 63502668.73 | I199: 48365211.53 | J199: 40664866.43 | K199: 17488324.01 | L199: 446798471.4 | M199: 937500 | N199: =F199+G199+H199+M199 -> 1883708059 | O199: =P199-N199 -> 878852441 | P199: =SUM(E199:M199) -> 2762560500
B200: 02CD02 | C200: Azcapotzalco | E200: =IF(INDEX($D$52:$D$60,E$175,1)=1,$C$137*D30*IF($C$132="Global",1,$D148),D30) -> 56373596.67 | F200: 1163281891 | G200: 276082567.8 | H200: 23364300.13 | I200: 10673415.24 | J200: 25586283.64 | K200: 17488324.01 | L200: 126367244.4 | M200: 56937500 | N200: 1519666259 | O200: =P200-N200 -> 236488864 | P200: 1756155123
B201: 02CD03 | C201: Benito Juárez | E201: =IF(INDEX($D$52:$D$60,E$175,1)=1,$C$137*D31*IF($C$132="Global",1,$D149),D31) -> 127080346.6 | F201: 1099525641 | G201: 287987287.9 | H201: 21502510.49 | I201: 46108654.5 | J201: 30032057.5 | K201: 17488324.01 | L201: 370075501.6 | M201: 23437500 | N201: 1432452939 | O201: 590784884.2 | P201: 2023237823
B202: 02CD04 | C202: Coyoacán | E202: =IF(INDEX($D$52:$D$60,E$175,1)=1,$C$137*D32*IF($C$132="Global",1,$D150),D32) -> 577377853.4 | F202: 891757602.6 | G202: 419807139.5 | H202: 33514659.29 | I202: 48365211.53 | J202: 38033283.91 | K202: 17488324.01 | L202: 446798471.4 | M202: 937500 | N202: 1346016901 | O202: 1128063144 | P202: 2474080046
B203: 02CD05 | C203: Cuajimalpa de Morelos | E203: =IF(INDEX($D$52:$D$60,E$175,1)=1,$C$137*D33*IF($C$132="Global",1,$D151),D33) -> 279689458.9 | F203: 575383628.9 | G203: 137450359.9 | H203: 22978228.11 | I203: 33001899.87 | J203: 23158590.15 | K203: 17488324.01 | L203: 446798471.4 | M203: 15937500 | N203: 751749716.9 | O203: 800136744.4 | P203: 1551886461
B204: 02CD06 | C204: Cuauhtémoc | E204: =IF(INDEX($D$52:$D$60,E$175,1)=1,$C$137*D34*IF($C$132="Global",1,$D152),D34) -> 542100289 | F204: 1800726694 | G204: 367423611.3 | H204: 47334491.9 | I204: 25571550.12 | J204: 47070288.47 | K204: 17488324.01 | L204: 126367244.4 | M204: 56937500 | N204: 2272422297 | O204: 758597696 | P204: 3031019993
B205: 02CD07 | C205: Gustavo A. Madero | E205: =IF(INDEX($D$52:$D$60,E$175,1)=1,$C$137*D35*IF($C$132="Global",1,$D153),D35) -> 1304714127 | F205: 1353685605 | G205: 803406129.7 | H205: 107868930.7 | I205: 37082421.85 | J205: 60570360.24 | K205: 17488324.01 | L205: 451311587.3 | M205: 937500 | N205: 2265898165 | O205: 1871166820 | P205: 4137064986
B206: 02CD08 | C206: Iztacalco | E206: =IF(INDEX($D$52:$D$60,E$175,1)=1,$C$137*D36*IF($C$132="Global",1,$D154),D36) -> 504013880.4 | F206: 674249937.3 | G206: 269312297.2 | H206: 22495863.95 | I206: 27730358.48 | J206: 27516484.63 | K206: 17488324.01 | L206: 270786952.4 | M206: 937500 | N206: 966995598.5 | O206: 847535999.9 | P206: 1814531598
B207: 02CD09 | C207: Iztapalapa | E207: =IF(INDEX($D$52:$D$60,E$175,1)=1,$C$137*D37*IF($C$132="Global",1,$D155),D37) -> 817436271.1 | F207: 2032296836 | G207: 1261098634 | H207: 219626452.4 | I207: 37082421.85 | J207: 71900514.17 | K207: 17488324.01 | L207: 546989643.8 | M207: 937500 | N207: 3513959423 | O207: 1490897175 | P207: 5004856598
B208: 02CD10 | C208: La Magdalena Contreras | E208: =IF(INDEX($D$52:$D$60,E$175,1)=1,$C$137*D38*IF($C$132="Global",1,$D156),D38) -> 272298264 | F208: 517236395.3 | G208: 168263956.6 | H208: 27907257.06 | I208: 42916889.59 | J208: 23090574.79 | K208: 17488324.01 | L208: 446798471.4 | M208: 937500 | N208: 714345108.9 | O208: 802592523.8 | P208: 1516937633
B209: 02CD11 | C209: Miguel Hidalgo | E209: =IF(INDEX($D$52:$D$60,E$175,1)=1,$C$137*D39*IF($C$132="Global",1,$D157),D39) -> 234580288.1 | F209: 1382703383 | G209: 251436933.9 | H209: 16748918.93 | I209: 13865179.24 | J209: 32851231.3 | K209: 17488324.01 | L209: 180524634.9 | M209: 8437500 | N209: 1659326736 | O209: 479309657.6 | P209: 2138636394
B210: 02CD12 | C210: Milpa Alta | E210: =IF(INDEX($D$52:$D$60,E$175,1)=1,$C$137*D40*IF($C$132="Global",1,$D158),D40) -> 287918490.6 | F210: 627858620.5 | G210: 95159798.99 | H210: 45451350.53 | I210: 12478661.59 | J210: 19118487.64 | K210: 17488324.01 | L210: 139906592.1 | M210: 937500 | N210: 769407270 | O210: 476910555.9 | P210: 1246317826
B211: 02CD13 | C211: Tláhuac | E211: =IF(INDEX($D$52:$D$60,E$175,1)=1,$C$137*D41*IF($C$132="Global",1,$D159),D41) -> 373626596.5 | F211: 649568831.2 | G211: 249473396.8 | H211: 48436446.15 | I211: 10673415.24 | J211: 22007116.48 | K211: 17488324.01 | L211: 126367244.4 | M211: 56937500 | N211: 1004416174 | O211: 550162696.7 | P211: 1554578871
B212: 02CD14 | C212: Tlalpan | E212: =IF(INDEX($D$52:$D$60,E$175,1)=1,$C$137*D42*IF($C$132="Global",1,$D160),D42) -> 513070509 | F212: 994210796.5 | G212: 467153498.1 | H212: 74284511.7 | I212: 12059932.89 | J212: 32919622.15 | K212: 17488324.01 | L212: 126367244.4 | M212: 56937500 | N212: 1592586306 | O212: 701905632.5 | P212: 2294491939
B213: 02CD15 | C213: Venustiano Carranza | E213: =IF(INDEX($D$52:$D$60,E$175,1)=1,$C$137*D43*IF($C$132="Global",1,$D161),D43) -> 876515886 | F213: 801717502 | G213: 294781016 | H213: 43395870.72 | I213: 34662948.55 | J213: 37409408.83 | K213: 17488324.01 | L213: 406180428.6 | M213: 937500 | N213: 1140831889 | O213: 1372256996 | P213: 2513088885
B214: 02CD16 | C214: Xochimilco | E214: =IF(INDEX($D$52:$D$60,E$175,1)=1,$C$137*D44*IF($C$132="Global",1,$D162),D44) -> 527196330.2 | F214: 705571903.8 | G214: 286964123.6 | H214: 70991069.21 | I214: 10673415.24 | J214: 26079148.39 | K214: 17488324.01 | L214: 126367244.4 | M214: 56937500 | N214: 1120464597 | O214: 707804462.3 | P214: 1828269059
E215: =SUM(E199:E214) -> 7619527755 | F215: 1.657160903e+10 | G215: 6153234875 | H215: 889403530 | I215: 451311587.3 | J215: 558008318.7 | K215: 279813184.1 | L215: 4784805449 | M215: 340000000 | N215: 2.395424744e+10 | O215: 1.369346629e+10 | P215: 3.764771373e+10
B217: Componente repartido para el 2019
B219: Clave | C219: Delegación | E219: CDMX | F219: Participaciones Federales | G219: FORTAMUN (Federal) | H219: FISM (FAIS Federal) | I219: Fondo de Inversión | J219: Aplicación Automática (estimado) | K219: Operación | L219: Adicionales | M219: Ramo 23 | N219: Federal | O219: CMDX | P219: Total
B220: 02CD01 | C220: Álvaro Obregón | E220: =E178-E199 -> 119588550.3 | F220: =F178-F199 -> 260091539 | G220: 41394729.89 | H220: 5080213.498 | I220: 7083339.044 | J220: 8757945.114 | K220: 4391670.207 | L220: 75097560.55 | M220: 75000 | N220: =F220+G220+H220+M220 -> 306641482.4 | O220: =P220-N220 -> 214919065.2 | P220: =SUM(E220:M220) -> 521560547.6
B221: 02CD02 | C221: Azcapotzalco | E221: =E179-E200 -> 51127270.49 | F221: 111196017 | G221: 22086605.42 | H221: 1869144.01 | I221: 3028314.922 | J221: 3744253.34 | K221: 1877555.251 | L221: 32106194.8 | M221: 4555000 | N221: 139706766.4 | O221: =P221-N221 -> 91883588.8 | P221: 231590355.2
B222: 02CD03 | C222: Benito Juárez | E222: =E180-E201 -> 54764885.8 | F222: 119107417.9 | G222: 23038983.03 | H222: 1720200.839 | I222: 3243774.199 | J222: 4010650.375 | K222: 2011140.003 | L222: 34390494.06 | M222: 1875000 | N222: 145741601.7 | O222: 98420944.43 | P222: 244162546.2
B223: 02CD04 | C223: Coyoacán | E223: =E181-E202 -> 88889219.82 | F223: 193323975.7 | G223: 33584571.16 | H223: 2681172.743 | I223: 5264989.666 | J223: 6509711.06 | K223: 3264293.593 | L223: 55819420.44 | M223: 75000 | N223: 229664719.6 | O223: 159747634.6 | P223: 389412354.1
B224: 02CD05 | C224: Cuajimalpa de Morelos | E224: =E182-E203 -> 62068991.23 | F224: 134993019.1 | G224: 10996028.79 | H224: 1838258.248 | I224: 3676403.033 | J224: 4545559.062 | K224: 2279369.881 | L224: 38977224.96 | M224: 1275000 | N224: 149102306.1 | O224: 111547548.2 | P224: 260649854.3
B225: 02CD06 | C225: Cuauhtémoc | E225: =E183-E204 -> 88447468.82 | F225: 192363217.3 | G225: 29393888.9 | H225: 3786759.352 | I225: 5238824.351 | J225: 6477359.878 | K225: 3248071.098 | L225: 55542015.77 | M225: 4555000 | N225: 230098865.6 | O225: 158953739.9 | P225: 389052605.5
B226: 02CD07 | C226: Gustavo A. Madero | E226: =E184-E205 -> 170539612.1 | F226: 370904322 | G226: 64272490.37 | H226: 8629514.455 | I226: 10101216.96 | J226: 12489293.99 | K226: 6262754.517 | L226: 107093102.2 | M226: 75000 | N226: 443881326.8 | O226: 306485979.8 | P226: 750367306.6
B227: 02CD08 | C227: Iztacalco | E227: =E185-E206 -> 43337959.86 | F227: 94255149.43 | G227: 21544983.78 | H227: 1799669.116 | I227: 2566946.94 | J227: 3173811.146 | K227: 1591507.103 | L227: 27214771.46 | M227: 75000 | N227: 117674802.3 | O227: 77884996.5 | P227: 195559798.8
B228: 02CD09 | C228: Iztapalapa | E228: =E186-E207 -> 214817776.9 | F228: 467204310.6 | G228: 100887890.7 | H228: 17570116.19 | I228: 12723853.1 | J228: 15731960.08 | K228: 7888788.922 | L228: 134898290.6 | M228: 75000 | N228: 585737317.5 | O228: 386060669.5 | P228: 971797987
B229: 02CD10 | C229: La Magdalena Contreras | E229: =E187-E208 -> 50833398.7 | F229: 110556879.1 | G229: 13461116.52 | H229: 2232580.564 | I229: 3010908.628 | J229: 3722731.94 | K229: 1866763.349 | L229: 31921653.27 | M229: 75000 | N229: 126325576.2 | O229: 91355455.89 | P229: 217681032.1
B230: 02CD11 | C230: Miguel Hidalgo | E230: =E188-E209 -> 79160109.6 | F230: 172164263.9 | G230: 20114954.71 | H230: 1339913.514 | I230: 4688725.582 | J230: 5797209.628 | K230: 2907009.861 | L230: 49709868.63 | M230: 675000 | N230: 194294132.1 | O230: 142262923.3 | P230: 336557055.4
B231: 02CD12 | C231: Milpa Alta | E231: =E189-E210 -> 103417661.9 | F231: 224921690 | G231: 7612783.919 | H231: 3636108.042 | I231: 6125522.557 | J231: 7573686.649 | K231: 3797823.985 | L231: 64942790.14 | M231: 75000 | N231: 236245582 | O231: 185857485.2 | P231: 422103067.2
... 5 more rows

Sheet Modelo (Ajuste)
B2: Variables dimensionales
K3: Gasto estimado histórico 2018 por variable
B4: ID | C4: Rubro | D4: Resumen Facultad | E4: Variable dimensional | F4: Unidades | G4: Variable representativa | H4: Unidades | I4: Afectado por población flotante | J4: Factor | K4: Suma valor dimensional | L4: Suma costo 2018 | M4: Costo unitario (pesos/unidad/actividad)
B5: 1 | C5: ='Modelo (Ideal)'!C5 -> Administración y gobierno | D5: ='Modelo (Ideal)'!D5 -> Administración y gobierno | E5: ='Modelo (Ideal)'!E5 -> Población | F5: ='Modelo (Ideal)'!F5 -> Habitantes | G5: ='Modelo (Ideal)'!G5 -> Población | H5: ='Modelo (Ideal)'!H5 -> Habitantes | I5: ='Modelo (Ideal)'!I5 -> TRUE | J5: ='Modelo (Ideal)'!J5 -> 1 | K5: =SUMIF($K$35:$K$132,B5,$AC$35:$AC$132) -> 834403946 | L5: =INDEX(Asignacion_Historica!$AT$260:$BJ$260,1,MATCH('Modelo (Ajuste)'!D5,Asignacion_Historica!$AT$5:$BJ$5,0)) -> 2.688116214e+10 | M5: =L5/K5 -> 32.21600554
B6: 2 | C6: ='Modelo (Ideal)'!C6 -> Administración y gobierno | D6: ='Modelo (Ideal)'!D6 -> Unidad de Género | E6: ='Modelo (Ideal)'!E6 -> Población de mujeres ocupadas | F6: ='Modelo (Ideal)'!F6 -> Habitantes | G6: ='Modelo (Ideal)'!G6 -> Población | H6: ='Modelo (Ideal)'!H6 -> Habitantes | I6: ='Modelo (Ideal)'!I6 -> TRUE | J6: ='Modelo (Ideal)'!J6 -> 0.5234 | K6: 7025098.98 | L6: =INDEX(Asignacion_Historica!$AT$260:$BJ$260,1,MATCH('Modelo (Ajuste)'!D6,Asignacion_Historica!$AT$5:$BJ$5,0)) -> 85271310 | M6: 12.13809375
B7: 3 | C7: ='Modelo (Ideal)'!C7 -> Servicios públicos e infraestructura urbana | D7: ='Modelo (Ideal)'!D7 -> Alumbrado público | E7: ='Modelo (Ideal)'!E7 -> Metros lineales de banqueta | F7: ='Modelo (Ideal)'!F7 -> m | G7: ='Modelo (Ideal)'!G7 -> Superficie urbana | H7: ='Modelo (Ideal)'!H7 -> m2 | I7: ='Modelo (Ideal)'!I7 -> FALSE | J7: ='Modelo (Ideal)'!J7 -> 0.0324 | K7: 25695184.53 | L7: =INDEX(Asignacion_Historica!$AT$260:$BJ$260,1,MATCH('Modelo (Ajuste)'!D7,Asignacion_Historica!$AT$5:$BJ$5,0)) -> 332856841.6 | M7: 12.95405531
B8: 4 | C8: ='Modelo (Ideal)'!C8 -> Servicios públicos e infraestructura urbana | D8: ='Modelo (Ideal)'!D8 -> Limpia | E8: ='Modelo (Ideal)'!E8 -> Superficie de banqueta y arroyos vehiculares secundarios y locales | F8: ='Modelo (Ideal)'!F8 -> m2 | G8: ='Modelo (Ideal)'!G8 -> Superficie urbana | H8: ='Modelo (Ideal)'!H8 -> m2 | I8: ='Modelo (Ideal)'!I8 -> FALSE | J8: ='Modelo (Ideal)'!J8 -> 0.1319 | K8: 104604779 | L8: =INDEX(Asignacion_Historica!$AT$260:$BJ$260,1,MATCH('Modelo (Ajuste)'!D8,Asignacion_Historica!$AT$5:$BJ$5,0)) -> 273699014.7 | M8: 2.616505836
B9: 5 | C9: ='Modelo (Ideal)'!C9 -> Servicios públicos e infraestructura urbana | D9: ='Modelo (Ideal)'!D9 -> Jardinería, poda de árboles | E9: ='Modelo (Ideal)'!E9 -> Superficie de parques | F9: ='Modelo (Ideal)'!F9 -> m2 | G9: ='Modelo (Ideal)'!G9 -> Superficie Área verde alcaldía | H9: ='Modelo (Ideal)'!H9 -> m2 | I9: ='Modelo (Ideal)'!I9 -> FALSE | J9: ='Modelo (Ideal)'!J9 -> 1 | K9: 23579759.77 | L9: =INDEX(Asignacion_Historica!$AT$260:$BJ$260,1,MATCH('Modelo (Ajuste)'!D9,Asignacion_Historica!$AT$5:$BJ$5,0)) -> 283625444.4 | M9: 12.02834326
B10: 6 | C10: ='Modelo (Ideal)'!C10 -> Servicios públicos e infraestructura urbana | D10: ='Modelo (Ideal)'!D10 -> Pavimentación | E10: ='Modelo (Ideal)'!E10 -> Superficie de arroyos vehiculares secundarios y locales | F10: ='Modelo (Ideal)'!F10 -> m2 | G10: ='Modelo (Ideal)'!G10 -> Superficie urbana | H10: ='Modelo (Ideal)'!H10 -> m2 | I10: ='Modelo (Ideal)'!I10 -> FALSE | J10: ='Modelo (Ideal)'!J10 -> 0.1026 | K10: 81368084.33 | L10: =INDEX(Asignacion_Historica!$AT$260:$BJ$260,1,MATCH('Modelo (Ajuste)'!D10,Asignacion_Historica!$AT$5:$BJ$5,0)) -> 790177453.9 | M10: 9.711147317
B11: 7 | C11: ='Modelo (Ideal)'!C11 -> Servicios públicos e infraestructura urbana | D11: ='Modelo (Ideal)'!D11 -> Accesibilidad y diseño universal | E11: ='Modelo (Ideal)'!E11 -> Rampas | F11: ='Modelo (Ideal)'!F11 -> # | G11: ='Modelo (Ideal)'!G11 -> Superficie urbana | H11: ='Modelo (Ideal)'!H11 -> m2 | I11: ='Modelo (Ideal)'!I11 -> FALSE | J11: ='Modelo (Ideal)'!J11 -> 0.0005 | K11: 793061.2508 | L11: =INDEX(Asignacion_Historica!$AT$260:$BJ$260,1,MATCH('Modelo (Ajuste)'!D11,Asignacion_Historica!$AT$5:$BJ$5,0)) -> 172016066.2 | M11: 216.9013629
B12: 8 | C12: ='Modelo (Ideal)'!C12 -> Programas sociales | D12: ='Modelo (Ideal)'!D12 -> Programas sociales | E12: ='Modelo (Ideal)'!E12 -> Población pobreza | F12: ='Modelo (Ideal)'!F12 -> Habitantes | G12: ='Modelo (Ideal)'!G12 -> Población pobreza (coneval) | H12: ='Modelo (Ideal)'!H12 -> Habitantes | I12: ='Modelo (Ideal)'!I12 -> FALSE | J12: ='Modelo (Ideal)'!J12 -> 1 | K12: 10251276 | L12: =INDEX(Asignacion_Historica!$AT$260:$BJ$260,1,MATCH('Modelo (Ajuste)'!D12,Asignacion_Historica!$AT$5:$BJ$5,0)) -> 2213717829 | M12: 215.9455885
B13: 9 | C13: ='Modelo (Ideal)'!C13 -> Programas sociales | D13: ='Modelo (Ideal)'!D13 -> Programas sociales (desarrollo económico) | E13: ='Modelo (Ideal)'!E13 -> Desempleo | F13: ='Modelo (Ideal)'!F13 -> Habitantes | G13: ='Modelo (Ideal)'!G13 -> Población | H13: ='Modelo (Ideal)'!H13 -> Habitantes | I13: ='Modelo (Ideal)'!I13 -> TRUE | J13: ='Modelo (Ideal)'!J13 -> 0.4451 | K13: 6326768.45 | L13: =INDEX(Asignacion_Historica!$AT$260:$BJ$260,1,MATCH('Modelo (Ajuste)'!D13,Asignacion_Historica!$AT$5:$BJ$5,0)) -> 2195935522 | M13: 347.0864375
B14: 10 | C14: ='Modelo (Ideal)'!C14 -> Servicios públicos e infraestructura urbana | D14: ='Modelo (Ideal)'!D14 -> Pasos peatonales | E14: ='Modelo (Ideal)'!E14 -> Pasos peatonales | F14: ='Modelo (Ideal)'!F14 -> # | G14: ='Modelo (Ideal)'!G14 -> Superficie urbana | H14: ='Modelo (Ideal)'!H14 -> m2 | I14: ='Modelo (Ideal)'!I14 -> FALSE | J14: ='Modelo (Ideal)'!J14 -> 7e-05 | K14: 55514.28756 | L14: =INDEX(Asignacion_Historica!$AT$260:$BJ$260,1,MATCH('Modelo (Ajuste)'!D14,Asignacion_Historica!$AT$5:$BJ$5,0)) -> 437407606.7 | M14: 7879.189771
B15: 11 | C15: ='Modelo (Ideal)'!C15 -> Servicios públicos e infraestructura urbana | D15: ='Modelo (Ideal)'!D15 -> Rehabilitar y mantener escuelas, así como construir, bibliotecas, museos y demás centros de servicio social, cultural y deportivo a su cargo | E15: ='Modelo (Ideal)'!E15 -> Número de aulas en escuelas, bibliotecas, museos y demás centros | F15: ='Modelo (Ideal)'!F15 -> # | G15: ='Modelo (Ideal)'!G15 -> Población | H15: ='Modelo (Ideal)'!H15 -> Habitantes | I15: ='Modelo (Ideal)'!I15 -> FALSE | J15: ='Modelo (Ideal)'!J15 -> 0.0037 | K15: 32999.0161 | L15: =INDEX(Asignacion_Historica!$AT$260:$BJ$260,1,MATCH('Modelo (Ajuste)'!D15,Asignacion_Historica!$AT$5:$BJ$5,0)) -> 2083750800 | M15: 63145.84634
B16: 12 | C16: ='Modelo (Ideal)'!C16 -> Servicios públicos e infraestructura urbana | D16: ='Modelo (Ideal)'!D16 -> Administrar los centros sociales, instalaciones recreativas, de capacitación para el trabajo y centros deportivos, cuya administración no corresponda a otro orden de gobierno; | E16: ='Modelo (Ideal)'!E16 -> Número de centros deportivos, centros sociales, instalaciones recreativas y de capacitación para el trabajo | F16: ='Modelo (Ideal)'!F16 -> # | G16: ='Modelo (Ideal)'!G16 -> Población | H16: ='Modelo (Ideal)'!H16 -> Habitantes | I16: ='Modelo (Ideal)'!I16 -> FALSE | J16: ='Modelo (Ideal)'!J16 -> 0.6652 | K16: 5932687.976 | L16: =INDEX(Asignacion_Historica!$AT$260:$BJ$260,1,MATCH('Modelo (Ajuste)'!D16,Asignacion_Historica!$AT$5:$BJ$5,0)) -> 2424617076 | M16: 408.6877797
B17: 13 | C17: ='Modelo (Ideal)'!C17 -> Servicios públicos e infraestructura urbana | D17: ='Modelo (Ideal)'!D17 -> Obras de regeneración de barrios | E17: ='Modelo (Ideal)'!E17 -> Número de barrios y su superficie | F17: ='Modelo (Ideal)'!F17 -> # | G17: ='Modelo (Ideal)'!G17 -> Superficie urbana | H17: ='Modelo (Ideal)'!H17 -> m2 | I17: ='Modelo (Ideal)'!I17 -> FALSE | J17: ='Modelo (Ideal)'!J17 -> 1 | K17: 793061250.8 | L17: =INDEX(Asignacion_Historica!$AT$260:$BJ$260,1,MATCH('Modelo (Ajuste)'!D17,Asignacion_Historica!$AT$5:$BJ$5,0)) -> 1833880215 | M17: 2.312406783
B18: 14 | C18: ='Modelo (Ideal)'!C18 -> Servicios públicos e infraestructura urbana | D18: ='Modelo (Ideal)'!D18 -> Recolección de basura | E18: ='Modelo (Ideal)'!E18 -> Población | F18: ='Modelo (Ideal)'!F18 -> Habitantes | G18: ='Modelo (Ideal)'!G18 -> Población | H18: ='Modelo (Ideal)'!H18 -> Habitantes | I18: ='Modelo (Ideal)'!I18 -> TRUE | J18: ='Modelo (Ideal)'!J18 -> 1 | K18: 11275729 | L18: =INDEX(Asignacion_Historica!$AT$260:$BJ$260,1,MATCH('Modelo (Ajuste)'!D18,Asignacion_Historica!$AT$5:$BJ$5,0)) -> 224405348.7 | M18: 19.90162664
B19: 15 | C19: ='Modelo (Ideal)'!C19 -> Servicios públicos e infraestructura urbana | D19: ='Modelo (Ideal)'!D19 -> Espacio público (parques y plazas) | E19: ='Modelo (Ideal)'!E19 -> Superficie de parques | F19: ='Modelo (Ideal)'!F19 -> m2 | G19: ='Modelo (Ideal)'!G19 -> Superficie Área verde alcaldía | H19: ='Modelo (Ideal)'!H19 -> m2 | I19: ='Modelo (Ideal)'!I19 -> FALSE | J19: ='Modelo (Ideal)'!J19 -> 1 | K19: 47159519.55 | L19: =INDEX(Asignacion_Historica!$AT$260:$BJ$260,1,MATCH('Modelo (Ajuste)'!D19,Asignacion_Historica!$AT$5:$BJ$5,0)) -> 169539064.9 | M19: 3.595012557
B20: 16 | C20: ='Modelo (Ideal)'!C20 -> Protección al medio ambiente | D20: ='Modelo (Ideal)'!D20 -> Áreas verdes | E20: ='Modelo (Ideal)'!E20 -> Superficie de áreas verdes | F20: ='Modelo (Ideal)'!F20 -> m2 | G20: ='Modelo (Ideal)'!G20 -> Superficie Área verde alcaldía | H20: ='Modelo (Ideal)'!H20 -> m2 | I20: ='Modelo (Ideal)'!I20 -> FALSE | J20: ='Modelo (Ideal)'!J20 -> 1 | K20: 47159519.55 | L20: =INDEX(Asignacion_Historica!$AT$260:$BJ$260,1,MATCH('Modelo (Ajuste)'!D20,Asignacion_Historica!$AT$5:$BJ$5,0)) -> 87964319 | M20: 1.865250534
B21: 17 | C21: ='Modelo (Ideal)'!C21 -> Protección al medio ambiente | D21: ='Modelo (Ideal)'!D21 -> Suelo de conservación | E21: ='Modelo (Ideal)'!E21 -> Superficie de suelo de conservación | F21: ='Modelo (Ideal)'!F21 -> m2 | G21: ='Modelo (Ideal)'!G21 -> Superficie de suelo de conservación | H21: ='Modelo (Ideal)'!H21 -> m2 | I21: ='Modelo (Ideal)'!I21 -> FALSE | J21: ='Modelo (Ideal)'!J21 -> 1 | K21: 869794800 | L21: =INDEX(Asignacion_Historica!$AT$260:$BJ$260,1,MATCH('Modelo (Ajuste)'!D21,Asignacion_Historica!$AT$5:$BJ$5,0)) -> 87964319 | M21: 0.1011322659
B23: Variables representativas
B25: ID | C25: Variable reprsentativa | D25: Valor | E25: Unidad
B26: 1 | C26: Población | D26: =Presupuesto!D23 -> 8918653 | E26: Personas
B27: 2 | C27: Superficie urbana | D27: =Presupuesto!G23 -> 793061250.8 | E27: m2
B28: 3 | C28: Superficie Área verde alcaldía | D28: =Presupuesto!H23 -> 23579759.77 | E28: m2
B29: 4 | C29: Población pobreza (coneval) | D29: =Presupuesto!E23 -> 2562819 | E29: Personas
B30: 5 | C30: Superficie de suelo de conservación | D30: =Presupuesto!I23 -> 869794800 | E30: m2
B31: 6 | C31: Población flotante | D31: =Presupuesto!F23 -> 2357076 | E31: Personas
B33: Ley Orgánica de la CDMX | J33: Esquema de medición y presupuestación | S33: Costeo
B34: Codigo Integrado | C34: Cod. Actuación | D34: Cod. Materia | E34: Cod. Facultades | F34: Cod. Sub facultades | G34: Actuación | H34: Materia | I34: Facultades | J34: ¿Facultad encendida? | K34: ID variable representativa | L34: Rubro | M34: Resumen descripción facultad | N34: Variable dimensional | O34: Unidades | P34: Variable representativa | Q34: Unidades | R34: Afectado por población flotante | S34: Valor variable respresentativa | T34: Factor conversión | U34: Estimación variable dimensional | V34: Costo unitario (pesos/unidad) | W34: Ajuste por rubro | X34: Costo (Pesos) | Y34: Plus población flotante | Z34: Costo unitario (pesos/unidad) | AA34: Costo plus flotante (Pesos) | AC34: Total (Temporal)
B35: 101010 | C35: 1 | D35: 01 | E35: 01 | F35: 0 | G35: De manera exclusiva | H35: Gobierno y régimen interior | I35: Dirigir la administración pública de la alcaldía; | J35: ='Modelo (Ideal)'!J35 -> 1 | K35: ='Modelo (Ideal)'!K35 -> 1 | L35: =IFERROR(VLOOKUP($K35,$B$5:$J$21,2,FALSE),"") -> Administración y gobierno | M35: =IFERROR(VLOOKUP($K35,$B$5:$J$21,3,FALSE),"") -> Administración y gobierno | N35: =IFERROR(VLOOKUP($K35,$B$5:$J$21,4,FALSE),"") -> Población | O35: =IFERROR(VLOOKUP($K35,$B$5:$J$21,5,FALSE),"") -> Habitantes | P35: =IFERROR(VLOOKUP($K35,$B$5:$J$21,6,FALSE),"") -> Población | Q35: =IFERROR(VLOOKUP($K35,$B$5:$J$21,7,FALSE),"") -> Habitantes | R35: =IFERROR(VLOOKUP($K35,$B$5:$J$21,8,FALSE),"") -> TRUE | S35: =IFERROR(VLOOKUP(P35,$C$26:$D$31,2,FALSE),0) -> 8918653 | T35: =IFERROR(VLOOKUP($K35,$B$5:$J$21,9,FALSE),0) -> 1 | U35: =T35*S35 -> 8918653 | V35: =IFERROR(VLOOKUP($K35,$B$5:$M$21,12,FALSE),0) -> 32.21600554 | W35: =IFERROR(VLOOKUP(L35,$B$139:$C$142,2,FALSE),0) -> 0.7705873578 | X35: =U35*V35*W35*J35 -> 221407759.9 | Y35: =IF(R35=TRUE,$D$31,0) -> 2357076 | Z35: =V35 -> 32.21600554 | AA35: =Z35*Y35*W35*J35 -> 58514992.92 | AC35: =IFERROR(U35+Y35,0) -> 11275729
B36: 101020 | C36: 1 | D36: 01 | E36: 02 | F36: 0 | G36: De manera exclusiva | H36: Gobierno y régimen interior | I36: Someter a la aprobación del concejo, propuestas de disposiciones generales con el carácter de bando, únicamente sobre materias que sean de su competencia exclusiva; | J36: ='Modelo (Ideal)'!J36 -> 1 | K36: ='Modelo (Ideal)'!K36 -> 1 | L36: Administración y gobierno | M36: Administración y gobierno | N36: Población | O36: =IFERROR(VLOOKUP($K36,$B$5:$J$21,5,FALSE),"") -> Habitantes | P36: =IFERROR(VLOOKUP($K36,$B$5:$J$21,6,FALSE),"") -> Población | Q36: =IFERROR(VLOOKUP($K36,$B$5:$J$21,7,FALSE),"") -> Habitantes | R36: =IFERROR(VLOOKUP($K36,$B$5:$J$21,8,FALSE),"") -> TRUE | S36: =IFERROR(VLOOKUP(P36,$C$26:$D$31,2,FALSE),0) -> 8918653 | T36: =IFERROR(VLOOKUP($K36,$B$5:$J$21,9,FALSE),0) -> 1 | U36: 8918653 | V36: =IFERROR(VLOOKUP($K36,$B$5:$M$21,12,FALSE),0) -> 32.21600554 | W36: 0.7705873578 | X36: =U36*V36*W36*J36 -> 221407759.9 | Y36: =IF(R36=TRUE,$D$31,0) -> 2357076 | Z36: 32.21600554 | AA36: =Z36*Y36*W36*J36 -> 58514992.92 | AC36: 11275729
B37: 101030 | C37: 1 | D37: 01 | E37: 03 | F37: 0 | G37: De manera exclusiva | H37: Gobierno y régimen interior | I37: Velar por el cumplimiento de las leyes, reglamentos, decretos, acuerdos, circulares y demás disposiciones jurídicas y administrativas, e imponer las sanciones que corresponda, excepto las de carácter fiscal; | J37: ='Modelo (Ideal)'!J37 -> 1 | K37: ='Modelo (Ideal)'!K37 -> 1 | L37: Administración y gobierno | M37: Administración y gobierno | N37: Población | O37: Habitantes | P37: Población | Q37: Habitantes | R37: TRUE | S37: 8918653 | T37: 1 | U37: 8918653 | V37: 32.21600554 | W37: 0.7705873578 | X37: 221407759.9 | Y37: 2357076 | Z37: 32.21600554 | AA37: 58514992.92 | AC37: 11275729
B38: 101040 | C38: 1 | D38: 01 | E38: 04 | F38: 0 | G38: De manera exclusiva | H38: Gobierno y régimen interior | I38: Presentar iniciativas ante el Congreso de la Ciudad de México; | J38: ='Modelo (Ideal)'!J38 -> 1 | K38: ='Modelo (Ideal)'!K38 -> 1 | L38: Administración y gobierno | M38: Administración y gobierno | N38: Población | O38: Habitantes | P38: Población | Q38: Habitantes | R38: TRUE | S38: 8918653 | T38: 1 | U38: 8918653 | V38: 32.21600554 | W38: 0.7705873578 | X38: 221407759.9 | Y38: 2357076 | Z38: 32.21600554 | AA38: 58514992.92 | AC38: 11275729
B39: 101050 | C39: 1 | D39: 01 | E39: 05 | F39: 0 | G39: De manera exclusiva | H39: Gobierno y régimen interior | I39: Formular el proyecto de presupuesto de la demarcación territorial y someterlo a la aprobación del concejo; | J39: ='Modelo (Ideal)'!J39 -> 1 | K39: ='Modelo (Ideal)'!K39 -> 1 | L39: Administración y gobierno | M39: Administración y gobierno | N39: Población | O39: Habitantes | P39: Población | Q39: Habitantes | R39: TRUE | S39: 8918653 | T39: 1 | U39: 8918653 | V39: 32.21600554 | W39: 0.7705873578 | X39: 221407759.9 | Y39: 2357076 | Z39: 32.21600554 | AA39: 58514992.92 | AC39: 11275729
B40: 101060 | C40: 1 | D40: 01 | E40: 06 | F40: 0 | G40: De manera exclusiva | H40: Gobierno y régimen interior | I40: Participar en todas las sesiones del concejo, con voz y voto con excepción de aquellas que establezca la ley de la materia; | J40: ='Modelo (Ideal)'!J40 -> 1 | K40: ='Modelo (Ideal)'!K40 -> 1 | L40: Administración y gobierno | M40: Administración y gobierno | N40: Población | O40: Habitantes | P40: Población | Q40: Habitantes | R40: TRUE | S40: 8918653 | T40: 1 | U40: 8918653 | V40: 32.21600554 | W40: 0.7705873578 | X40: 221407759.9 | Y40: 2357076 | Z40: 32.21600554 | AA40: 58514992.92 | AC40: 11275729
B41: 101070 | C41: 1 | D41: 01 | E41: 07 | F41: 0 | G41: De manera exclusiva | H41: Gobierno y régimen interior | I41: Proponer, formular y ejecutar los mecanismos de simplificación administrativa, gobierno electrónico y políticas de datos abiertos que permitan atender de manera efectiva las demandas de la ciudadanía; | J41: ='Modelo (Ideal)'!J41 -> 1 | K41: ='Modelo (Ideal)'!K41 -> 1 | L41: Administración y gobierno | M41: Administración y gobierno | N41: Población | O41: Habitantes | P41: Población | Q41: Habitantes | R41: TRUE | S41: 8918653 | T41: 1 | U41: 8918653 | V41: 32.21600554 | W41: 0.7705873578 | X41: 221407759.9 | Y41: 2357076 | Z41: 32.21600554 | AA41: 58514992.92 | AC41: 11275729
B42: 101080 | C42: 1 | D42: 01 | E42: 08 | F42: 0 | G42: De manera exclusiva | H42: Gobierno y régimen interior | I42: Establecer la estructura organizacional de la alcaldía, conforme a las disposiciones aplicables; | J42: ='Modelo (Ideal)'!J42 -> 1 | K42: ='Modelo (Ideal)'!K42 -> 1 | L42: Administración y gobierno | M42: Administración y gobierno | N42: Población | O42: Habitantes | P42: Población | Q42: Habitantes | R42: TRUE | S42: 8918653 | T42: 1 | U42: 8918653 | V42: 32.21600554 | W42: 0.7705873578 | X42: 221407759.9 | Y42: 2357076 | Z42: 32.21600554 | AA42: 58514992.92 | AC42: 11275729
B43: 101090 | C43: 1 | D43: 01 | E43: 09 | F43: 0 | G43: De manera exclusiva | H43: Gobierno y régimen interior | I43: Expedir un certificado de residencia de la demarcación para aquellos que cumplan con los requisitos señalados por el artículo 22 de esta Constitución; | J43: ='Modelo (Ideal)'!J43 -> 1 | K43: ='Modelo (Ideal)'!K43 -> 1 | L43: Administración y gobierno | M43: Administración y gobierno | N43: Población | O43: Habitantes | P43: Población | Q43: Habitantes | R43: TRUE | S43: 8918653 | T43: 1 | U43: 8918653 | V43: 32.21600554 | W43: 0.7705873578 | X43: 221407759.9 | Y43: 2357076 | Z43: 32.21600554 | AA43: 58514992.92 | AC43: 11275729
B44: 101100 | C44: 1 | D44: 01 | E44: 10 | F44: 0 | G44: De manera exclusiva | H44: Gobierno y régimen interior | I44: Planear, programar, organizar, dirigir, controlar y evaluar el funcionamiento de las unidades administrativas adscritas a ellas; | J44: ='Modelo (Ideal)'!J44 -> 1 | K44: ='Modelo (Ideal)'!K44 -> 1 | L44: Administración y gobierno | M44: Administración y gobierno | N44: Población | O44: Habitantes | P44: Población | Q44: Habitantes | R44: TRUE | S44: 8918653 | T44: 1 | U44: 8918653 | V44: 32.21600554 | W44: 0.7705873578 | X44: 221407759.9 | Y44: 2357076 | Z44: 32.21600554 | AA44: 58514992.92 | AC44: 11275729
B45: 101110 | C45: 1 | D45: 01 | E45: 11 | F45: 0 | G45: De manera exclusiva | H45: Gobierno y régimen interior | I45: Administrar con autonomía los recursos materiales y los bienes muebles e inmuebles de la Ciudad de México asignados a la alcaldía, sujetándose a los mecanismos de rendición de cuentas establecidos en esta Constitución; | J45: ='Modelo (Ideal)'!J45 -> 1 | K45: ='Modelo (Ideal)'!K45 -> 1 | L45: Administración y gobierno | M45: Administración y gobierno | N45: Población | O45: Habitantes | P45: Población | Q45: Habitantes | R45: TRUE | S45: 8918653 | T45: 1 | U45: 8918653 | V45: 32.21600554 | W45: 0.7705873578 | X45: 221407759.9 | Y45: 2357076 | Z45: 32.21600554 | AA45: 58514992.92 | AC45: 11275729
B46: 101120 | C46: 1 | D46: 01 | E46: 12 | F46: 0 | G46: De manera exclusiva | H46: Gobierno y régimen interior | I46: Establecer la Unidad de Género como parte de la estructura de la alcaldía; | J46: ='Modelo (Ideal)'!J46 -> 1 | K46: ='Modelo (Ideal)'!K46 -> 2 | L46: Administración y gobierno | M46: Unidad de Género | N46: Población de mujeres ocupadas | O46: Habitantes | P46: Población | Q46: Habitantes | R46: TRUE | S46: 8918653 | T46: 0.5234 | U46: 4668022.98 | V46: 12.13809375 | W46: 0.7705873578 | X46: 43662173.64 | Y46: 2357076 | Z46: 12.13809375 | AA46: 22046819.83 | AC46: 7025098.98
B47: 101130 | C47: 1 | D47: 01 | E47: 13 | F47: 0 | G47: De manera exclusiva | H47: Gobierno y régimen interior | I47: Designar a las personas servidoras públicas de la alcaldía, sujetándose a las disposiciones del servicio profesional de carrera. En todo caso, los funcionarios de confianza, mandos medios y superiores, serán designados y removidos libremente por el alcalde o alcaldesa; | J47: ='Modelo (Ideal)'!J47 -> 1 | K47: ='Modelo (Ideal)'!K47 -> 1 | L47: Administración y gobierno | M47: Administración y gobierno | N47: Población | O47: Habitantes | P47: Población | Q47: Habitantes | R47: TRUE | S47: 8918653 | T47: 1 | U47: 8918653 | V47: 32.21600554 | W47: 0.7705873578 | X47: 221407759.9 | Y47: 2357076 | Z47: 32.21600554 | AA47: 58514992.92 | AC47: 11275729
B48: 101140 | C48: 1 | D48: 01 | E48: 14 | F48: 0 | G48: De manera exclusiva | H48: Gobierno y régimen interior | I48: Verificar que, de manera progresiva, la asignación de cargos correspondientes a la administración pública de la alcaldía, responda a criterios de igualdad de género; | J48: ='Modelo (Ideal)'!J48 -> 1 | K48: ='Modelo (Ideal)'!K48 -> 1 | L48: Administración y gobierno | M48: Administración y gobierno | N48: Población | O48: Habitantes | P48: Población | Q48: Habitantes | R48: TRUE | S48: 8918653 | T48: 1 | U48: 8918653 | V48: 32.21600554 | W48: 0.7705873578 | X48: 221407759.9 | Y48: 2357076 | Z48: 32.21600554 | AA48: 58514992.92 | AC48: 11275729
B49: 101150 | C49: 1 | D49: 01 | E49: 15 | F49: 0 | G49: De manera exclusiva | H49: Gobierno y régimen interior | I49: Legalizar las firmas de sus subalternos, y certificar y expedir copias y constancias de los documentos que obren en los archivos de la demarcación territorial; | J49: ='Modelo (Ideal)'!J49 -> 1 | K49: ='Modelo (Ideal)'!K49 -> 1 | L49: Administración y gobierno | M49: Administración y gobierno | N49: Población | O49: Habitantes | P49: Población | Q49: Habitantes | R49: TRUE | S49: 8918653 | T49: 1 | U49: 8918653 | V49: 32.21600554 | W49: 0.7705873578 | X49: 221407759.9 | Y49: 2357076 | Z49: 32.21600554 | AA49: 58514992.92 | AC49: 11275729
B50: 102010 | C50: 1 | D50: 02 | E50: 01 | F50: 0 | G50: De manera exclusiva | H50: Obra pública, desarrollo urbano y servicios públicos | I50: Supervisar y revocar permisos sobre aquellos bienes otorgados a su cargo con esas facultades; | J50: ='Modelo (Ideal)'!J50 -> 1 | K50: ='Modelo (Ideal)'!K50 -> 1 | L50: Administración y gobierno | M50: Administración y gobierno | N50: Población | O50: Habitantes | P50: Población | Q50: Habitantes | R50: TRUE | S50: 8918653 | T50: 1 | U50: 8918653 | V50: 32.21600554 | W50: 0.7705873578 | X50: 221407759.9 | Y50: 2357076 | Z50: 32.21600554 | AA50: 58514992.92 | AC50: 11275729
B51: 102020 | C51: 1 | D51: 02 | E51: 02 | F51: 0 | G51: De manera exclusiva | H51: Obra pública, desarrollo urbano y servicios públicos | I51: Registrar las manifestaciones de obra y expedir las autorizaciones, permisos, licencias de construcción de demoliciones, instalaciones aéreas o subterráneas en vía pública, edificaciones en suelo de conservación, estaciones repetidoras de comunicación celular o inalámbrica y demás, correspondiente a su demarcación territorial, conforme a la normativa aplicable; | J51: ='Modelo (Ideal)'!J51 -> 1 | K51: ='Modelo (Ideal)'!K51 -> 1 | L51: Administración y gobierno | M51: Administración y gobierno | N51: Población | O51: Habitantes | P51: Población | Q51: Habitantes | R51: TRUE | S51: 8918653 | T51: 1 | U51: 8918653 | V51: 32.21600554 | W51: 0.7705873578 | X51: 221407759.9 | Y51: 2357076 | Z51: 32.21600554 | AA51: 58514992.92 | AC51: 11275729
B52: 102030 | C52: 1 | D52: 02 | E52: 03 | F52: 0 | G52: De manera exclusiva | H52: Obra pública, desarrollo urbano y servicios públicos | I52: Otorgar licencias de fusión, subdivisión, relotificación, de conjunto y de condominios; así como autorizar los números oficiales y alineamientos, con apego a la normatividad correspondiente; | J52: ='Modelo (Ideal)'!J52 -> 1 | K52: ='Modelo (Ideal)'!K52 -> 1 | L52: Administración y gobierno | M52: Administración y gobierno | N52: Población | O52: Habitantes | P52: Población | Q52: Habitantes | R52: TRUE | S52: 8918653 | T52: 1 | U52: 8918653 | V52: 32.21600554 | W52: 0.7705873578 | X52: 221407759.9 | Y52: 2357076 | Z52: 32.21600554 | AA52: 58514992.92 | AC52: 11275729
B53: 102041 | C53: 1 | D53: 02 | E53: 04 | F53: 1 | G53: De manera exclusiva | H53: Obra pública, desarrollo urbano y servicios públicos | I53: Prestar los siguientes servicios públicos: alumbrado público en las vialidades; limpia y recolección de basura; poda de árboles; regulación de mercados; y pavimentación, de conformidad con la normatividad aplicable; | J53: ='Modelo (Ideal)'!J53 -> 1 | K53: ='Modelo (Ideal)'!K53 -> 3 | L53: Servicios públicos e infraestructura urbana | M53: Alumbrado público | N53: Metros lineales de banqueta | O53: m | P53: Superficie urbana | Q53: m2 | R53: FALSE | S53: 793061250.8 | T53: 0.0324 | U53: 25695184.53 | V53: 12.95405531 | W53: 1.007545364 | X53: 335368367.7 | Y53: 0 | Z53: 12.95405531 | AA53: 0 | AC53: 25695184.53
B54: 202042 | C54: 2 | D54: 02 | E54: 04 | F54: 2 | G54: De manera exclusiva | H54: Obra pública, desarrollo urbano y servicios públicos | I54: Prestar los siguientes servicios públicos: alumbrado público en las vialidades; limpia y recolección de basura; poda de árboles; regulación de mercados; y pavimentación, de conformidad con la normatividad aplicable; | J54: ='Modelo (Ideal)'!J54 -> 1 | K54: ='Modelo (Ideal)'!K54 -> 4 | L54: Servicios públicos e infraestructura urbana | M54: Limpia | N54: Superficie de banqueta y arroyos vehiculares secundarios y locales | O54: m2 | P54: Superficie urbana | Q54: m2 | R54: FALSE | S54: 793061250.8 | T54: 0.1319 | U54: 104604779 | V54: 2.616505836 | W54: 1.007545364 | X54: 275764173.4 | Y54: 0 | Z54: 2.616505836 | AA54: 0 | AC54: 104604779
B55: 302043 | C55: 3 | D55: 02 | E55: 04 | F55: 3 | G55: De manera exclusiva | H55: Obra pública, desarrollo urbano y servicios públicos | I55: Prestar los siguientes servicios públicos: alumbrado público en las vialidades; limpia y recolección de basura; poda de árboles; regulación de mercados; y pavimentación, de conformidad con la normatividad aplicable; | J55: ='Modelo (Ideal)'!J55 -> 1 | K55: ='Modelo (Ideal)'!K55 -> 14 | L55: Servicios públicos e infraestructura urbana | M55: Recolección de basura | N55: Población | O55: Habitantes | P55: Población | Q55: Habitantes | R55: TRUE | S55: 8918653 | T55: 1 | U55: 8918653 | V55: 19.90162664 | W55: 1.007545364 | X55: 178834971.8 | Y55: 2357076 | Z55: 19.90162664 | AA55: 47263596.87 | AC55: 11275729
B56: 402044 | C56: 4 | D56: 02 | E56: 04 | F56: 4 | G56: De manera exclusiva | H56: Obra pública, desarrollo urbano y servicios públicos | I56: Prestar los siguientes servicios públicos: alumbrado público en las vialidades; limpia y recolección de basura; poda de árboles; regulación de mercados; y pavimentación, de conformidad con la normatividad aplicable; | J56: ='Modelo (Ideal)'!J56 -> 1 | K56: ='Modelo (Ideal)'!K56 -> 1 | L56: Administración y gobierno | M56: Administración y gobierno | N56: Población | O56: Habitantes | P56: Población | Q56: Habitantes | R56: TRUE | S56: 8918653 | T56: 1 | U56: 8918653 | V56: 32.21600554 | W56: 0.7705873578 | X56: 221407759.9 | Y56: 2357076 | Z56: 32.21600554 | AA56: 58514992.92 | AC56: 11275729
B57: 502045 | C57: 5 | D57: 02 | E57: 04 | F57: 5 | G57: De manera exclusiva | H57: Obra pública, desarrollo urbano y servicios públicos | I57: Prestar los siguientes servicios públicos: alumbrado público en las vialidades; limpia y recolección de basura; poda de árboles; regulación de mercados; y pavimentación, de conformidad con la normatividad aplicable; | J57: ='Modelo (Ideal)'!J57 -> 1 | K57: ='Modelo (Ideal)'!K57 -> 6 | L57: Servicios públicos e infraestructura urbana | M57: Pavimentación | N57: Superficie de arroyos vehiculares secundarios y locales | O57: m2 | P57: Superficie urbana | Q57: m2 | R57: FALSE | S57: 793061250.8 | T57: 0.1026 | U57: 81368084.33 | V57: 9.711147317 | W57: 1.007545364 | X57: 796139630.4 | Y57: 0 | Z57: 9.711147317 | AA57: 0 | AC57: 81368084.33
B58: 602046 | C58: 6 | D58: 02 | E58: 04 | F58: 6 | G58: De manera exclusiva | H58: Obra pública, desarrollo urbano y servicios públicos | I58: Prestar los siguientes servicios públicos: alumbrado público en las vialidades; limpia y recolección de basura; poda de árboles; regulación de mercados; y pavimentación, de conformidad con la normatividad aplicable; | J58: ='Modelo (Ideal)'!J58 -> 1 | K58: ='Modelo (Ideal)'!K58 -> 18 | S58: 0 | T58: 0 | U58: 0 | V58: 0 | W58: 0 | X58: 0 | Y58: 0 | Z58: 0 | AA58: 0 | AC58: 0
B59: 102050 | C59: 1 | D59: 02 | E59: 05 | F59: 0 | G59: De manera exclusiva | H59: Obra pública, desarrollo urbano y servicios públicos | I59: Autorizar los horarios para el acceso a las diversiones y espectáculos públicos, vigilar su desarrollo y, en general, el cumplimiento de disposiciones jurídicas aplicables; | J59: ='Modelo (Ideal)'!J59 -> 1 | K59: ='Modelo (Ideal)'!K59 -> 1 | L59: Administración y gobierno | M59: Administración y gobierno | N59: Población | O59: Habitantes | P59: Población | Q59: Habitantes | R59: TRUE | S59: 8918653 | T59: 1 | U59: 8918653 | V59: 32.21600554 | W59: 0.7705873578 | X59: 221407759.9 | Y59: 2357076 | Z59: 32.21600554 | AA59: 58514992.92 | AC59: 11275729
B60: 102060 | C60: 1 | D60: 02 | E60: 06 | F60: 0 | G60: De manera exclusiva | H60: Obra pública, desarrollo urbano y servicios públicos | I60: Autorizar la ubicación, el funcionamiento y las tarifas que se aplicarán para los estacionamientos públicos de la demarcación territorial; | J60: ='Modelo (Ideal)'!J60 -> 1 | K60: ='Modelo (Ideal)'!K60 -> 1 | L60: Administración y gobierno | M60: Administración y gobierno | N60: Población | O60: Habitantes | P60: Población | Q60: Habitantes | R60: TRUE | S60: 8918653 | T60: 1 | U60: 8918653 | V60: 32.21600554 | W60: 0.7705873578 | X60: 221407759.9 | Y60: 2357076 | Z60: 32.21600554 | AA60: 58514992.92 | AC60: 11275729
B61: 102070 | C61: 1 | D61: 02 | E61: 07 | F61: 0 | G61: De manera exclusiva | H61: Obra pública, desarrollo urbano y servicios públicos | I61: Vigilar y verificar administrativamente el cumplimiento de las disposiciones, así como aplicar las sanciones que correspondan en materia de establecimientos mercantiles, estacionamientos públicos, construcciones, edificaciones, mercados públicos, protección civil, protección ecológica, anuncios, uso de suelo, cementerios, servicios funerarios, servicios de alojamiento, protección de no fumadores, y desarrollo urbano; | J61: ='Modelo (Ideal)'!J61 -> 1 | K61: ='Modelo (Ideal)'!K61 -> 1 | L61: Administración y gobierno | M61: Administración y gobierno | N61: Población | O61: Habitantes | P61: Población | Q61: Habitantes | R61: TRUE | S61: 8918653 | T61: 1 | U61: 8918653 | V61: 32.21600554 | W61: 0.7705873578 | X61: 221407759.9 | Y61: 2357076 | Z61: 32.21600554 | AA61: 58514992.92 | AC61: 11275729
B62: 102080 | C62: 1 | D62: 02 | E62: 08 | F62: 0 | G62: De manera exclusiva | H62: Obra pública, desarrollo urbano y servicios públicos | I62: Elaborar, digitalizar y mantener actualizado el padrón de los giros mercantiles que funcionen en su jurisdicción y otorgar los permisos, licencias y autorizaciones de funcionamiento de los giros y avisos, con sujeción a las leyes y reglamentos aplicables; | J62: ='Modelo (Ideal)'!J62 -> 1 | K62: ='Modelo (Ideal)'!K62 -> 1 | L62: Administración y gobierno | M62: Administración y gobierno | N62: Población | O62: Habitantes | P62: Población | Q62: Habitantes | R62: TRUE | S62: 8918653 | T62: 1 | U62: 8918653 | V62: 32.21600554 | W62: 0.7705873578 | X62: 221407759.9 | Y62: 2357076 | Z62: 32.21600554 | AA62: 58514992.92 | AC62: 11275729
B63: 103010 | C63: 1 | D63: 03 | E63: 01 | F63: 0 | G63: De manera exclusiva | H63: Movilidad, vía pública y espacios públicos | I63: Diseñar e instrumentar acciones, programas y obras que garanticen la accesibilidad y el diseño universal; | J63: ='Modelo (Ideal)'!J63 -> 1 | K63: ='Modelo (Ideal)'!K63 -> 7 | L63: Servicios públicos e infraestructura urbana | M63: Accesibilidad y diseño universal | N63: Rampas | O63: # | P63: Superficie urbana | Q63: m2 | R63: FALSE | S63: 793061250.8 | T63: 0.0005 | U63: 396530.6254 | V63: 216.9013629 | W63: 1.007545364 | X63: 86656995.01 | Y63: 0 | Z63: 216.9013629 | AA63: 0 | AC63: 396530.6254
B64: 103020 | C64: 1 | D64: 03 | E64: 02 | F64: 0 | G64: De manera exclusiva | H64: Movilidad, vía pública y espacios públicos | I64: Diseñar e instrumentar medidas que contribuyan a la movilidad peatonal sin riesgo, así como al fomento y protección del transporte no motorizado; | J64: ='Modelo (Ideal)'!J64 -> 1 | K64: ='Modelo (Ideal)'!K64 -> 19 | S64: 0 | T64: 0 | U64: 0 | V64: 0 | W64: 0 | X64: 0 | Y64: 0 | Z64: 0 | AA64: 0 | AC64: 0
B65: 103030 | C65: 1 | D65: 03 | E65: 03 | F65: 0 | G65: De manera exclusiva | H65: Movilidad, vía pública y espacios públicos | I65: Garantizar que la utilización de la vía pública y espacios públicos por eventos y acciones gubernamentales que afecten su destino y naturaleza, sea mínima; | J65: ='Modelo (Ideal)'!J65 -> 1 | K65: ='Modelo (Ideal)'!K65 -> 1 | L65: Administración y gobierno | M65: Administración y gobierno | N65: Población | O65: Habitantes | P65: Población | Q65: Habitantes | R65: TRUE | S65: 8918653 | T65: 1 | U65: 8918653 | V65: 32.21600554 | W65: 0.7705873578 | X65: 221407759.9 | Y65: 2357076 | Z65: 32.21600554 | AA65: 58514992.92 | AC65: 11275729
B66: 103040 | C66: 1 | D66: 03 | E66: 04 | F66: 0 | G66: De manera exclusiva | H66: Movilidad, vía pública y espacios públicos | I66: Otorgar permisos para el uso de la vía pública, sin que se afecte su naturaleza y destino, en los términos de las disposiciones jurídicas aplicables; XXVIII. | J66: ='Modelo (Ideal)'!J66 -> 1 | K66: ='Modelo (Ideal)'!K66 -> 1 | L66: Administración y gobierno | M66: Administración y gobierno | N66: Población | O66: Habitantes | P66: Población | Q66: Habitantes | R66: TRUE | S66: 8918653 | T66: 1 | U66: 8918653 | V66: 32.21600554 | W66: 0.7705873578 | X66: 221407759.9 | Y66: 2357076 | Z66: 32.21600554 | AA66: 58514992.92 | AC66: 11275729
B67: 103050 | C67: 1 | D67: 03 | E67: 05 | F67: 0 | G67: De manera exclusiva | H67: Movilidad, vía pública y espacios públicos | I67: Otorgar autorizaciones para la instalación de anuncios en vía pública, construcciones y edificaciones en los términos de las disposiciones jurídicas aplicables; | J67: ='Modelo (Ideal)'!J67 -> 1 | K67: ='Modelo (Ideal)'!K67 -> 1 | L67: Administración y gobierno | M67: Administración y gobierno | N67: Población | O67: Habitantes | P67: Población | Q67: Habitantes | R67: TRUE | S67: 8918653 | T67: 1 | U67: 8918653 | V67: 32.21600554 | W67: 0.7705873578 | X67: 221407759.9 | Y67: 2357076 | Z67: 32.21600554 | AA67: 58514992.92 | AC67: =IFERROR(U67+Y67,0) -> 11275729
B68: 103060 | C68: 1 | D68: 03 | E68: 06 | F68: 0 | G68: De manera exclusiva | H68: Movilidad, vía pública y espacios públicos | I68: Construir, rehabilitar y mantener los espacios públicos que se encuentren a su cargo, de conformidad con la normatividad aplicable; | J68: ='Modelo (Ideal)'!J68 -> 1 | K68: ='Modelo (Ideal)'!K68 -> 1 | L68: Administración y gobierno | M68: Administración y gobierno | N68: Población | O68: Habitantes | P68: Población | Q68: Habitantes | R68: TRUE | S68: 8918653 | T68: 1 | U68: 8918653 | V68: 32.21600554 | W68: 0.7705873578 | X68: 221407759.9 | Y68: 2357076 | Z68: 32.21600554 | AA68: 58514992.92 | AC68: 11275729
B69: 103070 | C69: 1 | D69: 03 | E69: 07 | F69: 0 | G69: De manera exclusiva | H69: Movilidad, vía pública y espacios públicos | I69: Construir, rehabilitar y mantener las vialidades, así como las guarniciones y banquetas requeridas en su demarcación, con base en los principios de diseño universal y accesibilidad; | J69: ='Modelo (Ideal)'!J69 -> 1 | K69: ='Modelo (Ideal)'!K69 -> 7 | L69: Servicios públicos e infraestructura urbana | M69: Accesibilidad y diseño universal | N69: Rampas | O69: # | P69: Superficie urbana | Q69: m2 | R69: FALSE | S69: 793061250.8 | T69: 0.0005 | U69: 396530.6254 | V69: 216.9013629 | W69: 1.007545364 | X69: 86656995.01 | Y69: 0 | Z69: 216.9013629 | AA69: 0 | AC69: 396530.6254
B70: 103080 | C70: 1 | D70: 03 | E70: 08 | F70: 0 | G70: De manera exclusiva | H70: Movilidad, vía pública y espacios públicos | I70: Administrar los centros sociales, instalaciones recreativas, de capacitación para el trabajo y centros deportivos, cuya administración no corresponda a otro orden de gobierno; | J70: ='Modelo (Ideal)'!J70 -> 1 | K70: ='Modelo (Ideal)'!K70 -> 1 | L70: Administración y gobierno | M70: Administración y gobierno | N70: Población | O70: Habitantes | P70: Población | Q70: Habitantes | R70: TRUE | S70: 8918653 | T70: 1 | U70: 8918653 | V70: 32.21600554 | W70: 0.7705873578 | X70: 221407759.9 | Y70: 2357076 | Z70: 32.21600554 | AA70: 58514992.92 | AC70: 11275729
B71: 103090 | C71: 1 | D71: 03 | E71: 09 | F71: 0 | G71: De manera exclusiva | H71: Movilidad, vía pública y espacios públicos | I71: Para el rescate del espacio público se podrán ejecutar programas a través de mecanismos de autogestión y participación ciudadana, sujetándose a lo dispuesto en la normatividad aplicable; | J71: ='Modelo (Ideal)'!J71 -> 1 | K71: ='Modelo (Ideal)'!K71 -> 9 | L71: Programas sociales | M71: Programas sociales (desarrollo económico) | N71: Desempleo | O71: Habitantes | P71: Población | Q71: Habitantes | R71: TRUE | S71: 8918653 | T71: 0.4451 | U71: 3969692.45 | V71: 347.0864375 | W71: 1.902719389 | X71: 2621617026 | Y71: 2357076 | Z71: 347.0864375 | AA71: 1556632069 | AC71: 6326768.45
B72: 103100 | C72: 1 | D72: 03 | E72: 10 | F72: 0 | G72: De manera exclusiva | H72: Movilidad, vía pública y espacios públicos | I72: Ordenar y ejecutar las medidas administrativas encaminadas a mantener o recuperar la posesión de bienes del dominio público que detenten particulares, pudiendo ordenar el retiro de obstáculos que impidan su adecuado uso; | J72: ='Modelo (Ideal)'!J72 -> 1 | K72: ='Modelo (Ideal)'!K72 -> 1 | L72: Administración y gobierno | M72: Administración y gobierno | N72: Población | O72: Habitantes | P72: Población | Q72: Habitantes | R72: TRUE | S72: 8918653 | T72: 1 | U72: 8918653 | V72: 32.21600554 | W72: 0.7705873578 | X72: 221407759.9 | Y72: 2357076 | Z72: 32.21600554 | AA72: 58514992.92 | AC72: 11275729
B73: 104010 | C73: 1 | D73: 04 | E73: 01 | F73: 0 | G73: De manera exclusiva | H73: Desarrollo económico y social | I73: Ejecutar en su demarcación territorial programas de desarrollo social, tomando en consideración la participación ciudadana, así como políticas y lineamientos que emita el Gobierno de la Ciudad de México; | J73: ='Modelo (Ideal)'!J73 -> 1 | K73: ='Modelo (Ideal)'!K73 -> 8 | L73: Programas sociales | M73: Programas sociales | N73: Población pobreza | O73: Habitantes | P73: Población pobreza (coneval) | Q73: Habitantes | R73: FALSE | S73: 2562819 | T73: 1 | U73: 2562819 | V73: 215.9455885 | W73: 1.902719389 | X73: 1053020959 | Y73: 0 | Z73: 215.9455885 | AA73: 0 | AC73: 2562819
B74: 104020 | C74: 1 | D74: 04 | E74: 02 | F74: 0 | G74: De manera exclusiva | H74: Desarrollo económico y social | I74: Diseñar e instrumentar políticas públicas y proyectos comunitarios encaminados a promover el progreso económico, el desarrollo de las personas, la generación de empleo y el desarrollo turístico sustentable y accesible dentro de la demarcación territorial; | J74: ='Modelo (Ideal)'!J74 -> 1 | K74: ='Modelo (Ideal)'!K74 -> 1 | L74: Administración y gobierno | M74: Administración y gobierno | N74: Población | O74: Habitantes | P74: Población | Q74: Habitantes | R74: TRUE | S74: 8918653 | T74: 1 | U74: 8918653 | V74: 32.21600554 | W74: 0.7705873578 | X74: 221407759.9 | Y74: 2357076 | Z74: 32.21600554 | AA74: 58514992.92 | AC74: 11275729
B75: 104030 | C75: 1 | D75: 04 | E75: 03 | F75: 0 | G75: De manera exclusiva | H75: Desarrollo económico y social | I75: Instrumentar políticas y programas de manera permanente dirigidas a la promoción y fortalecimiento del deporte; | J75: ='Modelo (Ideal)'!J75 -> 1 | K75: ='Modelo (Ideal)'!K75 -> 8 | L75: Programas sociales | M75: Programas sociales | N75: Población pobreza | O75: Habitantes | P75: Población pobreza (coneval) | Q75: Habitantes | R75: FALSE | S75: 2562819 | T75: 1 | U75: 2562819 | V75: 215.9455885 | W75: 1.902719389 | X75: 1053020959 | Y75: 0 | Z75: 215.9455885 | AA75: 0 | AC75: 2562819
B76: 104040 | C76: 1 | D76: 04 | E76: 04 | F76: 0 | G76: De manera exclusiva | H76: Desarrollo económico y social | I76: Diseñar e instrumentar políticas y acciones sociales, encaminadas a la promoción de la cultura, la inclusión, la convivencia social y la igualdad sustantiva; así como desarrollar estrategias de mejoramiento urbano y territorial, dirigidas a la juventud y los diversos sectores sociales, con el propósito de avanzar en la reconstrucción del tejido social, el bienestar y el ejercicio pleno de los derechos sociales. Lo anterior se regirá bajo los principios de transparencia, objetividad, universalidad, integralidad, igualdad, territorialidad, efectividad, participación y no discriminación. Por ningún motivo serán utilizadas para fines de promoción personal o política de las personas servidoras públicas, ni para influir de manera indebida en los procesos electorales o mecanismos de participación ciudadana. La ley de la materia establecerá la prohibición de crear nuevos programas sociales en año electoral; | J76: ='Modelo (Ideal)'!J76 -> 1 | K76: ='Modelo (Ideal)'!K76 -> 8 | L76: Programas sociales | M76: Programas sociales | N76: Población pobreza | O76: Habitantes | P76: Población pobreza (coneval) | Q76: Habitantes | R76: FALSE | S76: 2562819 | T76: 1 | U76: 2562819 | V76: 215.9455885 | W76: 1.902719389 | X76: 1053020959 | Y76: 0 | Z76: 215.9455885 | AA76: 0 | AC76: 2562819
B77: 104050 | C77: 1 | D77: 04 | E77: 05 | F77: 0 | G77: De manera exclusiva | H77: Desarrollo económico y social | I77: Prestar en forma gratuita, servicios funerarios cuando se trate de personas en situación de calle, y no hubiera quien reclame el cadáver, o sus deudos carezcan de recursos económicos; | J77: ='Modelo (Ideal)'!J77 -> 1 | K77: ='Modelo (Ideal)'!K77 -> 8 | L77: Programas sociales | M77: Programas sociales | N77: Población pobreza | O77: Habitantes | P77: Población pobreza (coneval) | Q77: Habitantes | R77: FALSE | S77: 2562819 | T77: 1 | U77: 2562819 | V77: 215.9455885 | W77: 1.902719389 | X77: 1053020959 | Y77: 0 | Z77: 215.9455885 | AA77: 0 | AC77: 2562819
B78: 105010 | C78: 1 | D78: 05 | E78: 01 | F78: 0 | G78: De manera exclusiva | H78: Educación y cultura | I78: Diseñar e instrumentar políticas públicas que promuevan la educación, la ciencia, la innovación tecnológica, el conocimiento y la cultura dentro de la demarcación; | J78: ='Modelo (Ideal)'!J78 -> 1 | K78: ='Modelo (Ideal)'!K78 -> 1 | L78: Administración y gobierno | M78: Administración y gobierno | N78: Población | O78: Habitantes | P78: Población | Q78: Habitantes | R78: TRUE | S78: 8918653 | T78: 1 | U78: 8918653 | V78: 32.21600554 | W78: 0.7705873578 | X78: 221407759.9 | Y78: 2357076 | Z78: 32.21600554 | AA78: 58514992.92 | AC78: 11275729
B79: 105020 | C79: 1 | D79: 05 | E79: 02 | F79: 0 | G79: De manera exclusiva | H79: Educación y cultura | I79: Desarrollar, de manera permanente, programas dirigidos al fortalecimiento de la cultura cívica, la democracia participativa, y los derechos humanos en la demarcación territorial; | J79: ='Modelo (Ideal)'!J79 -> 1 | K79: ='Modelo (Ideal)'!K79 -> 1 | L79: Administración y gobierno | M79: Administración y gobierno | N79: Población | O79: Habitantes | P79: Población | Q79: Habitantes | R79: TRUE | S79: 8918653 | T79: 1 | U79: 8918653 | V79: 32.21600554 | W79: 0.7705873578 | X79: 221407759.9 | Y79: 2357076 | Z79: 32.21600554 | AA79: 58514992.92 | AC79: 11275729
B80: 106010 | C80: 1 | D80: 06 | E80: 01 | F80: 0 | G80: De manera exclusiva | H80: Asuntos jurídicos | I80: Prestar asesoría jurídica gratuita en materia civil, penal, administrativa y del trabajo, con ajustes razonables si se requiere, en beneficio de los habitantes de la respectiva demarcación territorial; | J80: ='Modelo (Ideal)'!J80 -> 1 | K80: ='Modelo (Ideal)'!K80 -> 1 | L80: Administración y gobierno | M80: Administración y gobierno | N80: Población | O80: Habitantes | P80: Población | Q80: Habitantes | R80: TRUE | S80: 8918653 | T80: 1 | U80: 8918653 | V80: 32.21600554 | W80: 0.7705873578 | X80: 221407759.9 | Y80: 2357076 | Z80: 32.21600554 | AA80: 58514992.92 | AC80: 11275729
B81: 106020 | C81: 1 | D81: 06 | E81: 02 | F81: 0 | G81: De manera exclusiva | H81: Asuntos jurídicos | I81: Presentar quejas por infracciones cívicas y dar seguimiento al procedimiento hasta la ejecución de la sanción; | J81: ='Modelo (Ideal)'!J81 -> 1 | K81: ='Modelo (Ideal)'!K81 -> 1 | L81: Administración y gobierno | M81: Administración y gobierno | N81: Población | O81: Habitantes | P81: Población | Q81: Habitantes | R81: TRUE | S81: 8918653 | T81: 1 | U81: 8918653 | V81: 32.21600554 | W81: 0.7705873578 | X81: 221407759.9 | Y81: 2357076 | Z81: 32.21600554 | AA81: 58514992.92 | AC81: 11275729
B82: 106030 | C82: 1 | D82: 06 | E82: 03 | F82: 0 | G82: De manera exclusiva | H82: Asuntos jurídicos | I82: Realizar acciones de conciliación en conflictos vecinales que permitan a las y los ciudadanos dirimir sus conflictos de manera pacífica y la promoción de medios alternos de solución de controversias; | J82: ='Modelo (Ideal)'!J82 -> 1 | K82: ='Modelo (Ideal)'!K82 -> 1 | L82: Administración y gobierno | M82: Administración y gobierno | N82: Población | O82: Habitantes | P82: Población | Q82: Habitantes | R82: TRUE | S82: 8918653 | T82: 1 | U82: 8918653 | V82: 32.21600554 | W82: 0.7705873578 | X82: 221407759.9 | Y82: 2357076 | Z82: 32.21600554 | AA82: 58514992.92 | AC82: 11275729
B83: 107010 | C83: 1 | D83: 07 | E83: 01 | F83: 0 | G83: De manera exclusiva | H83: Rendición de cuentas | I83: Cumplir con sus obligaciones en materia de transparencia y acceso a la información, de conformidad con la ley aplicable; | J83: ='Modelo (Ideal)'!J83 -> 1 | K83: ='Modelo (Ideal)'!K83 -> 1 | L83: Administración y gobierno | M83: Administración y gobierno | N83: Población | O83: Habitantes | P83: Población | Q83: Habitantes | R83: TRUE | S83: 8918653 | T83: 1 | U83: 8918653 | V83: 32.21600554 | W83: 0.7705873578 | X83: 221407759.9 | Y83: 2357076 | Z83: 32.21600554 | AA83: 58514992.92 | AC83: 11275729
B84: 107020 | C84: 1 | D84: 07 | E84: 02 | F84: 0 | G84: De manera exclusiva | H84: Rendición de cuentas | I84: Participar en el sistema local contra la corrupción y establecer una estrategia anual en la materia con indicadores públicos de evaluación y mecanismos de participación ciudadana, así como implementar controles institucionales para prevenir actos de corrupción; mecanismos de seguimiento, evaluación y observación pública de las licitaciones, contrataciones y concesiones que realicen; y adopción de tabuladores de precios máximos, sujetándose a lo dispuesto en las leyes generales de la materia; y | J84: ='Modelo (Ideal)'!J84 -> 1 | K84: ='Modelo (Ideal)'!K84 -> 1 | L84: Administración y gobierno | M84: Administración y gobierno | N84: Población | O84: Habitantes | P84: Población | Q84: Habitantes | R84: TRUE | S84: 8918653 | T84: 1 | U84: 8918653 | V84: 32.21600554 | W84: 0.7705873578 | X84: 221407759.9 | Y84: 2357076 | Z84: 32.21600554 | AA84: 58514992.92 | AC84: 11275729
B85: 108010 | C85: 1 | D85: 08 | E85: 01 | F85: 0 | G85: De manera exclusiva | H85: Seguridad ciudadana y protección civil | I85: Recibir, evaluar y en su caso, aprobar los programas internos y especiales de protección civil en los términos de las disposiciones jurídicas aplicables. | J85: ='Modelo (Ideal)'!J85 -> 1 | K85: ='Modelo (Ideal)'!K85 -> 1 | L85: Administración y gobierno | M85: Administración y gobierno | N85: Población | O85: Habitantes | P85: Población | Q85: Habitantes | R85: TRUE | S85: 8918653 | T85: 1 | U85: 8918653 | V85: 32.21600554 | W85: 0.7705873578 | X85: 221407759.9 | Y85: 2357076 | Z85: 32.21600554 | AA85: 58514992.92 | AC85: 11275729
B86: 201010 | C86: 2 | D86: 01 | E86: 01 | F86: 0 | G86: En forma coordinada con el Gobierno de la Ciudad de México u otras autoridades: | H86: Gobierno y régimen interior | I86: Elaborar los proyectos de Presupuesto de Egresos de la demarcación y de calendario de ministraciones y someterlos a la aprobación del concejo; | J86: ='Modelo (Ideal)'!J86 -> 1 | K86: ='Modelo (Ideal)'!K86 -> 11 | L86: Servicios públicos e infraestructura urbana | M86: Rehabilitar y mantener escuelas, así como construir, bibliotecas, museos y demás centros de servicio social, cultural y deportivo a su cargo | N86: Número de aulas en escuelas, bibliotecas, museos y demás centros | O86: # | P86: Población | Q86: Habitantes | R86: FALSE | S86: 8918653 | T86: 0.0037 | U86: 32999.0161 | V86: 63145.84634 | W86: 1.007545364 | X86: 2099473458 | Y86: 0 | Z86: 63145.84634 | AA86: 0 | AC86: 32999.0161
B87: 202010 | C87: 2 | D87: 02 | E87: 01 | F87: 0 | G87: En forma coordinada con el Gobierno de la Ciudad de México u otras autoridades: | H87: Obra pública, desarrollo urbano y servicios públicos | I87: Construir, rehabilitar y mantener puentes, pasos peatonales y reductores de velocidad en las vialidades primarias y secundarias de su demarcación, con base en los lineamientos que determinen las dependencias centrales; | J87: ='Modelo (Ideal)'!J87 -> 1 | K87: ='Modelo (Ideal)'!K87 -> 10 | L87: Servicios públicos e infraestructura urbana | M87: Pasos peatonales | N87: Pasos peatonales | O87: # | P87: Superficie urbana | Q87: m2 | R87: FALSE | S87: 793061250.8 | T87: 7e-05 | U87: 55514.28756 | V87: 7879.189771 | W87: 1.007545364 | X87: 440708006.3 | Y87: 0 | Z87: 7879.189771 | AA87: 0 | AC87: 55514.28756
B88: 202020 | C88: 2 | D88: 02 | E88: 02 | F88: 0 | G88: En forma coordinada con el Gobierno de la Ciudad de México u otras autoridades: | H88: Obra pública, desarrollo urbano y servicios públicos | I88: Vigilar y verificar administrativamente el cumplimiento de las disposiciones, así como aplicar las sanciones que correspondan en materia de medio ambiente, mobiliario urbano, desarrollo urbano y turismo; | J88: ='Modelo (Ideal)'!J88 -> 1 | K88: ='Modelo (Ideal)'!K88 -> 12 | L88: Servicios públicos e infraestructura urbana | M88: Administrar los centros sociales, instalaciones recreativas, de capacitación para el trabajo y centros deportivos, cuya administración no corresponda a otro orden de gobierno; | N88: Número de centros deportivos, centros sociales, instalaciones recreativas y de capacitación para el trabajo | O88: # | P88: Población | Q88: Habitantes | R88: FALSE | S88: 8918653 | T88: 0.6652 | U88: 5932687.976 | V88: 408.6877797 | W88: 1.007545364 | X88: 2442911695 | Y88: 0 | Z88: 408.6877797 | AA88: 0 | AC88: 5932687.976
B89: 202030 | C89: 2 | D89: 02 | E89: 03 | F89: 0 | G89: En forma coordinada con el Gobierno de la Ciudad de México u otras autoridades: | H89: Obra pública, desarrollo urbano y servicios públicos | I89: Dar mantenimiento a los monumentos, plazas públicas y obras de ornato, propiedad de la Ciudad de México, así como participar en el mantenimiento de aquéllos de propiedad federal que se encuentren dentro de su demarcación territorial, sujeto a la autorización de las autoridades competentes, y respetando las leyes, los acuerdos y convenios que les competan; | J89: ='Modelo (Ideal)'!J89 -> 1 | K89: ='Modelo (Ideal)'!K89 -> 1 | L89: Administración y gobierno | M89: Administración y gobierno | N89: Población | O89: Habitantes | P89: Población | Q89: Habitantes | R89: TRUE | S89: 8918653 | T89: 1 | U89: 8918653 | V89: 32.21600554 | W89: 0.7705873578 | X89: 221407759.9 | Y89: 2357076 | Z89: 32.21600554 | AA89: 58514992.92 | AC89: 11275729
B90: 202040 | C90: 2 | D90: 02 | E90: 04 | F90: 0 | G90: En forma coordinada con el Gobierno de la Ciudad de México u otras autoridades: | H90: Obra pública, desarrollo urbano y servicios públicos | I90: Rehabilitar y mantener escuelas, así como construir, rehabilitar y mantener bibliotecas, museos y demás centros de servicio social, cultural y deportivo a su cargo, de conformidad con la normatividad correspondiente; | J90: ='Modelo (Ideal)'!J90 -> 1 | K90: ='Modelo (Ideal)'!K90 -> 1 | L90: Administración y gobierno | M90: Administración y gobierno | N90: Población | O90: Habitantes | P90: Población | Q90: Habitantes | R90: TRUE | S90: 8918653 | T90: 1 | U90: 8918653 | V90: 32.21600554 | W90: 0.7705873578 | X90: 221407759.9 | Y90: 2357076 | Z90: 32.21600554 | AA90: 58514992.92 | AC90: 11275729
B91: 202050 | C91: 2 | D91: 02 | E91: 05 | F91: 0 | G91: En forma coordinada con el Gobierno de la Ciudad de México u otras autoridades: | H91: Obra pública, desarrollo urbano y servicios públicos | I91: Construir, rehabilitar, mantener y, en su caso, administrar y mantener en buen estado los mercados públicos, de conformidad con la normatividad que al efecto expida el Congreso de la Ciudad de México; | J91: ='Modelo (Ideal)'!J91 -> 1 | K91: ='Modelo (Ideal)'!K91 -> 1 | L91: Administración y gobierno | M91: Administración y gobierno | N91: Población | O91: Habitantes | P91: Población | Q91: Habitantes | R91: TRUE | S91: 8918653 | T91: 1 | U91: 8918653 | V91: 32.21600554 | W91: 0.7705873578 | X91: 221407759.9 | Y91: 2357076 | Z91: 32.21600554 | AA91: 58514992.92 | AC91: 11275729
B92: 202060 | C92: 2 | D92: 02 | E92: 06 | F92: 0 | G92: En forma coordinada con el Gobierno de la Ciudad de México u otras autoridades: | H92: Obra pública, desarrollo urbano y servicios públicos | I92: Proponer y ejecutar las obras tendientes a la regeneración de barrios y, en su caso, promover su incorporación al patrimonio cultural, en coordinación con las autoridades competentes; | J92: ='Modelo (Ideal)'!J92 -> 1 | K92: ='Modelo (Ideal)'!K92 -> 13 | L92: Servicios públicos e infraestructura urbana | M92: Obras de regeneración de barrios | N92: Número de barrios y su superficie | O92: # | P92: Superficie urbana | Q92: m2 | R92: FALSE | S92: 793061250.8 | T92: 1 | U92: 793061250.8 | V92: 2.312406783 | W92: 1.007545364 | X92: 1847717509 | Y92: 0 | Z92: 2.312406783 | AA92: 0 | AC92: 793061250.8
B93: 202070 | C93: 2 | D93: 02 | E93: 07 | F93: 0 | G93: En forma coordinada con el Gobierno de la Ciudad de México u otras autoridades: | H93: Obra pública, desarrollo urbano y servicios públicos | I93: Ejecutar dentro de su demarcación territorial los programas de obras públicas para el abastecimiento de agua potable y servicio de drenaje y alcantarillado y las demás obras y equipamiento urbano en coordinación con el organismo público encargado del abasto de agua y saneamiento de la Ciudad de México; así como realizar las acciones necesarias para procurar el abastecimiento y suministro de agua potable en la demarcación; | J93: ='Modelo (Ideal)'!J93 -> 1 | K93: ='Modelo (Ideal)'!K93 -> 1 | L93: Administración y gobierno | M93: Administración y gobierno | N93: Población | O93: Habitantes | P93: Población | Q93: Habitantes | R93: TRUE | S93: 8918653 | T93: 1 | U93: 8918653 | V93: 32.21600554 | W93: 0.7705873578 | X93: 221407759.9 | Y93: 2357076 | Z93: 32.21600554 | AA93: 58514992.92 | AC93: 11275729
B94: 202080 | C94: 2 | D94: 02 | E94: 08 | F94: 0 | G94: En forma coordinada con el Gobierno de la Ciudad de México u otras autoridades: | H94: Obra pública, desarrollo urbano y servicios públicos | I94: Prestar el servicio de tratamiento de residuos sólidos en la demarcación territorial; | J94: ='Modelo (Ideal)'!J94 -> 1 | K94: ='Modelo (Ideal)'!K94 -> 1 | L94: Administración y gobierno | M94: Administración y gobierno | N94: Población | O94: Habitantes | P94: Población | Q94: Habitantes | R94: TRUE | S94: 8918653 | T94: 1 | U94: 8918653 | V94: 32.21600554 | W94: 0.7705873578 | X94: 221407759.9 | Y94: 2357076 | Z94: 32.21600554 | AA94: 58514992.92 | AC94: 11275729
B95: 202090 | C95: 2 | D95: 02 | E95: 09 | F95: 0 | G95: En forma coordinada con el Gobierno de la Ciudad de México u otras autoridades: | H95: Obra pública, desarrollo urbano y servicios públicos | I95: Formular y presentar ante el Gobierno de la Ciudad de México las propuestas de programas de ordenamiento territorial de la demarcación con base en el procedimiento que establece esta Constitución y la ley en la materia; | J95: ='Modelo (Ideal)'!J95 -> 1 | K95: ='Modelo (Ideal)'!K95 -> 1 | L95: Administración y gobierno | M95: Administración y gobierno | N95: Población | O95: Habitantes | P95: Población | Q95: Habitantes | R95: TRUE | S95: 8918653 | T95: 1 | U95: 8918653 | V95: 32.21600554 | W95: 0.7705873578 | X95: 221407759.9 | Y95: 2357076 | Z95: 32.21600554 | AA95: 58514992.92 | AC95: 11275729
B96: 202100 | C96: 2 | D96: 02 | E96: 10 | F96: 0 | G96: En forma coordinada con el Gobierno de la Ciudad de México u otras autoridades: | H96: Obra pública, desarrollo urbano y servicios públicos | I96: Intervenir en coordinación con la autoridad competente, en el otorgamiento de certificaciones de uso de suelo, en los términos de las disposiciones aplicables; | J96: ='Modelo (Ideal)'!J96 -> 1 | K96: ='Modelo (Ideal)'!K96 -> 1 | L96: Administración y gobierno | M96: Administración y gobierno | N96: Población | O96: Habitantes | P96: Población | Q96: Habitantes | R96: TRUE | S96: 8918653 | T96: 1 | U96: 8918653 | V96: 32.21600554 | W96: 0.7705873578 | X96: 221407759.9 | Y96: 2357076 | Z96: 32.21600554 | AA96: 58514992.92 | AC96: 11275729
B97: 202110 | C97: 2 | D97: 02 | E97: 11 | F97: 0 | G97: En forma coordinada con el Gobierno de la Ciudad de México u otras autoridades: | H97: Obra pública, desarrollo urbano y servicios públicos | I97: Promover la consulta ciudadana y la participación social bajo el principio de planeación participativa en los programas de ordenamiento territorial; | J97: ='Modelo (Ideal)'!J97 -> 1 | K97: ='Modelo (Ideal)'!K97 -> 1 | L97: Administración y gobierno | M97: Administración y gobierno | N97: Población | O97: Habitantes | P97: Población | Q97: Habitantes | R97: TRUE | S97: 8918653 | T97: 1 | U97: 8918653 | V97: 32.21600554 | W97: 0.7705873578 | X97: 221407759.9 | Y97: 2357076 | Z97: 32.21600554 | AA97: 58514992.92 | AC97: 11275729
B98: 202120 | C98: 2 | D98: 02 | E98: 12 | F98: 0 | G98: En forma coordinada con el Gobierno de la Ciudad de México u otras autoridades: | H98: Obra pública, desarrollo urbano y servicios públicos | I98: Colaborar en la evaluación de los proyectos que requiere el Estudio de Impacto Urbano, con base en los mecanismos previstos en la ley de la materia cuyo resultado tendrá carácter vinculante; | J98: ='Modelo (Ideal)'!J98 -> 1 | K98: ='Modelo (Ideal)'!K98 -> 1 | L98: Administración y gobierno | M98: Administración y gobierno | N98: Población | O98: Habitantes | P98: Población | Q98: Habitantes | R98: TRUE | S98: 8918653 | T98: 1 | U98: 8918653 | V98: 32.21600554 | W98: 0.7705873578 | X98: 221407759.9 | Y98: 2357076 | Z98: 32.21600554 | AA98: 58514992.92 | AC98: 11275729
B99: 204010 | C99: 2 | D99: 04 | E99: 01 | F99: 0 | G99: En forma coordinada con el Gobierno de la Ciudad de México u otras autoridades: | H99: Desarrollo económico y social | I99: Presentar a las instancias gubernamentales competentes, los programas de vivienda que beneficien a la población de su demarcación territorial, así como realizar su promoción y gestión; | J99: ='Modelo (Ideal)'!J99 -> 1 | K99: ='Modelo (Ideal)'!K99 -> 1 | L99: =IFERROR(VLOOKUP($K99,$B$5:$J$21,2,FALSE),"") -> Administración y gobierno | M99: =IFERROR(VLOOKUP($K99,$B$5:$J$21,3,FALSE),"") -> Administración y gobierno | N99: =IFERROR(VLOOKUP($K99,$B$5:$J$21,4,FALSE),"") -> Población | O99: Habitantes | P99: Población | Q99: Habitantes | R99: TRUE | S99: 8918653 | T99: 1 | U99: =T99*S99 -> 8918653 | V99: 32.21600554 | W99: =IFERROR(VLOOKUP(L99,$B$139:$C$142,2,FALSE),0) -> 0.7705873578 | X99: 221407759.9 | Y99: 2357076 | Z99: =V99 -> 32.21600554 | AA99: 58514992.92 | AC99: =IFERROR(U99+Y99,0) -> 11275729
B100: 204020 | C100: 2 | D100: 04 | E100: 02 | F100: 0 | G100: En forma coordinada con el Gobierno de la Ciudad de México u otras autoridades: | H100: Desarrollo económico y social | I100: Realizar campañas de salud pública, en coordinación con las autoridades federales y locales que correspondan; | J100: ='Modelo (Ideal)'!J100 -> 1 | K100: ='Modelo (Ideal)'!K100 -> 1 | L100: Administración y gobierno | M100: Administración y gobierno | N100: Población | O100: =IFERROR(VLOOKUP($K100,$B$5:$J$21,5,FALSE),"") -> Habitantes | P100: =IFERROR(VLOOKUP($K100,$B$5:$J$21,6,FALSE),"") -> Población | Q100: =IFERROR(VLOOKUP($K100,$B$5:$J$21,7,FALSE),"") -> Habitantes | R100: =IFERROR(VLOOKUP($K100,$B$5:$J$21,8,FALSE),"") -> TRUE | S100: =IFERROR(VLOOKUP(P100,$C$26:$D$31,2,FALSE),0) -> 8918653 | T100: =IFERROR(VLOOKUP($K100,$B$5:$J$21,9,FALSE),0) -> 1 | U100: 8918653 | V100: =IFERROR(VLOOKUP($K100,$B$5:$M$21,12,FALSE),0) -> 32.21600554 | W100: 0.7705873578 | X100: =U100*V100*W100*J100 -> 221407759.9 | Y100: =IF(R100=TRUE,$D$31,0) -> 2357076 | Z100: 32.21600554 | AA100: =Z100*Y100*W100*J100 -> 58514992.92 | AC100: 11275729
B101: 204030 | C101: 2 | D101: 04 | E101: 03 | F101: 0 | G101: En forma coordinada con el Gobierno de la Ciudad de México u otras autoridades: | H101: Desarrollo económico y social | I101: Coordinar con otras dependencias oficiales, instituciones públicas o privadas y con los particulares, la prestación de los servicios médicos asistenciales | J101: ='Modelo (Ideal)'!J101 -> 1 | K101: ='Modelo (Ideal)'!K101 -> 1 | L101: Administración y gobierno | M101: Administración y gobierno | N101: Población | O101: Habitantes | P101: Población | Q101: Habitantes | R101: TRUE | S101: 8918653 | T101: 1 | U101: 8918653 | V101: 32.21600554 | W101: 0.7705873578 | X101: 221407759.9 | Y101: 2357076 | Z101: 32.21600554 | AA101: 58514992.92 | AC101: 11275729
B102: 204040 | C102: 2 | D102: 04 | E102: 04 | F102: 0 | G102: En forma coordinada con el Gobierno de la Ciudad de México u otras autoridades: | H102: Desarrollo económico y social | I102: Establecer y ejecutar en coordinación con el Gobierno de la Ciudad de México las acciones que permitan coadyuvar a la modernización de las micro, pequeñas y medianas empresas de la demarcación territorial; | J102: ='Modelo (Ideal)'!J102 -> 1 | K102: ='Modelo (Ideal)'!K102 -> 1 | L102: Administración y gobierno | M102: Administración y gobierno | N102: Población | O102: Habitantes | P102: Población | Q102: Habitantes | R102: TRUE | S102: 8918653 | T102: 1 | U102: 8918653 | V102: 32.21600554 | W102: 0.7705873578 | X102: 221407759.9 | Y102: 2357076 | Z102: 32.21600554 | AA102: 58514992.92 | AC102: 11275729
B103: 204050 | C103: 2 | D103: 04 | E103: 05 | F103: 0 | G103: En forma coordinada con el Gobierno de la Ciudad de México u otras autoridades: | H103: Desarrollo económico y social | I103: Elaborar, promover, fomentar y ejecutar los proyectos productivos que, en el ámbito de su jurisdicción, protejan e incentiven el empleo, de acuerdo a los programas, lineamientos y políticas que en materia de fomento, desarrollo e inversión económica, emitan las dependencias correspondientes; | J103: ='Modelo (Ideal)'!J103 -> 1 | K103: ='Modelo (Ideal)'!K103 -> 1 | L103: Administración y gobierno | M103: Administración y gobierno | N103: Población | O103: Habitantes | P103: Población | Q103: Habitantes | R103: TRUE | S103: 8918653 | T103: 1 | U103: 8918653 | V103: 32.21600554 | W103: 0.7705873578 | X103: 221407759.9 | Y103: 2357076 | Z103: 32.21600554 | AA103: 58514992.92 | AC103: 11275729
B104: 204060 | C104: 2 | D104: 04 | E104: 06 | F104: 0 | G104: En forma coordinada con el Gobierno de la Ciudad de México u otras autoridades: | H104: Desarrollo económico y social | I104: Formular y ejecutar programas de apoyo a la participación de las mujeres en los diversos ámbitos del desarrollo, pudiendo coordinarse con otras instituciones públicas o privadas, para la implementación de los mismos. Estos programas deberán ser formulados observando las políticas generales que al efecto determine el Gobierno de la Ciudad de México; | J104: ='Modelo (Ideal)'!J104 -> 1 | K104: ='Modelo (Ideal)'!K104 -> 1 | L104: Administración y gobierno | M104: Administración y gobierno | N104: Población | O104: Habitantes | P104: Población | Q104: Habitantes | R104: TRUE | S104: 8918653 | T104: 1 | U104: 8918653 | V104: 32.21600554 | W104: 0.7705873578 | X104: 221407759.9 | Y104: 2357076 | Z104: 32.21600554 | AA104: 58514992.92 | AC104: 11275729
B105: 205010 | C105: 2 | D105: 05 | E105: 01 | F105: 0 | G105: En forma coordinada con el Gobierno de la Ciudad de México u otras autoridades: | H105: Educación y cultura | I105: Efectuar ceremonias cívicas para conmemorar acontecimientos históricos de carácter nacional o local, y organizar actos culturales, artísticos y sociales; | J105: ='Modelo (Ideal)'!J105 -> 1 | K105: ='Modelo (Ideal)'!K105 -> 1 | L105: Administración y gobierno | M105: Administración y gobierno | N105: Población | O105: Habitantes | P105: Población | Q105: Habitantes | R105: TRUE | S105: 8918653 | T105: 1 | U105: 8918653 | V105: 32.21600554 | W105: 0.7705873578 | X105: 221407759.9 | Y105: 2357076 | Z105: 32.21600554 | AA105: 58514992.92 | AC105: 11275729
B106: 209010 | C106: 2 | D106: 09 | E106: 01 | F106: 0 | G106: En forma coordinada con el Gobierno de la Ciudad de México u otras autoridades: | H106: Protección al medio ambiente | I106: Participar en la creación y administración de sus reservas territoriales; | J106: ='Modelo (Ideal)'!J106 -> 1 | K106: ='Modelo (Ideal)'!K106 -> 1 | L106: Administración y gobierno | M106: Administración y gobierno | N106: Población | O106: Habitantes | P106: Población | Q106: Habitantes | R106: TRUE | S106: 8918653 | T106: 1 | U106: 8918653 | V106: 32.21600554 | W106: 0.7705873578 | X106: 221407759.9 | Y106: 2357076 | Z106: 32.21600554 | AA106: 58514992.92 | AC106: 11275729
B107: 209020 | C107: 2 | D107: 09 | E107: 02 | F107: 0 | G107: En forma coordinada con el Gobierno de la Ciudad de México u otras autoridades: | H107: Protección al medio ambiente | I107: Implementar acciones de protección, preservación y restauración del equilibrio ecológico que garanticen la conservación, integridad y mejora de los recursos naturales, suelo de conservación, áreas naturales protegidas, parques urbanos y áreas verdes de la demarcación territorial; | J107: ='Modelo (Ideal)'!J107 -> 1 | K107: ='Modelo (Ideal)'!K107 -> 1 | L107: Administración y gobierno | M107: Administración y gobierno | N107: Población | O107: Habitantes | P107: Población | Q107: Habitantes | R107: TRUE | S107: 8918653 | T107: 1 | U107: 8918653 | V107: 32.21600554 | W107: 0.7705873578 | X107: 221407759.9 | Y107: 2357076 | Z107: 32.21600554 | AA107: 58514992.92 | AC107: 11275729
B108: 209030 | C108: 2 | D108: 09 | E108: 03 | F108: 0 | G108: En forma coordinada con el Gobierno de la Ciudad de México u otras autoridades: | H108: Protección al medio ambiente | I108: Diseñar e implementar, en coordinación con el Gobierno de la Ciudad de México, acciones que promuevan la innovación científica y tecnológica en materia de preservación y mejoramiento del medio ambiente; | J108: ='Modelo (Ideal)'!J108 -> 1 | K108: ='Modelo (Ideal)'!K108 -> 1 | L108: Administración y gobierno | M108: Administración y gobierno | N108: Población | O108: Habitantes | P108: Población | Q108: Habitantes | R108: TRUE | S108: 8918653 | T108: 1 | U108: 8918653 | V108: 32.21600554 | W108: 0.7705873578 | X108: 221407759.9 | Y108: 2357076 | Z108: 32.21600554 | AA108: 58514992.92 | AC108: 11275729
B109: 209040 | C109: 2 | D109: 09 | E109: 04 | F109: 0 | G109: En forma coordinada con el Gobierno de la Ciudad de México u otras autoridades: | H109: Protección al medio ambiente | I109: Vigilar, en coordinación con el Gobierno de la Ciudad de México, que no sean ocupadas de manera ilegal las áreas naturales protegidas y el suelo de conservación; | J109: ='Modelo (Ideal)'!J109 -> 1 | K109: ='Modelo (Ideal)'!K109 -> 17 | L109: Protección al medio ambiente | M109: Suelo de conservación | N109: Superficie de suelo de conservación | O109: m2 | P109: Superficie de suelo de conservación | Q109: m2 | R109: FALSE | S109: 869794800 | T109: 1 | U109: 869794800 | V109: 0.1011322659 | W109: 119.803517 | X109: 1.053843479e+10 | Y109: 0 | Z109: 0.1011322659 | AA109: 0 | AC109: 869794800
B110: 209050 | C110: 2 | D110: 09 | E110: 05 | F110: 0 | G110: En forma coordinada con el Gobierno de la Ciudad de México u otras autoridades: | H110: Protección al medio ambiente | I110: Promover la educación y participación comunitaria, social y privada para la preservación y restauración de los recursos naturales y la protección al ambiente; | J110: ='Modelo (Ideal)'!J110 -> 1 | K110: ='Modelo (Ideal)'!K110 -> 1 | L110: Administración y gobierno | M110: Administración y gobierno | N110: Población | O110: Habitantes | P110: Población | Q110: Habitantes | R110: TRUE | S110: 8918653 | T110: 1 | U110: 8918653 | V110: 32.21600554 | W110: 0.7705873578 | X110: 221407759.9 | Y110: 2357076 | Z110: 32.21600554 | AA110: 58514992.92 | AC110: 11275729
B111: 206010 | C111: 2 | D111: 06 | E111: 01 | F111: 0 | G111: En forma coordinada con el Gobierno de la Ciudad de México u otras autoridades: | H111: Asuntos jurídicos | I111: Administrar los Juzgados Cívicos y de Registro Civil; | J111: ='Modelo (Ideal)'!J111 -> 1 | K111: ='Modelo (Ideal)'!K111 -> 1 | L111: Administración y gobierno | M111: Administración y gobierno | N111: Población | O111: Habitantes | P111: Población | Q111: Habitantes | R111: TRUE | S111: 8918653 | T111: 1 | U111: 8918653 | V111: 32.21600554 | W111: 0.7705873578 | X111: 221407759.9 | Y111: 2357076 | Z111: 32.21600554 | AA111: 58514992.92 | AC111: 11275729
B112: 206020 | C112: 2 | D112: 06 | E112: 02 | F112: 0 | G112: En forma coordinada con el Gobierno de la Ciudad de México u otras autoridades: | H112: Asuntos jurídicos | I112: Solicitar a la Jefatura de Gobierno de la Ciudad de México, por considerarlo causa de utilidad pública, la expropiación o la ocupación total o parcial de bienes de propiedad privada, en los términos de las disposiciones jurídicas aplicables; | J112: ='Modelo (Ideal)'!J112 -> 1 | K112: ='Modelo (Ideal)'!K112 -> 1 | L112: Administración y gobierno | M112: Administración y gobierno | N112: Población | O112: Habitantes | P112: Población | Q112: Habitantes | R112: TRUE | S112: 8918653 | T112: 1 | U112: 8918653 | V112: 32.21600554 | W112: 0.7705873578 | X112: 221407759.9 | Y112: 2357076 | Z112: 32.21600554 | AA112: 58514992.92 | AC112: 11275729
B113: 206030 | C113: 2 | D113: 06 | E113: 03 | F113: 0 | G113: En forma coordinada con el Gobierno de la Ciudad de México u otras autoridades: | H113: Asuntos jurídicos | I113: Coordinar con los organismos competentes las acciones que les soliciten para el proceso de regularización de la tenencia de la tierra; | J113: ='Modelo (Ideal)'!J113 -> 1 | K113: ='Modelo (Ideal)'!K113 -> 1 | L113: Administración y gobierno | M113: Administración y gobierno | N113: Población | O113: Habitantes | P113: Población | Q113: Habitantes | R113: TRUE | S113: 8918653 | T113: 1 | U113: 8918653 | V113: 32.21600554 | W113: 0.7705873578 | X113: 221407759.9 | Y113: 2357076 | Z113: 32.21600554 | AA113: 58514992.92 | AC113: 11275729
B114: 206040 | C114: 2 | D114: 06 | E114: 04 | F114: 0 | G114: En forma coordinada con el Gobierno de la Ciudad de México u otras autoridades: | H114: Asuntos jurídicos | I114: Proporcionar los servicios de filiación para identificar a los habitantes de la demarcación territorial y expedir certificados de residencia a persona que tengan su domicilio dentro de los límites de la demarcación territorial; | J114: ='Modelo (Ideal)'!J114 -> 1 | K114: ='Modelo (Ideal)'!K114 -> 1 | L114: Administración y gobierno | M114: Administración y gobierno | N114: Población | O114: Habitantes | P114: Población | Q114: Habitantes | R114: TRUE | S114: 8918653 | T114: 1 | U114: 8918653 | V114: 32.21600554 | W114: 0.7705873578 | X114: 221407759.9 | Y114: 2357076 | Z114: 32.21600554 | AA114: 58514992.92 | AC114: 11275729
B115: 206050 | C115: 2 | D115: 06 | E115: 05 | F115: 0 | G115: En forma coordinada con el Gobierno de la Ciudad de México u otras autoridades: | H115: Asuntos jurídicos | I115: Coordinar acciones con el Gobierno de la Ciudad de México para aplicar las políticas demográficas que fijen la Secretaría de Gobernación; y | J115: ='Modelo (Ideal)'!J115 -> 1 | K115: ='Modelo (Ideal)'!K115 -> 1 | L115: Administración y gobierno | M115: Administración y gobierno | N115: Población | O115: Habitantes | P115: Población | Q115: Habitantes | R115: TRUE | S115: 8918653 | T115: 1 | U115: 8918653 | V115: 32.21600554 | W115: 0.7705873578 | X115: 221407759.9 | Y115: 2357076 | Z115: 32.21600554 | AA115: 58514992.92 | AC115: 11275729
B116: 206060 | C116: 2 | D116: 06 | E116: 06 | F116: 0 | G116: En forma coordinada con el Gobierno de la Ciudad de México u otras autoridades: | H116: Asuntos jurídicos | I116: Intervenir en las juntas de reclutamiento del Servicio Militar Nacional; | J116: ='Modelo (Ideal)'!J116 -> 1 | K116: ='Modelo (Ideal)'!K116 -> 1 | L116: Administración y gobierno | M116: Administración y gobierno | N116: Población | O116: Habitantes | P116: Población | Q116: Habitantes | R116: TRUE | S116: 8918653 | T116: 1 | U116: 8918653 | V116: 32.21600554 | W116: 0.7705873578 | X116: 221407759.9 | Y116: 2357076 | Z116: 32.21600554 | AA116: 58514992.92 | AC116: 11275729
B117: 210010 | C117: 2 | D117: 10 | E117: 01 | F117: 0 | G117: En forma coordinada con el Gobierno de la Ciudad de México u otras autoridades: | H117: Alcaldía digital | I117: Participar con la Jefatura de Gobierno en el diseño y despliegue de una agenda digital incluyente para la Ciudad de México; | J117: ='Modelo (Ideal)'!J117 -> 1 | K117: ='Modelo (Ideal)'!K117 -> 1 | L117: Administración y gobierno | M117: Administración y gobierno | N117: Población | O117: Habitantes | P117: Población | Q117: Habitantes | R117: TRUE | S117: 8918653 | T117: 1 | U117: 8918653 | V117: 32.21600554 | W117: 0.7705873578 | X117: 221407759.9 | Y117: 2357076 | Z117: 32.21600554 | AA117: 58514992.92 | AC117: 11275729
B118: 210020 | C118: 2 | D118: 10 | E118: 02 | F118: 0 | G118: En forma coordinada con el Gobierno de la Ciudad de México u otras autoridades: | H118: Alcaldía digital | I118: Contribuir con la infraestructura de comunicaciones, cómputo y dispositivos para el acceso a internet gratuito en espacios públicos; y | J118: ='Modelo (Ideal)'!J118 -> 1 | K118: ='Modelo (Ideal)'!K118 -> 1 | L118: Administración y gobierno | M118: Administración y gobierno | N118: Población | O118: Habitantes | P118: Población | Q118: Habitantes | R118: TRUE | S118: 8918653 | T118: 1 | U118: 8918653 | V118: 32.21600554 | W118: 0.7705873578 | X118: 221407759.9 | Y118: 2357076 | Z118: 32.21600554 | AA118: 58514992.92 | AC118: 11275729
B119: 210030 | C119: 2 | D119: 10 | E119: 03 | F119: 0 | G119: En forma coordinada con el Gobierno de la Ciudad de México u otras autoridades: | H119: Alcaldía digital | I119: Ofrecer servicios y trámites digitales a la ciudadanía | J119: ='Modelo (Ideal)'!J119 -> 1 | K119: ='Modelo (Ideal)'!K119 -> 1 | L119: Administración y gobierno | M119: Administración y gobierno | N119: Población | O119: Habitantes | P119: Población | Q119: Habitantes | R119: TRUE | S119: 8918653 | T119: 1 | U119: 8918653 | V119: 32.21600554 | W119: 0.7705873578 | X119: 221407759.9 | Y119: 2357076 | Z119: 32.21600554 | AA119: 58514992.92 | AC119: 11275729
B120: 301010 | C120: 3 | D120: 01 | E120: 01 | F120: 0 | G120: En forma subordinada con el Gobierno de la Ciudad de México | H120: Gobierno y régimen interior | I120: Participar en la elaboración, planeación y ejecución de los programas del Gobierno de la Ciudad de México, que tengan impacto en la demarcación territorial; | J120: ='Modelo (Ideal)'!J120 -> 1 | K120: ='Modelo (Ideal)'!K120 -> 1 | L120: Administración y gobierno | M120: Administración y gobierno | N120: Población | O120: Habitantes | P120: Población | Q120: Habitantes | R120: TRUE | S120: 8918653 | T120: 1 | U120: 8918653 | V120: 32.21600554 | W120: 0.7705873578 | X120: 221407759.9 | Y120: 2357076 | Z120: 32.21600554 | AA120: 58514992.92 | AC120: 11275729
B121: 301020 | C121: 3 | D121: 01 | E121: 02 | F121: 0 | G121: En forma subordinada con el Gobierno de la Ciudad de México | H121: Gobierno y régimen interior | I121: Participar en la instancia de coordinación metropolitana, de manera particular aquellas demarcaciones territoriales que colindan con los municipios conurbados de la Zona Metropolitana del Valle de México; | J121: ='Modelo (Ideal)'!J121 -> 1 | K121: ='Modelo (Ideal)'!K121 -> 1 | L121: Administración y gobierno | M121: Administración y gobierno | N121: Población | O121: Habitantes | P121: Población | Q121: Habitantes | R121: TRUE | S121: 8918653 | T121: 1 | U121: 8918653 | V121: 32.21600554 | W121: 0.7705873578 | X121: 221407759.9 | Y121: 2357076 | Z121: 32.21600554 | AA121: 58514992.92 | AC121: 11275729
B122: 303010 | C122: 3 | D122: 03 | E122: 01 | F122: 0 | G122: En forma subordinada con el Gobierno de la Ciudad de México | H122: Movilidad, vía pública y espacios públicos | I122: Proponer a la Jefatura de Gobierno de la Ciudad de México la aplicación de las medidas para mejorar la vialidad, circulación y seguridad de vehículos y peatones; | J122: ='Modelo (Ideal)'!J122 -> 1 | K122: ='Modelo (Ideal)'!K122 -> 1 | L122: Administración y gobierno | M122: Administración y gobierno | N122: Población | O122: Habitantes | P122: Población | Q122: Habitantes | R122: TRUE | S122: 8918653 | T122: 1 | U122: 8918653 | V122: 32.21600554 | W122: 0.7705873578 | X122: 221407759.9 | Y122: 2357076 | Z122: 32.21600554 | AA122: 58514992.92 | AC122: 11275729
B123: 308010 | C123: 3 | D123: 08 | E123: 01 | F123: 0 | G123: En forma subordinada con el Gobierno de la Ciudad de México | H123: Seguridad ciudadana y protección civil | I123: Ejecutar las políticas de seguridad ciudadana en la demarcación territorial, de conformidad con la ley de la materia; | J123: ='Modelo (Ideal)'!J123 -> 1 | K123: ='Modelo (Ideal)'!K123 -> 1 | L123: Administración y gobierno | M123: Administración y gobierno | N123: Población | O123: Habitantes | P123: Población | Q123: Habitantes | R123: TRUE | S123: 8918653 | T123: 1 | U123: 8918653 | V123: 32.21600554 | W123: 0.7705873578 | X123: 221407759.9 | Y123: 2357076 | Z123: 32.21600554 | AA123: 58514992.92 | AC123: 11275729
B124: 308020 | C124: 3 | D124: 08 | E124: 02 | F124: 0 | G124: En forma subordinada con el Gobierno de la Ciudad de México | H124: Seguridad ciudadana y protección civil | I124: En materia de seguridad ciudadana podrá realizar funciones de proximidad vecinal y vigilancia; | J124: ='Modelo (Ideal)'!J124 -> 1 | K124: ='Modelo (Ideal)'!K124 -> 1 | L124: Administración y gobierno | M124: Administración y gobierno | N124: Población | O124: Habitantes | P124: Población | Q124: Habitantes | R124: TRUE | S124: 8918653 | T124: 1 | U124: 8918653 | V124: 32.21600554 | W124: 0.7705873578 | X124: 221407759.9 | Y124: 2357076 | Z124: 32.21600554 | AA124: 58514992.92 | AC124: 11275729
B125: 308030 | C125: 3 | D125: 08 | E125: 03 | F125: 0 | G125: En forma subordinada con el Gobierno de la Ciudad de México | H125: Seguridad ciudadana y protección civil | I125: Podrá disponer de la fuerza pública básica en tareas de vigilancia. Para tal efecto, el Gobierno de la Ciudad de México siempre atenderá las solicitudes de las alcaldías con pleno respeto a los derechos humanos; | J125: ='Modelo (Ideal)'!J125 -> 1 | K125: ='Modelo (Ideal)'!K125 -> 1 | L125: Administración y gobierno | M125: Administración y gobierno | N125: Población | O125: Habitantes | P125: Población | Q125: Habitantes | R125: TRUE | S125: 8918653 | T125: 1 | U125: 8918653 | V125: 32.21600554 | W125: 0.7705873578 | X125: 221407759.9 | Y125: 2357076 | Z125: 32.21600554 | AA125: 58514992.92 | AC125: 11275729
B126: 308040 | C126: 3 | D126: 08 | E126: 04 | F126: 0 | G126: En forma subordinada con el Gobierno de la Ciudad de México | H126: Seguridad ciudadana y protección civil | I126: Proponer y opinar previamente ante la Jefatura de Gobierno de la Ciudad de México, respecto de la designación, desempeño y/o remoción de los mandos policiales que correspondan a la demarcación territorial; | J126: ='Modelo (Ideal)'!J126 -> 1 | K126: ='Modelo (Ideal)'!K126 -> 1 | L126: Administración y gobierno | M126: Administración y gobierno | N126: Población | O126: Habitantes | P126: Población | Q126: Habitantes | R126: TRUE | S126: 8918653 | T126: 1 | U126: 8918653 | V126: 32.21600554 | W126: 0.7705873578 | X126: 221407759.9 | Y126: 2357076 | Z126: 32.21600554 | AA126: 58514992.92 | AC126: 11275729
B127: 308050 | C127: 3 | D127: 08 | E127: 05 | F127: 0 | G127: En forma subordinada con el Gobierno de la Ciudad de México | H127: Seguridad ciudadana y protección civil | I127: Ejercer funciones de supervisión de los mandos de la policía preventiva, dentro de su demarcación territorial, de conformidad a lo dispuesto en la normatividad aplicable; | J127: ='Modelo (Ideal)'!J127 -> 1 | K127: ='Modelo (Ideal)'!K127 -> 1 | L127: Administración y gobierno | M127: Administración y gobierno | N127: Población | O127: Habitantes | P127: Población | Q127: Habitantes | R127: TRUE | S127: 8918653 | T127: 1 | U127: 8918653 | V127: 32.21600554 | W127: 0.7705873578 | X127: 221407759.9 | Y127: 2357076 | Z127: 32.21600554 | AA127: 58514992.92 | AC127: 11275729
B128: 308060 | C128: 3 | D128: 08 | E128: 06 | F128: 0 | G128: En forma subordinada con el Gobierno de la Ciudad de México | H128: Seguridad ciudadana y protección civil | I128: Presentar ante la dependencia competente, los informes o quejas sobre la actuación y comportamiento de las y los miembros de los cuerpos de seguridad, respecto de actos que presuntamente contravengan las disposiciones, para su remoción conforme a los procedimientos legalmente establecidos; | J128: ='Modelo (Ideal)'!J128 -> 1 | K128: ='Modelo (Ideal)'!K128 -> 5 | L128: Servicios públicos e infraestructura urbana | M128: Jardinería, poda de árboles | N128: Superficie de parques | O128: m2 | P128: Superficie Área verde alcaldía | Q128: m2 | R128: FALSE | S128: 23579759.77 | T128: 1 | U128: 23579759.77 | V128: 12.02834326 | W128: 1.007545364 | X128: 285765501.6 | Y128: 0 | Z128: 12.02834326 | AA128: 0 | AC128: 23579759.77
B129: 308070 | C129: 3 | D129: 08 | E129: 07 | F129: 0 | G129: En forma subordinada con el Gobierno de la Ciudad de México | H129: Seguridad ciudadana y protección civil | I129: Establecer y organizar un comité de seguridad ciudadana como instancia colegiada da de consulta y participación ciudadana, en los términos de las disposiciones jurídicas aplicables; | J129: ='Modelo (Ideal)'!J129 -> 1 | K129: ='Modelo (Ideal)'!K129 -> 15 | L129: Servicios públicos e infraestructura urbana | M129: Espacio público (parques y plazas) | N129: Superficie de parques | O129: m2 | P129: Superficie Área verde alcaldía | Q129: m2 | R129: FALSE | S129: 23579759.77 | T129: 1 | U129: 23579759.77 | V129: 3.595012557 | W129: 1.007545364 | X129: 85409149.45 | Y129: 0 | Z129: 3.595012557 | AA129: 0 | AC129: 23579759.77
B130: 308080 | C130: 3 | D130: 08 | E130: 08 | F130: 0 | G130: En forma subordinada con el Gobierno de la Ciudad de México | H130: Seguridad ciudadana y protección civil | I130: Elaborar el atlas de riesgo y el programa de protección civil de la demarcación territorial, y ejecutarlo de manera coordinada con el órgano público garante de la gestión integral de riesgos de conformidad con la normatividad aplicable; | J130: ='Modelo (Ideal)'!J130 -> 1 | K130: ='Modelo (Ideal)'!K130 -> 15 | L130: Servicios públicos e infraestructura urbana | M130: Espacio público (parques y plazas) | N130: Superficie de parques | O130: m2 | P130: Superficie Área verde alcaldía | Q130: m2 | R130: FALSE | S130: 23579759.77 | T130: 1 | U130: 23579759.77 | V130: 3.595012557 | W130: 1.007545364 | X130: 85409149.45 | Y130: 0 | Z130: 3.595012557 | AA130: 0 | AC130: 23579759.77
B131: 308090 | C131: 3 | D131: 08 | E131: 09 | F131: 0 | G131: En forma subordinada con el Gobierno de la Ciudad de México | H131: Seguridad ciudadana y protección civil | I131: Coadyuvar con el organismo público garante de la gestión integral de riesgos de la Ciudad de México, para la prevención y extinción de incendios y otros siniestros que pongan en peligro la vida y el patrimonio de los habitantes; y | J131: ='Modelo (Ideal)'!J131 -> 1 | K131: ='Modelo (Ideal)'!K131 -> 16 | L131: Protección al medio ambiente | M131: Áreas verdes | N131: Superficie de áreas verdes | O131: m2 | P131: Superficie Área verde alcaldía | Q131: m2 | R131: FALSE | S131: 23579759.77 | T131: 1 | U131: 23579759.77 | V131: 1.865250534 | W131: 119.803517 | X131: 5269217393 | Y131: 0 | Z131: 1.865250534 | AA131: 0 | AC131: 23579759.77
B132: 308100 | C132: 3 | D132: 08 | E132: 10 | F132: 0 | G132: En forma subordinada con el Gobierno de la Ciudad de México | H132: Seguridad ciudadana y protección civil | I132: Solicitar, en su caso, a la Jefatura de Gobierno de la Ciudad de México, la emisión de la declaratoria de emergencia o la declaratoria de desastre en los términos de la ley. | J132: ='Modelo (Ideal)'!J132 -> 1 | K132: ='Modelo (Ideal)'!K132 -> 16 | L132: Protección al medio ambiente | M132: Áreas verdes | N132: Superficie de áreas verdes | O132: m2 | P132: Superficie Área verde alcaldía | Q132: m2 | R132: FALSE | S132: 23579759.77 | T132: 1 | U132: 23579759.77 | V132: 1.865250534 | W132: 119.803517 | X132: 5269217393 | Y132: 0 | Z132: 1.865250534 | AA132: 0 | AC132: 23579759.77
B134: Cálculo de coeficientes
B136: Ajuste por rubro
B138: Rubro | C138: Ajuste | D138: Total costo | E138: %
B139: Administración y gobierno | C139: =Presupuesto!C138 -> 0.7705873578 | D139: =SUMIF($L$35:$L$132,B139,$X$35:$X$132)+SUMIFS($AA$35:$AA$132,$L$35:$L$132,B139,$R$35:$R$132,TRUE) -> 2.07799927e+10 | E139: =D139/$D$143 -> 0.3501777289
B140: Servicios públicos e infraestructura urbana | C140: =Presupuesto!C139 -> 1.007545364 | D140: =SUMIF($L$35:$L$132,B140,$X$35:$X$132)+SUMIFS($AA$35:$AA$132,$L$35:$L$132,B140,$R$35:$R$132,TRUE) -> 9094079199 | E140: =D140/$D$143 -> 0.153250487
B141: Programas sociales | C141: =Presupuesto!C140 -> 1.902719389 | D141: =SUMIF($L$35:$L$132,B141,$X$35:$X$132)+SUMIFS($AA$35:$AA$132,$L$35:$L$132,B141,$R$35:$R$132,TRUE) -> 8390332930 | E141: 0.141391182
B142: Protección al medio ambiente | C142: =Presupuesto!C141 -> 119.803517 | D142: =SUMIF($L$35:$L$132,B142,$X$35:$X$132)+SUMIFS($AA$35:$AA$132,$L$35:$L$132,B142,$R$35:$R$132,TRUE) -> 2.107686957e+10 | E142: 0.3551806021
D143: =SUM(D139:D142) -> 5.93412744e+10
B145: Coeficientes de la fórmula de repartición
B147: Variable | C147: Total costo | D147: coeficientes
B148: Población | C148: =SUMIF($P$35:$P$132,B148,$X$35:$X$132) -> 2.377067356e+10 | D148: =(C148/$C$154) -> 0.4005757173
B149: Población pobreza (coneval) | C149: =SUMIF($P$35:$P$132,B149,$X$35:$X$132) -> 4212083835 | D149: 0.07098067706
B150: Población flotante | C150: =SUMIF($R$35:$R$132,TRUE,$AA$35:$AA$132) -> 5956051962 | D150: 0.100369465
B151: Superficie urbana | C151: =SUMIF($P$35:$P$132,B151,$X$35:$X$132) -> 3869011677 | D151: 0.0651993358
B152: Superficie Área verde alcaldía | C152: =SUMIF($P$35:$P$132,B152,$X$35:$X$132) -> 1.099501859e+10 | D152: 0.1852845039
B153: Superficie de suelo de conservación | C153: =SUMIF($P$35:$P$132,B153,$X$35:$X$132) -> 1.053843479e+10 | D153: 0.177590301
C154: =SUM(C148:C153) -> 5.93412744e+10 | D154: =SUM(D148:D153) -> 1

Sheet Modelo (Ideal)
B2: Variables dimensionales
K3: Gasto estimado histórico 2018 por variable
B4: ID | C4: Rubro | D4: Resumen Facultad | E4: Variable dimensional | F4: Unidades | G4: Variable representativa | H4: Unidades | I4: Afectado por población flotante | J4: Factor conversión | K4: Suma valor dimensional | L4: Suma costo 2018 | M4: Costo unitario (pesos/unidad/actividad)
B5: 1 | C5: Administración y gobierno | D5: Administración y gobierno | E5: Población | F5: Habitantes | G5: Población | H5: Habitantes | I5: TRUE | J5: 1 | K5: =SUMIF($K$35:$K$132,B5,$AC$35:$AC$132) -> 834403946 | L5: =INDEX(Asignacion_Historica!$AT$260:$BJ$260,1,MATCH('Modelo (Ideal)'!D5,Asignacion_Historica!$AT$5:$BJ$5,0)) -> 2.688116214e+10 | M5: =L5/K5 -> 32.21600554 | O5: 2.720682329e+10
B6: 2 | C6: Administración y gobierno | D6: Unidad de Género | E6: Población de mujeres ocupadas | F6: Habitantes | G6: Población | H6: Habitantes | I6: TRUE | J6: 0.5234 | K6: =SUMIF($K$35:$K$132,B6,$AC$35:$AC$132) -> 7025098.98 | L6: =INDEX(Asignacion_Historica!$AT$260:$BJ$260,1,MATCH('Modelo (Ideal)'!D6,Asignacion_Historica!$AT$5:$BJ$5,0)) -> 85271310 | M6: =L6/K6 -> 12.13809375 | O6: 0
B7: 3 | C7: Servicios públicos e infraestructura urbana | D7: Alumbrado público | E7: Metros lineales de banqueta | F7: m | G7: Superficie urbana | H7: m2 | I7: FALSE | J7: 0.0324 | K7: =SUMIF($K$35:$K$132,B7,$AC$35:$AC$132) -> 25695184.53 | L7: =INDEX(Asignacion_Historica!$AT$260:$BJ$260,1,MATCH('Modelo (Ideal)'!D7,Asignacion_Historica!$AT$5:$BJ$5,0)) -> 332856841.6 | M7: 12.95405531 | O7: 431594893.8
B8: 4 | C8: Servicios públicos e infraestructura urbana | D8: Limpia | E8: Superficie de banqueta y arroyos vehiculares secundarios y locales | F8: m2 | G8: Superficie urbana | H8: m2 | I8: FALSE | J8: 0.1319 | K8: 104604779 | L8: =INDEX(Asignacion_Historica!$AT$260:$BJ$260,1,MATCH('Modelo (Ideal)'!D8,Asignacion_Historica!$AT$5:$BJ$5,0)) -> 273699014.7 | M8: 2.616505836 | O8: 422056287.9
B9: 5 | C9: Servicios públicos e infraestructura urbana | D9: Jardinería, poda de árboles | E9: Superficie de parques | F9: m2 | G9: Superficie Área verde alcaldía | H9: m2 | I9: FALSE | J9: 1 | K9: 23579759.77 | L9: =INDEX(Asignacion_Historica!$AT$260:$BJ$260,1,MATCH('Modelo (Ideal)'!D9,Asignacion_Historica!$AT$5:$BJ$5,0)) -> 283625444.4 | M9: 12.02834326 | O9: 480238048.9
B10: 6 | C10: Servicios públicos e infraestructura urbana | D10: Pavimentación | E10: Superficie de arroyos vehiculares secundarios y locales | F10: m2 | G10: Superficie urbana | H10: m2 | I10: FALSE | J10: 0.1026 | K10: 81368084.33 | L10: =INDEX(Asignacion_Historica!$AT$260:$BJ$260,1,MATCH('Modelo (Ideal)'!D10,Asignacion_Historica!$AT$5:$BJ$5,0)) -> 790177453.9 | M10: 9.711147317 | O10: 652946263.8
B11: 7 | C11: Servicios públicos e infraestructura urbana | D11: Accesibilidad y diseño universal | E11: Rampas | F11: # | G11: Superficie urbana | H11: m2 | I11: FALSE | J11: 0.0005 | K11: 793061.2508 | L11: =INDEX(Asignacion_Historica!$AT$260:$BJ$260,1,MATCH('Modelo (Ideal)'!D11,Asignacion_Historica!$AT$5:$BJ$5,0)) -> 172016066.2 | M11: 216.9013629 | O11: 150992293.9
B12: 8 | C12: Programas sociales | D12: Programas sociales | E12: Población pobreza | F12: Habitantes | G12: Población pobreza (coneval) | H12: Habitantes | I12: FALSE | J12: 1 | K12: 9828336 | L12: =INDEX(Asignacion_Historica!$AT$260:$BJ$260,1,MATCH('Modelo (Ideal)'!D12,Asignacion_Historica!$AT$5:$BJ$5,0)) -> 2213717829 | M12: 225.2383139 | O12: 2340378710
B13: 9 | C13: Programas sociales | D13: Programas sociales (desarrollo económico) | E13: Desempleo | F13: Habitantes | G13: Población | H13: Habitantes | I13: TRUE | J13: 0.4451 | K13: 6326768.45 | L13: =INDEX(Asignacion_Historica!$AT$260:$BJ$260,1,MATCH('Modelo (Ideal)'!D13,Asignacion_Historica!$AT$5:$BJ$5,0)) -> 2195935522 | M13: 347.0864375 | O13: 2331579846
B14: 10 | C14: Servicios públicos e infraestructura urbana | D14: Pasos peatonales | E14: Pasos peatonales | F14: # | G14: Superficie urbana | H14: m2 | I14: FALSE | J14: 7e-05 | K14: 55514.28756 | L14: =INDEX(Asignacion_Historica!$AT$260:$BJ$260,1,MATCH('Modelo (Ideal)'!D14,Asignacion_Historica!$AT$5:$BJ$5,0)) -> 437407606.7 | M14: 7879.189771 | O14: 323043326.5
B15: 11 | C15: Servicios públicos e infraestructura urbana | D15: Rehabilitar y mantener escuelas, así como construir, bibliotecas, museos y demás centros de servicio social, cultural y deportivo a su cargo | E15: Número de aulas en escuelas, bibliotecas, museos y demás centros | F15: # | G15: Población | H15: Habitantes | I15: FALSE | J15: 0.0037 | K15: 32999.0161 | L15: =INDEX(Asignacion_Historica!$AT$260:$BJ$260,1,MATCH('Modelo (Ideal)'!D15,Asignacion_Historica!$AT$5:$BJ$5,0)) -> 2083750800 | M15: 63145.84634 | O15: 1861941745
B16: 12 | C16: Servicios públicos e infraestructura urbana | D16: Administrar los centros sociales, instalaciones recreativas, de capacitación para el trabajo y centros deportivos, cuya administración no corresponda a otro orden de gobierno; | E16: Número de centros deportivos, centros sociales, instalaciones recreativas y de capacitación para el trabajo | F16: # | G16: Población | H16: Habitantes | I16: FALSE | J16: 0.6652 | K16: 5932687.976 | L16: =INDEX(Asignacion_Historica!$AT$260:$BJ$260,1,MATCH('Modelo (Ideal)'!D16,Asignacion_Historica!$AT$5:$BJ$5,0)) -> 2424617076 | M16: 408.6877797 | O16: 1861941745
B17: 13 | C17: Servicios públicos e infraestructura urbana | D17: Obras de regeneración de barrios | E17: Número de barrios y su superficie | F17: # | G17: Superficie urbana | H17: m2 | I17: FALSE | J17: 1 | K17: 793061250.8 | L17: =INDEX(Asignacion_Historica!$AT$260:$BJ$260,1,MATCH('Modelo (Ideal)'!D17,Asignacion_Historica!$AT$5:$BJ$5,0)) -> 1833880215 | M17: 2.312406783 | O17: 1861941745
B18: 14 | C18: Servicios públicos e infraestructura urbana | D18: Recolección de basura | E18: Población | F18: Habitantes | G18: Población | H18: Habitantes | I18: TRUE | J18: 1 | K18: 11275729 | L18: =INDEX(Asignacion_Historica!$AT$260:$BJ$260,1,MATCH('Modelo (Ideal)'!D18,Asignacion_Historica!$AT$5:$BJ$5,0)) -> 224405348.7 | M18: 19.90162664 | O18: 422056287.9
B19: 15 | C19: Servicios públicos e infraestructura urbana | D19: Espacio público (parques y plazas) | E19: Superficie de parques | F19: m2 | G19: Superficie Área verde alcaldía | H19: m2 | I19: FALSE | J19: 1 | K19: 47159519.55 | L19: =INDEX(Asignacion_Historica!$AT$260:$BJ$260,1,MATCH('Modelo (Ideal)'!D19,Asignacion_Historica!$AT$5:$BJ$5,0)) -> 169539064.9 | M19: 3.595012557 | O19: 67902081.5
B20: 16 | C20: Protección al medio ambiente | D20: Áreas verdes | E20: Superficie de áreas verdes | F20: m2 | G20: Superficie Área verde alcaldía | H20: m2 | I20: FALSE | J20: 1 | K20: 47159519.55 | L20: =INDEX(Asignacion_Historica!$AT$260:$BJ$260,1,MATCH('Modelo (Ideal)'!D20,Asignacion_Historica!$AT$5:$BJ$5,0)) -> 87964319 | M20: 1.865250534 | O20: 81276906.5
B21: 17 | C21: Protección al medio ambiente | D21: Suelo de conservación | E21: Superficie de suelo de conservación | F21: m2 | G21: Superficie de suelo de conservación | H21: m2 | I21: FALSE | J21: 1 | K21: 869794800 | L21: =INDEX(Asignacion_Historica!$AT$260:$BJ$260,1,MATCH('Modelo (Ideal)'!D21,Asignacion_Historica!$AT$5:$BJ$5,0)) -> 87964319 | M21: 0.1011322659 | O21: 81276906.5
B23: Variables representativas
B25: ID | C25: Variable reprsentativa | D25: Valor | E25: Unidad
B26: 1 | C26: Población | D26: =Presupuesto!D23 -> 8918653 | E26: Personas
B27: 2 | C27: Superficie urbana | D27: =Presupuesto!G23 -> 793061250.8 | E27: m2
B28: 3 | C28: Superficie Área verde alcaldía | D28: =Presupuesto!H23 -> 23579759.77 | E28: m2
B29: 4 | C29: Población pobreza (coneval) | D29: 2457084 | E29: Personas
B30: 5 | C30: Superficie de suelo de conservación | D30: =Presupuesto!I23 -> 869794800 | E30: m2
B31: 6 | C31: Población flotante | D31: =Presupuesto!F23 -> 2357076 | E31: Personas
B33: Ley Orgánica de la CDMX | J33: Esquema de medición y presupuestación | S33: Costeo
B34: Codigo Integrado | C34: Cod. Actuación | D34: Cod. Materia | E34: Cod. Facultades | F34: Cod. Sub facultades | G34: Actuación | H34: Materia | I34: Facultades | J34: ¿Facultad encendida? | K34: ID variable representativa | L34: Rubro | M34: Resumen descripción facultad | N34: Variable dimensional | O34: Unidades | P34: Variable representativa | Q34: Unidades | R34: Afectado por población flotante | S34: Valor variable respresentativa | T34: Factor conversión | U34: Estimación variable dimensional | V34: Costo unitario (pesos/unidad) | W34: Ajuste por rubro | X34: Costo (Pesos) | Y34: Plus población flotante | Z34: Costo unitario (pesos/unidad) | AA34: Costo plus flotante (Pesos) | AC34: Total (Temporal)
B35: 101010 | C35: 1 | D35: 01 | E35: 01 | F35: 0 | G35: De manera exclusiva | H35: Gobierno y régimen interior | I35: Dirigir la administración pública de la alcaldía; | J35: 1 | K35: 1 | L35: =IFERROR(VLOOKUP($K35,$B$5:$J$21,2,FALSE),"") -> Administración y gobierno | M35: =IFERROR(VLOOKUP($K35,$B$5:$J$21,3,FALSE),"") -> Administración y gobierno | N35: =IFERROR(VLOOKUP($K35,$B$5:$J$21,4,FALSE),"") -> Población | O35: =IFERROR(VLOOKUP($K35,$B$5:$J$21,5,FALSE),"") -> Habitantes | P35: =IFERROR(VLOOKUP($K35,$B$5:$J$21,6,FALSE),"") -> Población | Q35: =IFERROR(VLOOKUP($K35,$B$5:$J$21,7,FALSE),"") -> Habitantes | R35: =IFERROR(VLOOKUP($K35,$B$5:$J$21,8,FALSE),"") -> TRUE | S35: =IFERROR(VLOOKUP(P35,$C$26:$D$31,2,FALSE),0) -> 8918653 | T35: =IFERROR(VLOOKUP($K35,$B$5:$J$21,9,FALSE),0) -> 1 | U35: =T35*S35 -> 8918653 | V35: =IFERROR(VLOOKUP($K35,$B$5:$M$21,12,FALSE),0) -> 32.21600554 | W35: =IFERROR(VLOOKUP(L35,$B$139:$D$142,3,FALSE),0) -> 0.5266657401 | X35: =U35*V35*W35*J35 -> 151323377.6 | Y35: =IF(R35=TRUE,$D$31,0) -> 2357076 | Z35: =V35 -> 32.21600554 | AA35: =Z35*Y35*W35*J35 -> 39992664.99 | AC35: =IFERROR(U35+Y35,0) -> 11275729
B36: 101020 | C36: 1 | D36: 01 | E36: 02 | F36: 0 | G36: De manera exclusiva | H36: Gobierno y régimen interior | I36: Someter a la aprobación del concejo, propuestas de disposiciones generales con el carácter de bando, únicamente sobre materias que sean de su competencia exclusiva; | J36: 1 | K36: 1 | L36: Administración y gobierno | M36: Administración y gobierno | N36: Población | O36: Habitantes | P36: Población | Q36: Habitantes | R36: TRUE | S36: 8918653 | T36: 1 | U36: =T36*S36 -> 8918653 | V36: 32.21600554 | W36: 0.5266657401 | X36: =U36*V36*W36*J36 -> 151323377.6 | Y36: 2357076 | Z36: 32.21600554 | AA36: 39992664.99 | AC36: =IFERROR(U36+Y36,0) -> 11275729
B37: 101030 | C37: 1 | D37: 01 | E37: 03 | F37: 0 | G37: De manera exclusiva | H37: Gobierno y régimen interior | I37: Velar por el cumplimiento de las leyes, reglamentos, decretos, acuerdos, circulares y demás disposiciones jurídicas y administrativas, e imponer las sanciones que corresponda, excepto las de carácter fiscal; | J37: 1 | K37: 1 | L37: Administración y gobierno | M37: Administración y gobierno | N37: Población | O37: Habitantes | P37: Población | Q37: Habitantes | R37: TRUE | S37: 8918653 | T37: 1 | U37: 8918653 | V37: 32.21600554 | W37: 0.5266657401 | X37: 151323377.6 | Y37: 2357076 | Z37: 32.21600554 | AA37: 39992664.99 | AC37: =IFERROR(U37+Y37,0) -> 11275729
B38: 101040 | C38: 1 | D38: 01 | E38: 04 | F38: 0 | G38: De manera exclusiva | H38: Gobierno y régimen interior | I38: Presentar iniciativas ante el Congreso de la Ciudad de México; | J38: 1 | K38: 1 | L38: Administración y gobierno | M38: Administración y gobierno | N38: Población | O38: Habitantes | P38: Población | Q38: Habitantes | R38: TRUE | S38: 8918653 | T38: 1 | U38: 8918653 | V38: 32.21600554 | W38: 0.5266657401 | X38: 151323377.6 | Y38: 2357076 | Z38: 32.21600554 | AA38: 39992664.99 | AC38: =IFERROR(U38+Y38,0) -> 11275729
B39: 101050 | C39: 1 | D39: 01 | E39: 05 | F39: 0 | G39: De manera exclusiva | H39: Gobierno y régimen interior | I39: Formular el proyecto de presupuesto de la demarcación territorial y someterlo a la aprobación del concejo; | J39: 1 | K39: 1 | L39: Administración y gobierno | M39: Administración y gobierno | N39: Población | O39: Habitantes | P39: Población | Q39: Habitantes | R39: TRUE | S39: 8918653 | T39: 1 | U39: 8918653 | V39: 32.21600554 | W39: 0.5266657401 | X39: 151323377.6 | Y39: 2357076 | Z39: 32.21600554 | AA39: 39992664.99 | AC39: =IFERROR(U39+Y39,0) -> 11275729
B40: 101060 | C40: 1 | D40: 01 | E40: 06 | F40: 0 | G40: De manera exclusiva | H40: Gobierno y régimen interior | I40: Participar en todas las sesiones del concejo, con voz y voto con excepción de aquellas que establezca la ley de la materia; | J40: 1 | K40: 1 | L40: Administración y gobierno | M40: Administración y gobierno | N40: Población | O40: Habitantes | P40: Población | Q40: Habitantes | R40: TRUE | S40: 8918653 | T40: 1 | U40: 8918653 | V40: 32.21600554 | W40: 0.5266657401 | X40: 151323377.6 | Y40: 2357076 | Z40: 32.21600554 | AA40: 39992664.99 | AC40: 11275729
B41: 101070 | C41: 1 | D41: 01 | E41: 07 | F41: 0 | G41: De manera exclusiva | H41: Gobierno y régimen interior | I41: Proponer, formular y ejecutar los mecanismos de simplificación administrativa, gobierno electrónico y políticas de datos abiertos que permitan atender de manera efectiva las demandas de la ciudadanía; | J41: 1 | K41: 1 | L41: Administración y gobierno | M41: Administración y gobierno | N41: Población | O41: Habitantes | P41: Población | Q41: Habitantes | R41: TRUE | S41: 8918653 | T41: 1 | U41: 8918653 | V41: 32.21600554 | W41: 0.5266657401 | X41: 151323377.6 | Y41: 2357076 | Z41: 32.21600554 | AA41: 39992664.99 | AC41: 11275729
B42: 101080 | C42: 1 | D42: 01 | E42: 08 | F42: 0 | G42: De manera exclusiva | H42: Gobierno y régimen interior | I42: Establecer la estructura organizacional de la alcaldía, conforme a las disposiciones aplicables; | J42: 1 | K42: 1 | L42: Administración y gobierno | M42: Administración y gobierno | N42: Población | O42: Habitantes | P42: Población | Q42: Habitantes | R42: TRUE | S42: 8918653 | T42: 1 | U42: 8918653 | V42: 32.21600554 | W42: 0.5266657401 | X42: 151323377.6 | Y42: 2357076 | Z42: 32.21600554 | AA42: 39992664.99 | AC42: 11275729
B43: 101090 | C43: 1 | D43: 01 | E43: 09 | F43: 0 | G43: De manera exclusiva | H43: Gobierno y régimen interior | I43: Expedir un certificado de residencia de la demarcación para aquellos que cumplan con los requisitos señalados por el artículo 22 de esta Constitución; | J43: 1 | K43: 1 | L43: Administración y gobierno | M43: Administración y gobierno | N43: Población | O43: Habitantes | P43: Población | Q43: Habitantes | R43: TRUE | S43: 8918653 | T43: 1 | U43: 8918653 | V43: 32.21600554 | W43: 0.5266657401 | X43: 151323377.6 | Y43: 2357076 | Z43: 32.21600554 | AA43: 39992664.99 | AC43: 11275729
B44: 101100 | C44: 1 | D44: 01 | E44: 10 | F44: 0 | G44: De manera exclusiva | H44: Gobierno y régimen interior | I44: Planear, programar, organizar, dirigir, controlar y evaluar el funcionamiento de las unidades administrativas adscritas a ellas; | J44: 1 | K44: 1 | L44: Administración y gobierno | M44: Administración y gobierno | N44: Población | O44: Habitantes | P44: Población | Q44: Habitantes | R44: TRUE | S44: 8918653 | T44: 1 | U44: 8918653 | V44: 32.21600554 | W44: 0.5266657401 | X44: 151323377.6 | Y44: 2357076 | Z44: 32.21600554 | AA44: 39992664.99 | AC44: 11275729
B45: 101110 | C45: 1 | D45: 01 | E45: 11 | F45: 0 | G45: De manera exclusiva | H45: Gobierno y régimen interior | I45: Administrar con autonomía los recursos materiales y los bienes muebles e inmuebles de la Ciudad de México asignados a la alcaldía, sujetándose a los mecanismos de rendición de cuentas establecidos en esta Constitución; | J45: 1 | K45: 1 | L45: Administración y gobierno | M45: Administración y gobierno | N45: Población | O45: Habitantes | P45: Población | Q45: Habitantes | R45: TRUE | S45: 8918653 | T45: 1 | U45: 8918653 | V45: 32.21600554 | W45: 0.5266657401 | X45: 151323377.6 | Y45: 2357076 | Z45: 32.21600554 | AA45: 39992664.99 | AC45: 11275729
B46: 101120 | C46: 1 | D46: 01 | E46: 12 | F46: 0 | G46: De manera exclusiva | H46: Gobierno y régimen interior | I46: Establecer la Unidad de Género como parte de la estructura de la alcaldía; | J46: 1 | K46: 2 | L46: Administración y gobierno | M46: Unidad de Género | N46: Población de mujeres ocupadas | O46: Habitantes | P46: Población | Q46: Habitantes | R46: TRUE | S46: 8918653 | T46: 0.5234 | U46: 4668022.98 | V46: 12.13809375 | W46: 0.5266657401 | X46: 29841355.12 | Y46: 2357076 | Z46: 12.13809375 | AA46: 15068122.47 | AC46: 7025098.98
B47: 101130 | C47: 1 | D47: 01 | E47: 13 | F47: 0 | G47: De manera exclusiva | H47: Gobierno y régimen interior | I47: Designar a las personas servidoras públicas de la alcaldía, sujetándose a las disposiciones del servicio profesional de carrera. En todo caso, los funcionarios de confianza, mandos medios y superiores, serán designados y removidos libremente por el alcalde o alcaldesa; | J47: 1 | K47: 1 | L47: Administración y gobierno | M47: Administración y gobierno | N47: Población | O47: Habitantes | P47: Población | Q47: Habitantes | R47: TRUE | S47: 8918653 | T47: 1 | U47: 8918653 | V47: 32.21600554 | W47: 0.5266657401 | X47: 151323377.6 | Y47: 2357076 | Z47: 32.21600554 | AA47: 39992664.99 | AC47: 11275729
B48: 101140 | C48: 1 | D48: 01 | E48: 14 | F48: 0 | G48: De manera exclusiva | H48: Gobierno y régimen interior | I48: Verificar que, de manera progresiva, la asignación de cargos correspondientes a la administración pública de la alcaldía, responda a criterios de igualdad de género; | J48: 1 | K48: 1 | L48: Administración y gobierno | M48: Administración y gobierno | N48: Población | O48: Habitantes | P48: Población | Q48: Habitantes | R48: TRUE | S48: 8918653 | T48: 1 | U48: 8918653 | V48: 32.21600554 | W48: 0.5266657401 | X48: 151323377.6 | Y48: 2357076 | Z48: 32.21600554 | AA48: 39992664.99 | AC48: 11275729
B49: 101150 | C49: 1 | D49: 01 | E49: 15 | F49: 0 | G49: De manera exclusiva | H49: Gobierno y régimen interior | I49: Legalizar las firmas de sus subalternos, y certificar y expedir copias y constancias de los documentos que obren en los archivos de la demarcación territorial; | J49: 1 | K49: 1 | L49: Administración y gobierno | M49: Administración y gobierno | N49: Población | O49: Habitantes | P49: Población | Q49: Habitantes | R49: TRUE | S49: 8918653 | T49: 1 | U49: 8918653 | V49: 32.21600554 | W49: 0.5266657401 | X49: 151323377.6 | Y49: 2357076 | Z49: 32.21600554 | AA49: 39992664.99 | AC49: 11275729
B50: 102010 | C50: 1 | D50: 02 | E50: 01 | F50: 0 | G50: De manera exclusiva | H50: Obra pública, desarrollo urbano y servicios públicos | I50: Supervisar y revocar permisos sobre aquellos bienes otorgados a su cargo con esas facultades; | J50: 1 | K50: 1 | L50: Administración y gobierno | M50: Administración y gobierno | N50: Población | O50: Habitantes | P50: Población | Q50: Habitantes | R50: TRUE | S50: 8918653 | T50: 1 | U50: 8918653 | V50: 32.21600554 | W50: 0.5266657401 | X50: 151323377.6 | Y50: 2357076 | Z50: 32.21600554 | AA50: 39992664.99 | AC50: 11275729
B51: 102020 | C51: 1 | D51: 02 | E51: 02 | F51: 0 | G51: De manera exclusiva | H51: Obra pública, desarrollo urbano y servicios públicos | I51: Registrar las manifestaciones de obra y expedir las autorizaciones, permisos, licencias de construcción de demoliciones, instalaciones aéreas o subterráneas en vía pública, edificaciones en suelo de conservación, estaciones repetidoras de comunicación celular o inalámbrica y demás, correspondiente a su demarcación territorial, conforme a la normativa aplicable; | J51: 1 | K51: 1 | L51: Administración y gobierno | M51: Administración y gobierno | N51: Población | O51: Habitantes | P51: Población | Q51: Habitantes | R51: TRUE | S51: 8918653 | T51: 1 | U51: 8918653 | V51: 32.21600554 | W51: 0.5266657401 | X51: 151323377.6 | Y51: 2357076 | Z51: 32.21600554 | AA51: 39992664.99 | AC51: 11275729
B52: 102030 | C52: 1 | D52: 02 | E52: 03 | F52: 0 | G52: De manera exclusiva | H52: Obra pública, desarrollo urbano y servicios públicos | I52: Otorgar licencias de fusión, subdivisión, relotificación, de conjunto y de condominios; así como autorizar los números oficiales y alineamientos, con apego a la normatividad correspondiente; | J52: 1 | K52: 1 | L52: Administración y gobierno | M52: Administración y gobierno | N52: Población | O52: Habitantes | P52: Población | Q52: Habitantes | R52: TRUE | S52: 8918653 | T52: 1 | U52: 8918653 | V52: 32.21600554 | W52: 0.5266657401 | X52: 151323377.6 | Y52: 2357076 | Z52: 32.21600554 | AA52: 39992664.99 | AC52: 11275729
B53: 102041 | C53: 1 | D53: 02 | E53: 04 | F53: 1 | G53: De manera exclusiva | H53: Obra pública, desarrollo urbano y servicios públicos | I53: Prestar los siguientes servicios públicos: alumbrado público en las vialidades; limpia y recolección de basura; poda de árboles; regulación de mercados; y pavimentación, de conformidad con la normatividad aplicable; | J53: 1 | K53: 3 | L53: Servicios públicos e infraestructura urbana | M53: Alumbrado público | N53: Metros lineales de banqueta | O53: m | P53: Superficie urbana | Q53: m2 | R53: FALSE | S53: 793061250.8 | T53: 0.0324 | U53: 25695184.53 | V53: 12.95405531 | W53: 1.573491699 | X53: 523747477.2 | Y53: 0 | Z53: 12.95405531 | AA53: 0 | AC53: 25695184.53
B54: 202042 | C54: 2 | D54: 02 | E54: 04 | F54: 2 | G54: De manera exclusiva | H54: Obra pública, desarrollo urbano y servicios públicos | I54: Prestar los siguientes servicios públicos: alumbrado público en las vialidades; limpia y recolección de basura; poda de árboles; regulación de mercados; y pavimentación, de conformidad con la normatividad aplicable; | J54: 1 | K54: 4 | L54: Servicios públicos e infraestructura urbana | M54: Limpia | N54: Superficie de banqueta y arroyos vehiculares secundarios y locales | O54: m2 | P54: Superficie urbana | Q54: m2 | R54: FALSE | S54: 793061250.8 | T54: 0.1319 | U54: 104604779 | V54: 2.616505836 | W54: 1.573491699 | X54: 430663127.6 | Y54: 0 | Z54: 2.616505836 | AA54: 0 | AC54: 104604779
B55: 302043 | C55: 3 | D55: 02 | E55: 04 | F55: 3 | G55: De manera exclusiva | H55: Obra pública, desarrollo urbano y servicios públicos | I55: Prestar los siguientes servicios públicos: alumbrado público en las vialidades; limpia y recolección de basura; poda de árboles; regulación de mercados; y pavimentación, de conformidad con la normatividad aplicable; | J55: 1 | K55: 14 | L55: Servicios públicos e infraestructura urbana | M55: Recolección de basura | N55: Población | O55: Habitantes | P55: Población | Q55: Habitantes | R55: TRUE | S55: 8918653 | T55: 1 | U55: 8918653 | V55: 19.90162664 | W55: 1.573491699 | X55: 279288013.9 | Y55: 2357076 | Z55: 19.90162664 | AA55: 73811939.39 | AC55: 11275729
B56: 102050 | C56: 1 | D56: 02 | E56: 05 | F56: 0 | G56: De manera exclusiva | H56: Obra pública, desarrollo urbano y servicios públicos | I56: Autorizar los horarios para el acceso a las diversiones y espectáculos públicos, vigilar su desarrollo y, en general, el cumplimiento de disposiciones jurídicas aplicables; | J56: 1 | K56: 1 | L56: Administración y gobierno | M56: Administración y gobierno | N56: Población | O56: Habitantes | P56: Población | Q56: Habitantes | R56: TRUE | S56: 8918653 | T56: 1 | U56: 8918653 | V56: 32.21600554 | W56: 0.5266657401 | X56: 151323377.6 | Y56: 2357076 | Z56: 32.21600554 | AA56: 39992664.99 | AC56: 11275729
B57: 502045 | C57: 5 | D57: 02 | E57: 04 | F57: 5 | G57: De manera exclusiva | H57: Obra pública, desarrollo urbano y servicios públicos | I57: Prestar los siguientes servicios públicos: alumbrado público en las vialidades; limpia y recolección de basura; poda de árboles; regulación de mercados; y pavimentación, de conformidad con la normatividad aplicable; | J57: 1 | K57: 6 | L57: Servicios públicos e infraestructura urbana | M57: Pavimentación | N57: Superficie de arroyos vehiculares secundarios y locales | O57: m2 | P57: Superficie urbana | Q57: m2 | R57: FALSE | S57: 793061250.8 | T57: 0.1026 | U57: 81368084.33 | V57: 9.711147317 | W57: 1.573491699 | X57: 1243337664 | Y57: 0 | Z57: 9.711147317 | AA57: 0 | AC57: 81368084.33
B58: 602046 | C58: 6 | D58: 02 | E58: 04 | F58: 6 | G58: De manera exclusiva | H58: Obra pública, desarrollo urbano y servicios públicos | I58: Prestar los siguientes servicios públicos: alumbrado público en las vialidades; limpia y recolección de basura; poda de árboles; regulación de mercados; y pavimentación, de conformidad con la normatividad aplicable; | J58: 1 | K58: 18 | S58: 0 | T58: 0 | U58: 0 | V58: 0 | W58: 0 | X58: 0 | Y58: 0 | Z58: 0 | AA58: 0 | AC58: 0
B59: 102060 | C59: 1 | D59: 02 | E59: 06 | F59: 0 | G59: De manera exclusiva | H59: Obra pública, desarrollo urbano y servicios públicos | I59: Autorizar la ubicación, el funcionamiento y las tarifas que se aplicarán para los estacionamientos públicos de la demarcación territorial; | J59: 1 | K59: 1 | L59: Administración y gobierno | M59: Administración y gobierno | N59: Población | O59: Habitantes | P59: Población | Q59: Habitantes | R59: TRUE | S59: 8918653 | T59: 1 | U59: 8918653 | V59: 32.21600554 | W59: 0.5266657401 | X59: 151323377.6 | Y59: 2357076 | Z59: 32.21600554 | AA59: 39992664.99 | AC59: 11275729
B60: 102070 | C60: 1 | D60: 02 | E60: 07 | F60: 0 | G60: De manera exclusiva | H60: Obra pública, desarrollo urbano y servicios públicos | I60: Vigilar y verificar administrativamente el cumplimiento de las disposiciones, así como aplicar las sanciones que correspondan en materia de establecimientos mercantiles, estacionamientos públicos, construcciones, edificaciones, mercados públicos, protección civil, protección ecológica, anuncios, uso de suelo, cementerios, servicios funerarios, servicios de alojamiento, protección de no fumadores, y desarrollo urbano; | J60: 1 | K60: 1 | L60: Administración y gobierno | M60: Administración y gobierno | N60: Población | O60: Habitantes | P60: Población | Q60: Habitantes | R60: TRUE | S60: 8918653 | T60: 1 | U60: 8918653 | V60: 32.21600554 | W60: 0.5266657401 | X60: 151323377.6 | Y60: 2357076 | Z60: 32.21600554 | AA60: 39992664.99 | AC60: 11275729
B61: 102080 | C61: 1 | D61: 02 | E61: 08 | F61: 0 | G61: De manera exclusiva | H61: Obra pública, desarrollo urbano y servicios públicos | I61: Elaborar, digitalizar y mantener actualizado el padrón de los giros mercantiles que funcionen en su jurisdicción y otorgar los permisos, licencias y autorizaciones de funcionamiento de los giros y avisos, con sujeción a las leyes y reglamentos aplicables; | J61: 1 | K61: 1 | L61: Administración y gobierno | M61: Administración y gobierno | N61: Población | O61: Habitantes | P61: Población | Q61: Habitantes | R61: TRUE | S61: 8918653 | T61: 1 | U61: 8918653 | V61: 32.21600554 | W61: 0.5266657401 | X61: 151323377.6 | Y61: 2357076 | Z61: 32.21600554 | AA61: 39992664.99 | AC61: 11275729
B62: 103030 | C62: 1 | D62: 03 | E62: 03 | F62: 0 | G62: De manera exclusiva | H62: Movilidad, vía pública y espacios públicos | I62: Garantizar que la utilización de la vía pública y espacios públicos por eventos y acciones gubernamentales que afecten su destino y naturaleza, sea mínima; | J62: 1 | K62: 1 | L62: Administración y gobierno | M62: Administración y gobierno | N62: Población | O62: Habitantes | P62: Población | Q62: Habitantes | R62: TRUE | S62: 8918653 | T62: 1 | U62: 8918653 | V62: 32.21600554 | W62: 0.5266657401 | X62: 151323377.6 | Y62: 2357076 | Z62: 32.21600554 | AA62: 39992664.99 | AC62: 11275729
B63: 103010 | C63: 1 | D63: 03 | E63: 01 | F63: 0 | G63: De manera exclusiva | H63: Movilidad, vía pública y espacios públicos | I63: Diseñar e instrumentar acciones, programas y obras que garanticen la accesibilidad y el diseño universal; | J63: 1 | K63: 7 | L63: Servicios públicos e infraestructura urbana | M63: Accesibilidad y diseño universal | N63: Rampas | O63: # | P63: Superficie urbana | Q63: m2 | R63: FALSE | S63: 793061250.8 | T63: 0.0005 | U63: 396530.6254 | V63: 216.9013629 | W63: 1.573491699 | X63: 135332926.1 | Y63: 0 | Z63: 216.9013629 | AA63: 0 | AC63: 396530.6254
B64: 103020 | C64: 1 | D64: 03 | E64: 02 | F64: 0 | G64: De manera exclusiva | H64: Movilidad, vía pública y espacios públicos | I64: Diseñar e instrumentar medidas que contribuyan a la movilidad peatonal sin riesgo, así como al fomento y protección del transporte no motorizado; | J64: 1 | K64: 19 | S64: 0 | T64: 0 | U64: 0 | V64: 0 | W64: 0 | X64: 0 | Y64: 0 | Z64: 0 | AA64: 0 | AC64: 0
B65: 103040 | C65: 1 | D65: 03 | E65: 04 | F65: 0 | G65: De manera exclusiva | H65: Movilidad, vía pública y espacios públicos | I65: Otorgar permisos para el uso de la vía pública, sin que se afecte su naturaleza y destino, en los términos de las disposiciones jurídicas aplicables; XXVIII. | J65: 1 | K65: 1 | L65: Administración y gobierno | M65: Administración y gobierno | N65: Población | O65: Habitantes | P65: Población | Q65: Habitantes | R65: TRUE | S65: 8918653 | T65: 1 | U65: 8918653 | V65: 32.21600554 | W65: 0.5266657401 | X65: 151323377.6 | Y65: 2357076 | Z65: 32.21600554 | AA65: 39992664.99 | AC65: 11275729
B66: 103050 | C66: 1 | D66: 03 | E66: 05 | F66: 0 | G66: De manera exclusiva | H66: Movilidad, vía pública y espacios públicos | I66: Otorgar autorizaciones para la instalación de anuncios en vía pública, construcciones y edificaciones en los términos de las disposiciones jurídicas aplicables; | J66: 1 | K66: 1 | L66: Administración y gobierno | M66: Administración y gobierno | N66: Población | O66: Habitantes | P66: Población | Q66: Habitantes | R66: TRUE | S66: 8918653 | T66: 1 | U66: 8918653 | V66: 32.21600554 | W66: 0.5266657401 | X66: 151323377.6 | Y66: 2357076 | Z66: 32.21600554 | AA66: 39992664.99 | AC66: 11275729
B67: 103080 | C67: 1 | D67: 03 | E67: 08 | F67: 0 | G67: De manera exclusiva | H67: Movilidad, vía pública y espacios públicos | I67: Administrar los centros sociales, instalaciones recreativas, de capacitación para el trabajo y centros deportivos, cuya administración no corresponda a otro orden de gobierno; | J67: 1 | K67: 1 | L67: =IFERROR(VLOOKUP($K67,$B$5:$J$21,2,FALSE),"") -> Administración y gobierno | M67: =IFERROR(VLOOKUP($K67,$B$5:$J$21,3,FALSE),"") -> Administración y gobierno | N67: =IFERROR(VLOOKUP($K67,$B$5:$J$21,4,FALSE),"") -> Población | O67: =IFERROR(VLOOKUP($K67,$B$5:$J$21,5,FALSE),"") -> Habitantes | P67: =IFERROR(VLOOKUP($K67,$B$5:$J$21,6,FALSE),"") -> Población | Q67: =IFERROR(VLOOKUP($K67,$B$5:$J$21,7,FALSE),"") -> Habitantes | R67: =IFERROR(VLOOKUP($K67,$B$5:$J$21,8,FALSE),"") -> TRUE | S67: =IFERROR(VLOOKUP(P67,$C$26:$D$31,2,FALSE),0) -> 8918653 | T67: =IFERROR(VLOOKUP($K67,$B$5:$J$21,9,FALSE),0) -> 1 | U67: =T67*S67 -> 8918653 | V67: =IFERROR(VLOOKUP($K67,$B$5:$M$21,12,FALSE),0) -> 32.21600554 | W67: =IFERROR(VLOOKUP(L67,$B$139:$D$142,3,FALSE),0) -> 0.5266657401 | X67: =U67*V67*W67*J67 -> 151323377.6 | Y67: =IF(R67=TRUE,$D$31,0) -> 2357076 | Z67: =V67 -> 32.21600554 | AA67: =Z67*Y67*W67*J67 -> 39992664.99 | AC67: =IFERROR(U67+Y67,0) -> 11275729
B68: 103090 | C68: 1 | D68: 03 | E68: 09 | F68: 0 | G68: De manera exclusiva | H68: Movilidad, vía pública y espacios públicos | I68: Para el rescate del espacio público se podrán ejecutar programas a través de mecanismos de autogestión y participación ciudadana, sujetándose a lo dispuesto en la normatividad aplicable; | J68: 1 | K68: 1 | L68: Administración y gobierno | M68: Administración y gobierno | N68: Población | O68: Habitantes | P68: Población | Q68: Habitantes | R68: TRUE | S68: 8918653 | T68: 1 | U68: 8918653 | V68: 32.21600554 | W68: 0.5266657401 | X68: 151323377.6 | Y68: 2357076 | Z68: 32.21600554 | AA68: 39992664.99 | AC68: 11275729
B69: 103070 | C69: 1 | D69: 03 | E69: 07 | F69: 0 | G69: De manera exclusiva | H69: Movilidad, vía pública y espacios públicos | I69: Construir, rehabilitar y mantener las vialidades, así como las guarniciones y banquetas requeridas en su demarcación, con base en los principios de diseño universal y accesibilidad; | J69: 1 | K69: 7 | L69: Servicios públicos e infraestructura urbana | M69: Accesibilidad y diseño universal | N69: Rampas | O69: # | P69: Superficie urbana | Q69: m2 | R69: FALSE | S69: 793061250.8 | T69: 0.0005 | U69: 396530.6254 | V69: 216.9013629 | W69: 1.573491699 | X69: 135332926.1 | Y69: 0 | Z69: 216.9013629 | AA69: 0 | AC69: 396530.6254
B70: 103100 | C70: 1 | D70: 03 | E70: 10 | F70: 0 | G70: De manera exclusiva | H70: Movilidad, vía pública y espacios públicos | I70: Ordenar y ejecutar las medidas administrativas encaminadas a mantener o recuperar la posesión de bienes del dominio público que detenten particulares, pudiendo ordenar el retiro de obstáculos que impidan su adecuado uso; | J70: 1 | K70: 1 | L70: Administración y gobierno | M70: Administración y gobierno | N70: Población | O70: Habitantes | P70: Población | Q70: Habitantes | R70: TRUE | S70: 8918653 | T70: 1 | U70: 8918653 | V70: 32.21600554 | W70: 0.5266657401 | X70: 151323377.6 | Y70: 2357076 | Z70: 32.21600554 | AA70: 39992664.99 | AC70: 11275729
B71: 104020 | C71: 1 | D71: 04 | E71: 02 | F71: 0 | G71: De manera exclusiva | H71: Desarrollo económico y social | I71: Diseñar e instrumentar políticas públicas y proyectos comunitarios encaminados a promover el progreso económico, el desarrollo de las personas, la generación de empleo y el desarrollo turístico sustentable y accesible dentro de la demarcación territorial; | J71: 1 | K71: 9 | L71: Programas sociales | M71: Programas sociales (desarrollo económico) | N71: Desempleo | O71: Habitantes | P71: Población | Q71: Habitantes | R71: TRUE | S71: 8918653 | T71: 0.4451 | U71: 3969692.45 | V71: 347.0864375 | W71: 1.380312254 | X71: 1901830678 | Y71: 2357076 | Z71: 347.0864375 | AA71: 1129246032 | AC71: 6326768.45
B72: 105010 | C72: 1 | D72: 05 | E72: 01 | F72: 0 | G72: De manera exclusiva | H72: Educación y cultura | I72: Diseñar e instrumentar políticas públicas que promuevan la educación, la ciencia, la innovación tecnológica, el conocimiento y la cultura dentro de la demarcación; | J72: 1 | K72: 1 | L72: Administración y gobierno | M72: Administración y gobierno | N72: Población | O72: Habitantes | P72: Población | Q72: Habitantes | R72: TRUE | S72: 8918653 | T72: 1 | U72: 8918653 | V72: 32.21600554 | W72: 0.5266657401 | X72: 151323377.6 | Y72: 2357076 | Z72: 32.21600554 | AA72: 39992664.99 | AC72: 11275729
B73: 104010 | C73: 1 | D73: 04 | E73: 01 | F73: 0 | G73: De manera exclusiva | H73: Desarrollo económico y social | I73: Ejecutar en su demarcación territorial programas de desarrollo social, tomando en consideración la participación ciudadana, así como políticas y lineamientos que emita el Gobierno de la Ciudad de México; | J73: 1 | K73: 8 | L73: Programas sociales | M73: Programas sociales | N73: Población pobreza | O73: Habitantes | P73: Población pobreza (coneval) | Q73: Habitantes | R73: FALSE | S73: 2457084 | T73: 1 | U73: 2457084 | V73: 225.2383139 | W73: 1.380312254 | X73: 763905461.6 | Y73: 0 | Z73: 225.2383139 | AA73: 0 | AC73: 2457084
B74: 105020 | C74: 1 | D74: 05 | E74: 02 | F74: 0 | G74: De manera exclusiva | H74: Educación y cultura | I74: Desarrollar, de manera permanente, programas dirigidos al fortalecimiento de la cultura cívica, la democracia participativa, y los derechos humanos en la demarcación territorial; | J74: 1 | K74: 1 | L74: Administración y gobierno | M74: Administración y gobierno | N74: Población | O74: Habitantes | P74: Población | Q74: Habitantes | R74: TRUE | S74: 8918653 | T74: 1 | U74: 8918653 | V74: 32.21600554 | W74: 0.5266657401 | X74: 151323377.6 | Y74: 2357076 | Z74: 32.21600554 | AA74: 39992664.99 | AC74: 11275729
B75: 104030 | C75: 1 | D75: 04 | E75: 03 | F75: 0 | G75: De manera exclusiva | H75: Desarrollo económico y social | I75: Instrumentar políticas y programas de manera permanente dirigidas a la promoción y fortalecimiento del deporte; | J75: 1 | K75: 8 | L75: Programas sociales | M75: Programas sociales | N75: Población pobreza | O75: Habitantes | P75: Población pobreza (coneval) | Q75: Habitantes | R75: FALSE | S75: 2457084 | T75: 1 | U75: 2457084 | V75: 225.2383139 | W75: 1.380312254 | X75: 763905461.6 | Y75: 0 | Z75: 225.2383139 | AA75: 0 | AC75: 2457084
B76: 104040 | C76: 1 | D76: 04 | E76: 04 | F76: 0 | G76: De manera exclusiva | H76: Desarrollo económico y social | I76: Diseñar e instrumentar políticas y acciones sociales, encaminadas a la promoción de la cultura, la inclusión, la convivencia social y la igualdad sustantiva; así como desarrollar estrategias de mejoramiento urbano y territorial, dirigidas a la juventud y los diversos sectores sociales, con el propósito de avanzar en la reconstrucción del tejido social, el bienestar y el ejercicio pleno de los derechos sociales. Lo anterior se regirá bajo los principios de transparencia, objetividad, universalidad, integralidad, igualdad, territorialidad, efectividad, participación y no discriminación. Por ningún motivo serán utilizadas para fines de promoción personal o política de las personas servidoras públicas, ni para influir de manera indebida en los procesos electorales o mecanismos de participación ciudadana. La ley de la materia establecerá la prohibición de crear nuevos programas sociales en año electoral; | J76: 1 | K76: 8 | L76: Programas sociales | M76: Programas sociales | N76: Población pobreza | O76: Habitantes | P76: Población pobreza (coneval) | Q76: Habitantes | R76: FALSE | S76: 2457084 | T76: 1 | U76: 2457084 | V76: 225.2383139 | W76: 1.380312254 | X76: 763905461.6 | Y76: 0 | Z76: 225.2383139 | AA76: 0 | AC76: 2457084
B77: 104050 | C77: 1 | D77: 04 | E77: 05 | F77: 0 | G77: De manera exclusiva | H77: Desarrollo económico y social | I77: Prestar en forma gratuita, servicios funerarios cuando se trate de personas en situación de calle, y no hubiera quien reclame el cadáver, o sus deudos carezcan de recursos económicos; | J77: 1 | K77: 8 | L77: Programas sociales | M77: Programas sociales | N77: Población pobreza | O77: Habitantes | P77: Población pobreza (coneval) | Q77: Habitantes | R77: FALSE | S77: 2457084 | T77: 1 | U77: 2457084 | V77: 225.2383139 | W77: 1.380312254 | X77: 763905461.6 | Y77: 0 | Z77: 225.2383139 | AA77: 0 | AC77: 2457084
B78: 106010 | C78: 1 | D78: 06 | E78: 01 | F78: 0 | G78: De manera exclusiva | H78: Asuntos jurídicos | I78: Prestar asesoría jurídica gratuita en materia civil, penal, administrativa y del trabajo, con ajustes razonables si se requiere, en beneficio de los habitantes de la respectiva demarcación territorial; | J78: 1 | K78: 1 | L78: Administración y gobierno | M78: Administración y gobierno | N78: Población | O78: Habitantes | P78: Población | Q78: Habitantes | R78: TRUE | S78: 8918653 | T78: 1 | U78: 8918653 | V78: 32.21600554 | W78: 0.5266657401 | X78: 151323377.6 | Y78: 2357076 | Z78: 32.21600554 | AA78: 39992664.99 | AC78: 11275729
B79: 106020 | C79: 1 | D79: 06 | E79: 02 | F79: 0 | G79: De manera exclusiva | H79: Asuntos jurídicos | I79: Presentar quejas por infracciones cívicas y dar seguimiento al procedimiento hasta la ejecución de la sanción; | J79: 1 | K79: 1 | L79: Administración y gobierno | M79: Administración y gobierno | N79: Población | O79: Habitantes | P79: Población | Q79: Habitantes | R79: TRUE | S79: 8918653 | T79: 1 | U79: 8918653 | V79: 32.21600554 | W79: 0.5266657401 | X79: 151323377.6 | Y79: 2357076 | Z79: 32.21600554 | AA79: 39992664.99 | AC79: 11275729
B80: 106030 | C80: 1 | D80: 06 | E80: 03 | F80: 0 | G80: De manera exclusiva | H80: Asuntos jurídicos | I80: Realizar acciones de conciliación en conflictos vecinales que permitan a las y los ciudadanos dirimir sus conflictos de manera pacífica y la promoción de medios alternos de solución de controversias; | J80: 1 | K80: 1 | L80: Administración y gobierno | M80: Administración y gobierno | N80: Población | O80: Habitantes | P80: Población | Q80: Habitantes | R80: TRUE | S80: 8918653 | T80: 1 | U80: 8918653 | V80: 32.21600554 | W80: 0.5266657401 | X80: 151323377.6 | Y80: 2357076 | Z80: 32.21600554 | AA80: 39992664.99 | AC80: 11275729
B81: 107010 | C81: 1 | D81: 07 | E81: 01 | F81: 0 | G81: De manera exclusiva | H81: Rendición de cuentas | I81: Cumplir con sus obligaciones en materia de transparencia y acceso a la información, de conformidad con la ley aplicable; | J81: 1 | K81: 1 | L81: Administración y gobierno | M81: Administración y gobierno | N81: Población | O81: Habitantes | P81: Población | Q81: Habitantes | R81: TRUE | S81: 8918653 | T81: 1 | U81: 8918653 | V81: 32.21600554 | W81: 0.5266657401 | X81: 151323377.6 | Y81: 2357076 | Z81: 32.21600554 | AA81: 39992664.99 | AC81: 11275729
B82: 107020 | C82: 1 | D82: 07 | E82: 02 | F82: 0 | G82: De manera exclusiva | H82: Rendición de cuentas | I82: Participar en el sistema local contra la corrupción y establecer una estrategia anual en la materia con indicadores públicos de evaluación y mecanismos de participación ciudadana, así como implementar controles institucionales para prevenir actos de corrupción; mecanismos de seguimiento, evaluación y observación pública de las licitaciones, contrataciones y concesiones que realicen; y adopción de tabuladores de precios máximos, sujetándose a lo dispuesto en las leyes generales de la materia; y | J82: 1 | K82: 1 | L82: Administración y gobierno | M82: Administración y gobierno | N82: Población | O82: Habitantes | P82: Población | Q82: Habitantes | R82: TRUE | S82: 8918653 | T82: 1 | U82: 8918653 | V82: 32.21600554 | W82: 0.5266657401 | X82: 151323377.6 | Y82: 2357076 | Z82: 32.21600554 | AA82: 39992664.99 | AC82: 11275729
B83: 108010 | C83: 1 | D83: 08 | E83: 01 | F83: 0 | G83: De manera exclusiva | H83: Seguridad ciudadana y protección civil | I83: Recibir, evaluar y en su caso, aprobar los programas internos y especiales de protección civil en los términos de las disposiciones jurídicas aplicables. | J83: 1 | K83: 1 | L83: Administración y gobierno | M83: Administración y gobierno | N83: Población | O83: Habitantes | P83: Población | Q83: Habitantes | R83: TRUE | S83: 8918653 | T83: 1 | U83: 8918653 | V83: 32.21600554 | W83: 0.5266657401 | X83: 151323377.6 | Y83: 2357076 | Z83: 32.21600554 | AA83: 39992664.99 | AC83: 11275729
B84: 201010 | C84: 2 | D84: 01 | E84: 01 | F84: 0 | G84: En forma coordinada con el Gobierno de la Ciudad de México u otras autoridades: | H84: Gobierno y régimen interior | I84: Elaborar los proyectos de Presupuesto de Egresos de la demarcación y de calendario de ministraciones y someterlos a la aprobación del concejo; | J84: 1 | K84: 1 | L84: Administración y gobierno | M84: Administración y gobierno | N84: Población | O84: Habitantes | P84: Población | Q84: Habitantes | R84: TRUE | S84: 8918653 | T84: 1 | U84: 8918653 | V84: 32.21600554 | W84: 0.5266657401 | X84: 151323377.6 | Y84: 2357076 | Z84: 32.21600554 | AA84: 39992664.99 | AC84: 11275729
B85: 202020 | C85: 2 | D85: 02 | E85: 02 | F85: 0 | G85: En forma coordinada con el Gobierno de la Ciudad de México u otras autoridades: | H85: Obra pública, desarrollo urbano y servicios públicos | I85: Vigilar y verificar administrativamente el cumplimiento de las disposiciones, así como aplicar las sanciones que correspondan en materia de medio ambiente, mobiliario urbano, desarrollo urbano y turismo; | J85: 1 | K85: 1 | L85: Administración y gobierno | M85: Administración y gobierno | N85: Población | O85: Habitantes | P85: Población | Q85: Habitantes | R85: TRUE | S85: 8918653 | T85: 1 | U85: 8918653 | V85: 32.21600554 | W85: 0.5266657401 | X85: 151323377.6 | Y85: 2357076 | Z85: 32.21600554 | AA85: 39992664.99 | AC85: 11275729
B86: 202040 | C86: 2 | D86: 02 | E86: 04 | F86: 0 | G86: En forma coordinada con el Gobierno de la Ciudad de México u otras autoridades: | H86: Obra pública, desarrollo urbano y servicios públicos | I86: Rehabilitar y mantener escuelas, así como construir, rehabilitar y mantener bibliotecas, museos y demás centros de servicio social, cultural y deportivo a su cargo, de conformidad con la normatividad correspondiente; | J86: 1 | K86: 11 | L86: Servicios públicos e infraestructura urbana | M86: Rehabilitar y mantener escuelas, así como construir, bibliotecas, museos y demás centros de servicio social, cultural y deportivo a su cargo | N86: Número de aulas en escuelas, bibliotecas, museos y demás centros | O86: # | P86: Población | Q86: Habitantes | R86: FALSE | S86: 8918653 | T86: 0.0037 | U86: 32999.0161 | V86: 63145.84634 | W86: 1.573491699 | X86: 3278764587 | Y86: 0 | Z86: 63145.84634 | AA86: 0 | AC86: 32999.0161
B87: 202010 | C87: 2 | D87: 02 | E87: 01 | F87: 0 | G87: En forma coordinada con el Gobierno de la Ciudad de México u otras autoridades: | H87: Obra pública, desarrollo urbano y servicios públicos | I87: Construir, rehabilitar y mantener puentes, pasos peatonales y reductores de velocidad en las vialidades primarias y secundarias de su demarcación, con base en los lineamientos que determinen las dependencias centrales; | J87: 1 | K87: 10 | L87: Servicios públicos e infraestructura urbana | M87: Pasos peatonales | N87: Pasos peatonales | O87: # | P87: Superficie urbana | Q87: m2 | R87: FALSE | S87: 793061250.8 | T87: 7e-05 | U87: 55514.28756 | V87: 7879.189771 | W87: 1.573491699 | X87: 688257238.1 | Y87: 0 | Z87: 7879.189771 | AA87: 0 | AC87: 55514.28756
B88: 202050 | C88: 2 | D88: 02 | E88: 05 | F88: 0 | G88: En forma coordinada con el Gobierno de la Ciudad de México u otras autoridades: | H88: Obra pública, desarrollo urbano y servicios públicos | I88: Construir, rehabilitar, mantener y, en su caso, administrar y mantener en buen estado los mercados públicos, de conformidad con la normatividad que al efecto expida el Congreso de la Ciudad de México; | J88: 1 | K88: 12 | L88: Servicios públicos e infraestructura urbana | M88: Administrar los centros sociales, instalaciones recreativas, de capacitación para el trabajo y centros deportivos, cuya administración no corresponda a otro orden de gobierno; | N88: Número de centros deportivos, centros sociales, instalaciones recreativas y de capacitación para el trabajo | O88: # | P88: Población | Q88: Habitantes | R88: FALSE | S88: 8918653 | T88: 0.6652 | U88: 5932687.976 | V88: 408.6877797 | W88: 1.573491699 | X88: 3815114843 | Y88: 0 | Z88: 408.6877797 | AA88: 0 | AC88: 5932687.976
B89: 202070 | C89: 2 | D89: 02 | E89: 07 | F89: 0 | G89: En forma coordinada con el Gobierno de la Ciudad de México u otras autoridades: | H89: Obra pública, desarrollo urbano y servicios públicos | I89: Ejecutar dentro de su demarcación territorial los programas de obras públicas para el abastecimiento de agua potable y servicio de drenaje y alcantarillado y las demás obras y equipamiento urbano en coordinación con el organismo público encargado del abasto de agua y saneamiento de la Ciudad de México; así como realizar las acciones necesarias para procurar el abastecimiento y suministro de agua potable en la demarcación; | J89: 1 | K89: 1 | L89: Administración y gobierno | M89: Administración y gobierno | N89: Población | O89: Habitantes | P89: Población | Q89: Habitantes | R89: TRUE | S89: 8918653 | T89: 1 | U89: 8918653 | V89: 32.21600554 | W89: 0.5266657401 | X89: 151323377.6 | Y89: 2357076 | Z89: 32.21600554 | AA89: 39992664.99 | AC89: 11275729
B90: 202080 | C90: 2 | D90: 02 | E90: 08 | F90: 0 | G90: En forma coordinada con el Gobierno de la Ciudad de México u otras autoridades: | H90: Obra pública, desarrollo urbano y servicios públicos | I90: Prestar el servicio de tratamiento de residuos sólidos en la demarcación territorial; | J90: 1 | K90: 1 | L90: Administración y gobierno | M90: Administración y gobierno | N90: Población | O90: Habitantes | P90: Población | Q90: Habitantes | R90: TRUE | S90: 8918653 | T90: 1 | U90: 8918653 | V90: 32.21600554 | W90: 0.5266657401 | X90: 151323377.6 | Y90: 2357076 | Z90: 32.21600554 | AA90: 39992664.99 | AC90: 11275729
B91: 202090 | C91: 2 | D91: 02 | E91: 09 | F91: 0 | G91: En forma coordinada con el Gobierno de la Ciudad de México u otras autoridades: | H91: Obra pública, desarrollo urbano y servicios públicos | I91: Formular y presentar ante el Gobierno de la Ciudad de México las propuestas de programas de ordenamiento territorial de la demarcación con base en el procedimiento que establece esta Constitución y la ley en la materia; | J91: 1 | K91: 1 | L91: Administración y gobierno | M91: Administración y gobierno | N91: Población | O91: Habitantes | P91: Población | Q91: Habitantes | R91: TRUE | S91: 8918653 | T91: 1 | U91: 8918653 | V91: 32.21600554 | W91: 0.5266657401 | X91: 151323377.6 | Y91: 2357076 | Z91: 32.21600554 | AA91: 39992664.99 | AC91: 11275729
B92: 202060 | C92: 2 | D92: 02 | E92: 06 | F92: 0 | G92: En forma coordinada con el Gobierno de la Ciudad de México u otras autoridades: | H92: Obra pública, desarrollo urbano y servicios públicos | I92: Proponer y ejecutar las obras tendientes a la regeneración de barrios y, en su caso, promover su incorporación al patrimonio cultural, en coordinación con las autoridades competentes; | J92: 1 | K92: 13 | L92: Servicios públicos e infraestructura urbana | M92: Obras de regeneración de barrios | N92: Número de barrios y su superficie | O92: # | P92: Superficie urbana | Q92: m2 | R92: FALSE | S92: 793061250.8 | T92: 1 | U92: 793061250.8 | V92: 2.312406783 | W92: 1.573491699 | X92: 2885595296 | Y92: 0 | Z92: 2.312406783 | AA92: 0 | AC92: 793061250.8
B93: 202100 | C93: 2 | D93: 02 | E93: 10 | F93: 0 | G93: En forma coordinada con el Gobierno de la Ciudad de México u otras autoridades: | H93: Obra pública, desarrollo urbano y servicios públicos | I93: Intervenir en coordinación con la autoridad competente, en el otorgamiento de certificaciones de uso de suelo, en los términos de las disposiciones aplicables; | J93: 1 | K93: 1 | L93: Administración y gobierno | M93: Administración y gobierno | N93: Población | O93: Habitantes | P93: Población | Q93: Habitantes | R93: TRUE | S93: 8918653 | T93: 1 | U93: 8918653 | V93: 32.21600554 | W93: 0.5266657401 | X93: 151323377.6 | Y93: 2357076 | Z93: 32.21600554 | AA93: 39992664.99 | AC93: 11275729
B94: 202110 | C94: 2 | D94: 02 | E94: 11 | F94: 0 | G94: En forma coordinada con el Gobierno de la Ciudad de México u otras autoridades: | H94: Obra pública, desarrollo urbano y servicios públicos | I94: Promover la consulta ciudadana y la participación social bajo el principio de planeación participativa en los programas de ordenamiento territorial; | J94: 1 | K94: 1 | L94: Administración y gobierno | M94: Administración y gobierno | N94: Población | O94: Habitantes | P94: Población | Q94: Habitantes | R94: TRUE | S94: 8918653 | T94: 1 | U94: 8918653 | V94: 32.21600554 | W94: 0.5266657401 | X94: 151323377.6 | Y94: 2357076 | Z94: 32.21600554 | AA94: 39992664.99 | AC94: 11275729
B95: 202120 | C95: 2 | D95: 02 | E95: 12 | F95: 0 | G95: En forma coordinada con el Gobierno de la Ciudad de México u otras autoridades: | H95: Obra pública, desarrollo urbano y servicios públicos | I95: Colaborar en la evaluación de los proyectos que requiere el Estudio de Impacto Urbano, con base en los mecanismos previstos en la ley de la materia cuyo resultado tendrá carácter vinculante; | J95: 1 | K95: 1 | L95: Administración y gobierno | M95: Administración y gobierno | N95: Población | O95: Habitantes | P95: Población | Q95: Habitantes | R95: TRUE | S95: 8918653 | T95: 1 | U95: 8918653 | V95: 32.21600554 | W95: 0.5266657401 | X95: 151323377.6 | Y95: 2357076 | Z95: 32.21600554 | AA95: 39992664.99 | AC95: 11275729
B96: 204010 | C96: 2 | D96: 04 | E96: 01 | F96: 0 | G96: En forma coordinada con el Gobierno de la Ciudad de México u otras autoridades: | H96: Desarrollo económico y social | I96: Presentar a las instancias gubernamentales competentes, los programas de vivienda que beneficien a la población de su demarcación territorial, así como realizar su promoción y gestión; | J96: 1 | K96: 1 | L96: Administración y gobierno | M96: Administración y gobierno | N96: Población | O96: Habitantes | P96: Población | Q96: Habitantes | R96: TRUE | S96: 8918653 | T96: 1 | U96: 8918653 | V96: 32.21600554 | W96: 0.5266657401 | X96: 151323377.6 | Y96: 2357076 | Z96: 32.21600554 | AA96: 39992664.99 | AC96: 11275729
B97: 204020 | C97: 2 | D97: 04 | E97: 02 | F97: 0 | G97: En forma coordinada con el Gobierno de la Ciudad de México u otras autoridades: | H97: Desarrollo económico y social | I97: Realizar campañas de salud pública, en coordinación con las autoridades federales y locales que correspondan; | J97: 1 | K97: 1 | L97: Administración y gobierno | M97: Administración y gobierno | N97: Población | O97: Habitantes | P97: Población | Q97: Habitantes | R97: TRUE | S97: 8918653 | T97: 1 | U97: 8918653 | V97: 32.21600554 | W97: 0.5266657401 | X97: 151323377.6 | Y97: 2357076 | Z97: 32.21600554 | AA97: 39992664.99 | AC97: 11275729
B98: 204030 | C98: 2 | D98: 04 | E98: 03 | F98: 0 | G98: En forma coordinada con el Gobierno de la Ciudad de México u otras autoridades: | H98: Desarrollo económico y social | I98: Coordinar con otras dependencias oficiales, instituciones públicas o privadas y con los particulares, la prestación de los servicios médicos asistenciales | J98: 1 | K98: 1 | L98: Administración y gobierno | M98: Administración y gobierno | N98: Población | O98: Habitantes | P98: Población | Q98: Habitantes | R98: TRUE | S98: 8918653 | T98: 1 | U98: 8918653 | V98: 32.21600554 | W98: 0.5266657401 | X98: 151323377.6 | Y98: 2357076 | Z98: 32.21600554 | AA98: 39992664.99 | AC98: 11275729
B99: 204040 | C99: 2 | D99: 04 | E99: 04 | F99: 0 | G99: En forma coordinada con el Gobierno de la Ciudad de México u otras autoridades: | H99: Desarrollo económico y social | I99: Establecer y ejecutar en coordinación con el Gobierno de la Ciudad de México las acciones que permitan coadyuvar a la modernización de las micro, pequeñas y medianas empresas de la demarcación territorial; | J99: 1 | K99: 1 | L99: =IFERROR(VLOOKUP($K99,$B$5:$J$21,2,FALSE),"") -> Administración y gobierno | M99: =IFERROR(VLOOKUP($K99,$B$5:$J$21,3,FALSE),"") -> Administración y gobierno | N99: =IFERROR(VLOOKUP($K99,$B$5:$J$21,4,FALSE),"") -> Población | O99: =IFERROR(VLOOKUP($K99,$B$5:$J$21,5,FALSE),"") -> Habitantes | P99: =IFERROR(VLOOKUP($K99,$B$5:$J$21,6,FALSE),"") -> Población | Q99: =IFERROR(VLOOKUP($K99,$B$5:$J$21,7,FALSE),"") -> Habitantes | R99: =IFERROR(VLOOKUP($K99,$B$5:$J$21,8,FALSE),"") -> TRUE | S99: =IFERROR(VLOOKUP(P99,$C$26:$D$31,2,FALSE),0) -> 8918653 | T99: =IFERROR(VLOOKUP($K99,$B$5:$J$21,9,FALSE),0) -> 1 | U99: =T99*S99 -> 8918653 | V99: =IFERROR(VLOOKUP($K99,$B$5:$M$21,12,FALSE),0) -> 32.21600554 | W99: =IFERROR(VLOOKUP(L99,$B$139:$D$142,3,FALSE),0) -> 0.5266657401 | X99: =U99*V99*W99*J99 -> 151323377.6 | Y99: =IF(R99=TRUE,$D$31,0) -> 2357076 | Z99: =V99 -> 32.21600554 | AA99: =Z99*Y99*W99*J99 -> 39992664.99 | AC99: =IFERROR(U99+Y99,0) -> 11275729
B100: 204050 | C100: 2 | D100: 04 | E100: 05 | F100: 0 | G100: En forma coordinada con el Gobierno de la Ciudad de México u otras autoridades: | H100: Desarrollo económico y social | I100: Elaborar, promover, fomentar y ejecutar los proyectos productivos que, en el ámbito de su jurisdicción, protejan e incentiven el empleo, de acuerdo a los programas, lineamientos y políticas que en materia de fomento, desarrollo e inversión económica, emitan las dependencias correspondientes; | J100: 1 | K100: 1 | L100: Administración y gobierno | M100: Administración y gobierno | N100: Población | O100: Habitantes | P100: Población | Q100: Habitantes | R100: TRUE | S100: 8918653 | T100: 1 | U100: 8918653 | V100: 32.21600554 | W100: 0.5266657401 | X100: 151323377.6 | Y100: 2357076 | Z100: 32.21600554 | AA100: 39992664.99 | AC100: 11275729
B101: 204060 | C101: 2 | D101: 04 | E101: 06 | F101: 0 | G101: En forma coordinada con el Gobierno de la Ciudad de México u otras autoridades: | H101: Desarrollo económico y social | I101: Formular y ejecutar programas de apoyo a la participación de las mujeres en los diversos ámbitos del desarrollo, pudiendo coordinarse con otras instituciones públicas o privadas, para la implementación de los mismos. Estos programas deberán ser formulados observando las políticas generales que al efecto determine el Gobierno de la Ciudad de México; | J101: 1 | K101: 1 | L101: Administración y gobierno | M101: Administración y gobierno | N101: Población | O101: Habitantes | P101: Población | Q101: Habitantes | R101: TRUE | S101: 8918653 | T101: 1 | U101: 8918653 | V101: 32.21600554 | W101: 0.5266657401 | X101: 151323377.6 | Y101: 2357076 | Z101: 32.21600554 | AA101: 39992664.99 | AC101: 11275729
B102: 205010 | C102: 2 | D102: 05 | E102: 01 | F102: 0 | G102: En forma coordinada con el Gobierno de la Ciudad de México u otras autoridades: | H102: Educación y cultura | I102: Efectuar ceremonias cívicas para conmemorar acontecimientos históricos de carácter nacional o local, y organizar actos culturales, artísticos y sociales; | J102: 1 | K102: 1 | L102: Administración y gobierno | M102: Administración y gobierno | N102: Población | O102: Habitantes | P102: Población | Q102: Habitantes | R102: TRUE | S102: 8918653 | T102: 1 | U102: 8918653 | V102: 32.21600554 | W102: 0.5266657401 | X102: 151323377.6 | Y102: 2357076 | Z102: 32.21600554 | AA102: 39992664.99 | AC102: 11275729
B103: 209030 | C103: 2 | D103: 09 | E103: 03 | F103: 0 | G103: En forma coordinada con el Gobierno de la Ciudad de México u otras autoridades: | H103: Protección al medio ambiente | I103: Diseñar e implementar, en coordinación con el Gobierno de la Ciudad de México, acciones que promuevan la innovación científica y tecnológica en materia de preservación y mejoramiento del medio ambiente; | J103: 1 | K103: 1 | L103: Administración y gobierno | M103: Administración y gobierno | N103: Población | O103: Habitantes | P103: Población | Q103: Habitantes | R103: TRUE | S103: 8918653 | T103: 1 | U103: 8918653 | V103: 32.21600554 | W103: 0.5266657401 | X103: 151323377.6 | Y103: 2357076 | Z103: 32.21600554 | AA103: 39992664.99 | AC103: 11275729
B104: 209050 | C104: 2 | D104: 09 | E104: 05 | F104: 0 | G104: En forma coordinada con el Gobierno de la Ciudad de México u otras autoridades: | H104: Protección al medio ambiente | I104: Promover la educación y participación comunitaria, social y privada para la preservación y restauración de los recursos naturales y la protección al ambiente; | J104: 1 | K104: 1 | L104: Administración y gobierno | M104: Administración y gobierno | N104: Población | O104: Habitantes | P104: Población | Q104: Habitantes | R104: TRUE | S104: 8918653 | T104: 1 | U104: 8918653 | V104: 32.21600554 | W104: 0.5266657401 | X104: 151323377.6 | Y104: 2357076 | Z104: 32.21600554 | AA104: 39992664.99 | AC104: 11275729
B105: 206010 | C105: 2 | D105: 06 | E105: 01 | F105: 0 | G105: En forma coordinada con el Gobierno de la Ciudad de México u otras autoridades: | H105: Asuntos jurídicos | I105: Administrar los Juzgados Cívicos y de Registro Civil; | J105: 1 | K105: 1 | L105: Administración y gobierno | M105: Administración y gobierno | N105: Población | O105: Habitantes | P105: Población | Q105: Habitantes | R105: TRUE | S105: 8918653 | T105: 1 | U105: 8918653 | V105: 32.21600554 | W105: 0.5266657401 | X105: 151323377.6 | Y105: 2357076 | Z105: 32.21600554 | AA105: 39992664.99 | AC105: 11275729
B106: 206020 | C106: 2 | D106: 06 | E106: 02 | F106: 0 | G106: En forma coordinada con el Gobierno de la Ciudad de México u otras autoridades: | H106: Asuntos jurídicos | I106: Solicitar a la Jefatura de Gobierno de la Ciudad de México, por considerarlo causa de utilidad pública, la expropiación o la ocupación total o parcial de bienes de propiedad privada, en los términos de las disposiciones jurídicas aplicables; | J106: 1 | K106: 1 | L106: Administración y gobierno | M106: Administración y gobierno | N106: Población | O106: Habitantes | P106: Población | Q106: Habitantes | R106: TRUE | S106: 8918653 | T106: 1 | U106: 8918653 | V106: 32.21600554 | W106: 0.5266657401 | X106: 151323377.6 | Y106: 2357076 | Z106: 32.21600554 | AA106: 39992664.99 | AC106: 11275729
B107: 206030 | C107: 2 | D107: 06 | E107: 03 | F107: 0 | G107: En forma coordinada con el Gobierno de la Ciudad de México u otras autoridades: | H107: Asuntos jurídicos | I107: Coordinar con los organismos competentes las acciones que les soliciten para el proceso de regularización de la tenencia de la tierra; | J107: 1 | K107: 1 | L107: Administración y gobierno | M107: Administración y gobierno | N107: Población | O107: Habitantes | P107: Población | Q107: Habitantes | R107: TRUE | S107: 8918653 | T107: 1 | U107: 8918653 | V107: 32.21600554 | W107: 0.5266657401 | X107: 151323377.6 | Y107: 2357076 | Z107: 32.21600554 | AA107: 39992664.99 | AC107: 11275729
B108: 206040 | C108: 2 | D108: 06 | E108: 04 | F108: 0 | G108: En forma coordinada con el Gobierno de la Ciudad de México u otras autoridades: | H108: Asuntos jurídicos | I108: Proporcionar los servicios de filiación para identificar a los habitantes de la demarcación territorial y expedir certificados de residencia a persona que tengan su domicilio dentro de los límites de la demarcación territorial; | J108: 1 | K108: 1 | L108: Administración y gobierno | M108: Administración y gobierno | N108: Población | O108: Habitantes | P108: Población | Q108: Habitantes | R108: TRUE | S108: 8918653 | T108: 1 | U108: 8918653 | V108: 32.21600554 | W108: 0.5266657401 | X108: 151323377.6 | Y108: 2357076 | Z108: 32.21600554 | AA108: 39992664.99 | AC108: 11275729
B109: 209040 | C109: 2 | D109: 09 | E109: 04 | F109: 0 | G109: En forma coordinada con el Gobierno de la Ciudad de México u otras autoridades: | H109: Protección al medio ambiente | I109: Vigilar, en coordinación con el Gobierno de la Ciudad de México, que no sean ocupadas de manera ilegal las áreas naturales protegidas y el suelo de conservación; | J109: 1 | K109: 17 | L109: Protección al medio ambiente | M109: Suelo de conservación | N109: Superficie de suelo de conservación | O109: m2 | P109: Superficie de suelo de conservación | Q109: m2 | R109: FALSE | S109: 869794800 | T109: 1 | U109: 869794800 | V109: 0.1011322659 | W109: 34.59754265 | X109: 3043349278 | Y109: 0 | Z109: 0.1011322659 | AA109: 0 | AC109: 869794800
B110: 206050 | C110: 2 | D110: 06 | E110: 05 | F110: 0 | G110: En forma coordinada con el Gobierno de la Ciudad de México u otras autoridades: | H110: Asuntos jurídicos | I110: Coordinar acciones con el Gobierno de la Ciudad de México para aplicar las políticas demográficas que fijen la Secretaría de Gobernación; y | J110: 1 | K110: 1 | L110: Administración y gobierno | M110: Administración y gobierno | N110: Población | O110: Habitantes | P110: Población | Q110: Habitantes | R110: TRUE | S110: 8918653 | T110: 1 | U110: 8918653 | V110: 32.21600554 | W110: 0.5266657401 | X110: 151323377.6 | Y110: 2357076 | Z110: 32.21600554 | AA110: 39992664.99 | AC110: 11275729
B111: 206060 | C111: 2 | D111: 06 | E111: 06 | F111: 0 | G111: En forma coordinada con el Gobierno de la Ciudad de México u otras autoridades: | H111: Asuntos jurídicos | I111: Intervenir en las juntas de reclutamiento del Servicio Militar Nacional; | J111: 1 | K111: 1 | L111: Administración y gobierno | M111: Administración y gobierno | N111: Población | O111: Habitantes | P111: Población | Q111: Habitantes | R111: TRUE | S111: 8918653 | T111: 1 | U111: 8918653 | V111: 32.21600554 | W111: 0.5266657401 | X111: 151323377.6 | Y111: 2357076 | Z111: 32.21600554 | AA111: 39992664.99 | AC111: 11275729
B112: 210010 | C112: 2 | D112: 10 | E112: 01 | F112: 0 | G112: En forma coordinada con el Gobierno de la Ciudad de México u otras autoridades: | H112: Alcaldía digital | I112: Participar con la Jefatura de Gobierno en el diseño y despliegue de una agenda digital incluyente para la Ciudad de México; | J112: 1 | K112: 1 | L112: Administración y gobierno | M112: Administración y gobierno | N112: Población | O112: Habitantes | P112: Población | Q112: Habitantes | R112: TRUE | S112: 8918653 | T112: 1 | U112: 8918653 | V112: 32.21600554 | W112: 0.5266657401 | X112: 151323377.6 | Y112: 2357076 | Z112: 32.21600554 | AA112: 39992664.99 | AC112: 11275729
B113: 210020 | C113: 2 | D113: 10 | E113: 02 | F113: 0 | G113: En forma coordinada con el Gobierno de la Ciudad de México u otras autoridades: | H113: Alcaldía digital | I113: Contribuir con la infraestructura de comunicaciones, cómputo y dispositivos para el acceso a internet gratuito en espacios públicos; y | J113: 1 | K113: 1 | L113: Administración y gobierno | M113: Administración y gobierno | N113: Población | O113: Habitantes | P113: Población | Q113: Habitantes | R113: TRUE | S113: 8918653 | T113: 1 | U113: 8918653 | V113: 32.21600554 | W113: 0.5266657401 | X113: 151323377.6 | Y113: 2357076 | Z113: 32.21600554 | AA113: 39992664.99 | AC113: 11275729
B114: 210030 | C114: 2 | D114: 10 | E114: 03 | F114: 0 | G114: En forma coordinada con el Gobierno de la Ciudad de México u otras autoridades: | H114: Alcaldía digital | I114: Ofrecer servicios y trámites digitales a la ciudadanía | J114: 1 | K114: 1 | L114: Administración y gobierno | M114: Administración y gobierno | N114: Población | O114: Habitantes | P114: Población | Q114: Habitantes | R114: TRUE | S114: 8918653 | T114: 1 | U114: 8918653 | V114: 32.21600554 | W114: 0.5266657401 | X114: 151323377.6 | Y114: 2357076 | Z114: 32.21600554 | AA114: 39992664.99 | AC114: 11275729
B115: 301010 | C115: 3 | D115: 01 | E115: 01 | F115: 0 | G115: En forma subordinada con el Gobierno de la Ciudad de México | H115: Gobierno y régimen interior | I115: Participar en la elaboración, planeación y ejecución de los programas del Gobierno de la Ciudad de México, que tengan impacto en la demarcación territorial; | J115: 1 | K115: 1 | L115: Administración y gobierno | M115: Administración y gobierno | N115: Población | O115: Habitantes | P115: Población | Q115: Habitantes | R115: TRUE | S115: 8918653 | T115: 1 | U115: 8918653 | V115: 32.21600554 | W115: 0.5266657401 | X115: 151323377.6 | Y115: 2357076 | Z115: 32.21600554 | AA115: 39992664.99 | AC115: 11275729
B116: 301020 | C116: 3 | D116: 01 | E116: 02 | F116: 0 | G116: En forma subordinada con el Gobierno de la Ciudad de México | H116: Gobierno y régimen interior | I116: Participar en la instancia de coordinación metropolitana, de manera particular aquellas demarcaciones territoriales que colindan con los municipios conurbados de la Zona Metropolitana del Valle de México; | J116: 1 | K116: 1 | L116: Administración y gobierno | M116: Administración y gobierno | N116: Población | O116: Habitantes | P116: Población | Q116: Habitantes | R116: TRUE | S116: 8918653 | T116: 1 | U116: 8918653 | V116: 32.21600554 | W116: 0.5266657401 | X116: 151323377.6 | Y116: 2357076 | Z116: 32.21600554 | AA116: 39992664.99 | AC116: 11275729
B117: 303010 | C117: 3 | D117: 03 | E117: 01 | F117: 0 | G117: En forma subordinada con el Gobierno de la Ciudad de México | H117: Movilidad, vía pública y espacios públicos | I117: Proponer a la Jefatura de Gobierno de la Ciudad de México la aplicación de las medidas para mejorar la vialidad, circulación y seguridad de vehículos y peatones; | J117: 1 | K117: 1 | L117: Administración y gobierno | M117: Administración y gobierno | N117: Población | O117: Habitantes | P117: Población | Q117: Habitantes | R117: TRUE | S117: 8918653 | T117: 1 | U117: 8918653 | V117: 32.21600554 | W117: 0.5266657401 | X117: 151323377.6 | Y117: 2357076 | Z117: 32.21600554 | AA117: 39992664.99 | AC117: 11275729
B118: 308010 | C118: 3 | D118: 08 | E118: 01 | F118: 0 | G118: En forma subordinada con el Gobierno de la Ciudad de México | H118: Seguridad ciudadana y protección civil | I118: Ejecutar las políticas de seguridad ciudadana en la demarcación territorial, de conformidad con la ley de la materia; | J118: 1 | K118: 1 | L118: Administración y gobierno | M118: Administración y gobierno | N118: Población | O118: Habitantes | P118: Población | Q118: Habitantes | R118: TRUE | S118: 8918653 | T118: 1 | U118: 8918653 | V118: 32.21600554 | W118: 0.5266657401 | X118: 151323377.6 | Y118: 2357076 | Z118: 32.21600554 | AA118: 39992664.99 | AC118: 11275729
B119: 308020 | C119: 3 | D119: 08 | E119: 02 | F119: 0 | G119: En forma subordinada con el Gobierno de la Ciudad de México | H119: Seguridad ciudadana y protección civil | I119: En materia de seguridad ciudadana podrá realizar funciones de proximidad vecinal y vigilancia; | J119: 1 | K119: 1 | L119: Administración y gobierno | M119: Administración y gobierno | N119: Población | O119: Habitantes | P119: Población | Q119: Habitantes | R119: TRUE | S119: 8918653 | T119: 1 | U119: 8918653 | V119: 32.21600554 | W119: 0.5266657401 | X119: 151323377.6 | Y119: 2357076 | Z119: 32.21600554 | AA119: 39992664.99 | AC119: 11275729
B120: 308030 | C120: 3 | D120: 08 | E120: 03 | F120: 0 | G120: En forma subordinada con el Gobierno de la Ciudad de México | H120: Seguridad ciudadana y protección civil | I120: Podrá disponer de la fuerza pública básica en tareas de vigilancia. Para tal efecto, el Gobierno de la Ciudad de México siempre atenderá las solicitudes de las alcaldías con pleno respeto a los derechos humanos; | J120: 1 | K120: 1 | L120: Administración y gobierno | M120: Administración y gobierno | N120: Población | O120: Habitantes | P120: Población | Q120: Habitantes | R120: TRUE | S120: 8918653 | T120: 1 | U120: 8918653 | V120: 32.21600554 | W120: 0.5266657401 | X120: 151323377.6 | Y120: 2357076 | Z120: 32.21600554 | AA120: 39992664.99 | AC120: 11275729
B121: 308040 | C121: 3 | D121: 08 | E121: 04 | F121: 0 | G121: En forma subordinada con el Gobierno de la Ciudad de México | H121: Seguridad ciudadana y protección civil | I121: Proponer y opinar previamente ante la Jefatura de Gobierno de la Ciudad de México, respecto de la designación, desempeño y/o remoción de los mandos policiales que correspondan a la demarcación territorial; | J121: 1 | K121: 1 | L121: Administración y gobierno | M121: Administración y gobierno | N121: Población | O121: Habitantes | P121: Población | Q121: Habitantes | R121: TRUE | S121: 8918653 | T121: 1 | U121: 8918653 | V121: 32.21600554 | W121: 0.5266657401 | X121: 151323377.6 | Y121: 2357076 | Z121: 32.21600554 | AA121: 39992664.99 | AC121: 11275729
B122: 308050 | C122: 3 | D122: 08 | E122: 05 | F122: 0 | G122: En forma subordinada con el Gobierno de la Ciudad de México | H122: Seguridad ciudadana y protección civil | I122: Ejercer funciones de supervisión de los mandos de la policía preventiva, dentro de su demarcación territorial, de conformidad a lo dispuesto en la normatividad aplicable; | J122: 1 | K122: 1 | L122: Administración y gobierno | M122: Administración y gobierno | N122: Población | O122: Habitantes | P122: Población | Q122: Habitantes | R122: TRUE | S122: 8918653 | T122: 1 | U122: 8918653 | V122: 32.21600554 | W122: 0.5266657401 | X122: 151323377.6 | Y122: 2357076 | Z122: 32.21600554 | AA122: 39992664.99 | AC122: 11275729
B123: 308060 | C123: 3 | D123: 08 | E123: 06 | F123: 0 | G123: En forma subordinada con el Gobierno de la Ciudad de México | H123: Seguridad ciudadana y protección civil | I123: Presentar ante la dependencia competente, los informes o quejas sobre la actuación y comportamiento de las y los miembros de los cuerpos de seguridad, respecto de actos que presuntamente contravengan las disposiciones, para su remoción conforme a los procedimientos legalmente establecidos; | J123: 1 | K123: 1 | L123: Administración y gobierno | M123: Administración y gobierno | N123: Población | O123: Habitantes | P123: Población | Q123: Habitantes | R123: TRUE | S123: 8918653 | T123: 1 | U123: 8918653 | V123: 32.21600554 | W123: 0.5266657401 | X123: 151323377.6 | Y123: 2357076 | Z123: 32.21600554 | AA123: 39992664.99 | AC123: 11275729
B124: 308070 | C124: 3 | D124: 08 | E124: 07 | F124: 0 | G124: En forma subordinada con el Gobierno de la Ciudad de México | H124: Seguridad ciudadana y protección civil | I124: Establecer y organizar un comité de seguridad ciudadana como instancia colegiada da de consulta y participación ciudadana, en los términos de las disposiciones jurídicas aplicables; | J124: 1 | K124: 1 | L124: Administración y gobierno | M124: Administración y gobierno | N124: Población | O124: Habitantes | P124: Población | Q124: Habitantes | R124: TRUE | S124: 8918653 | T124: 1 | U124: 8918653 | V124: 32.21600554 | W124: 0.5266657401 | X124: 151323377.6 | Y124: 2357076 | Z124: 32.21600554 | AA124: 39992664.99 | AC124: 11275729
B125: 308080 | C125: 3 | D125: 08 | E125: 08 | F125: 0 | G125: En forma subordinada con el Gobierno de la Ciudad de México | H125: Seguridad ciudadana y protección civil | I125: Elaborar el atlas de riesgo y el programa de protección civil de la demarcación territorial, y ejecutarlo de manera coordinada con el órgano público garante de la gestión integral de riesgos de conformidad con la normatividad aplicable; | J125: 1 | K125: 1 | L125: Administración y gobierno | M125: Administración y gobierno | N125: Población | O125: Habitantes | P125: Población | Q125: Habitantes | R125: TRUE | S125: 8918653 | T125: 1 | U125: 8918653 | V125: 32.21600554 | W125: 0.5266657401 | X125: 151323377.6 | Y125: 2357076 | Z125: 32.21600554 | AA125: 39992664.99 | AC125: 11275729
B126: 308090 | C126: 3 | D126: 08 | E126: 09 | F126: 0 | G126: En forma subordinada con el Gobierno de la Ciudad de México | H126: Seguridad ciudadana y protección civil | I126: Coadyuvar con el organismo público garante de la gestión integral de riesgos de la Ciudad de México, para la prevención y extinción de incendios y otros siniestros que pongan en peligro la vida y el patrimonio de los habitantes; y | J126: 1 | K126: 1 | L126: Administración y gobierno | M126: Administración y gobierno | N126: Población | O126: Habitantes | P126: Población | Q126: Habitantes | R126: TRUE | S126: 8918653 | T126: 1 | U126: 8918653 | V126: 32.21600554 | W126: 0.5266657401 | X126: 151323377.6 | Y126: 2357076 | Z126: 32.21600554 | AA126: 39992664.99 | AC126: 11275729
B127: 308100 | C127: 3 | D127: 08 | E127: 10 | F127: 0 | G127: En forma subordinada con el Gobierno de la Ciudad de México | H127: Seguridad ciudadana y protección civil | I127: Solicitar, en su caso, a la Jefatura de Gobierno de la Ciudad de México, la emisión de la declaratoria de emergencia o la declaratoria de desastre en los términos de la ley. | J127: 1 | K127: 1 | L127: Administración y gobierno | M127: Administración y gobierno | N127: Población | O127: Habitantes | P127: Población | Q127: Habitantes | R127: TRUE | S127: 8918653 | T127: 1 | U127: 8918653 | V127: 32.21600554 | W127: 0.5266657401 | X127: 151323377.6 | Y127: 2357076 | Z127: 32.21600554 | AA127: 39992664.99 | AC127: 11275729
B128: 402044 | C128: 4 | D128: 02 | E128: 04 | F128: 4 | G128: De manera exclusiva | H128: Obra pública, desarrollo urbano y servicios públicos | I128: Prestar los siguientes servicios públicos: alumbrado público en las vialidades; limpia y recolección de basura; poda de árboles; regulación de mercados; y pavimentación, de conformidad con la normatividad aplicable; | J128: 1 | K128: 5 | L128: Servicios públicos e infraestructura urbana | M128: Jardinería, poda de árboles | N128: Superficie de parques | O128: m2 | P128: Superficie Área verde alcaldía | Q128: m2 | R128: FALSE | S128: =IFERROR(VLOOKUP(P128,$C$26:$D$31,2,FALSE),0) -> 23579759.77 | T128: 1 | U128: 23579759.77 | V128: 12.02834326 | W128: 1.573491699 | X128: 446282282.4 | Y128: 0 | Z128: 12.02834326 | AA128: 0 | AC128: 23579759.77
B129: 103060 | C129: 1 | D129: 03 | E129: 06 | F129: 0 | G129: De manera exclusiva | H129: Movilidad, vía pública y espacios públicos | I129: Construir, rehabilitar y mantener los espacios públicos que se encuentren a su cargo, de conformidad con la normatividad aplicable; | J129: 1 | K129: 15 | L129: Servicios públicos e infraestructura urbana | M129: Espacio público (parques y plazas) | N129: Superficie de parques | O129: m2 | P129: Superficie Área verde alcaldía | Q129: m2 | R129: FALSE | S129: 23579759.77 | T129: 1 | U129: 23579759.77 | V129: 3.595012557 | W129: 1.573491699 | X129: 133384155.7 | Y129: 0 | Z129: 3.595012557 | AA129: 0 | AC129: 23579759.77
B130: 202030 | C130: 2 | D130: 02 | E130: 03 | F130: 0 | G130: En forma coordinada con el Gobierno de la Ciudad de México u otras autoridades: | H130: Obra pública, desarrollo urbano y servicios públicos | I130: Dar mantenimiento a los monumentos, plazas públicas y obras de ornato, propiedad de la Ciudad de México, así como participar en el mantenimiento de aquéllos de propiedad federal que se encuentren dentro de su demarcación territorial, sujeto a la autorización de las autoridades competentes, y respetando las leyes, los acuerdos y convenios que les competan; | J130: 1 | K130: 15 | L130: Servicios públicos e infraestructura urbana | M130: Espacio público (parques y plazas) | N130: Superficie de parques | O130: m2 | P130: Superficie Área verde alcaldía | Q130: m2 | R130: FALSE | S130: 23579759.77 | T130: 1 | U130: 23579759.77 | V130: 3.595012557 | W130: 1.573491699 | X130: 133384155.7 | Y130: 0 | Z130: 3.595012557 | AA130: 0 | AC130: 23579759.77
B131: 209010 | C131: 2 | D131: 09 | E131: 01 | F131: 0 | G131: En forma coordinada con el Gobierno de la Ciudad de México u otras autoridades: | H131: Protección al medio ambiente | I131: Participar en la creación y administración de sus reservas territoriales; | J131: 1 | K131: 16 | L131: Protección al medio ambiente | M131: Áreas verdes | N131: Superficie de áreas verdes | O131: m2 | P131: Superficie Área verde alcaldía | Q131: m2 | R131: FALSE | S131: 23579759.77 | T131: 1 | U131: =T131*S131 -> 23579759.77 | V131: 1.865250534 | W131: 34.59754265 | X131: =U131*V131*W131*J131 -> 1521674639 | Y131: 0 | Z131: 1.865250534 | AA131: =Z131*Y131*W131*J131 -> 0 | AC131: 23579759.77
B132: 209020 | C132: 2 | D132: 09 | E132: 02 | F132: 0 | G132: En forma coordinada con el Gobierno de la Ciudad de México u otras autoridades: | H132: Protección al medio ambiente | I132: Implementar acciones de protección, preservación y restauración del equilibrio ecológico que garanticen la conservación, integridad y mejora de los recursos naturales, suelo de conservación, áreas naturales protegidas, parques urbanos y áreas verdes de la demarcación territorial; | J132: 1 | K132: 16 | L132: Protección al medio ambiente | M132: Áreas verdes | N132: Superficie de áreas verdes | O132: m2 | P132: Superficie Área verde alcaldía | Q132: m2 | R132: FALSE | S132: 23579759.77 | T132: 1 | U132: 23579759.77 | V132: 1.865250534 | W132: 34.59754265 | X132: 1521674639 | Y132: 0 | Z132: 1.865250534 | AA132: 0 | AC132: 23579759.77
B134: Cálculo de coeficientes | L134: Servicios públicos e infraestructura urbana | M134: Jardinería, poda de árboles | N134: Superficie de parques | O134: m2 | P134: Superficie Área verde alcaldía | Q134: m2 | R134: FALSE | S134: 23579759.77 | T134: 1 | U134: 23579759.77 | V134: 17.85722247 | W134: 1.658426611 | X134: 698312061.3 | Y134: 0 | Z134: 17.85722247 | AA134: 0
B136: Ajuste por rubro
B138: Rubro | C138: Total Costo | D138: Ajuste | E138: Costo Deseado | F138: %
B139: Administración y gobierno | C139: =SUMIF($C$5:$C$21,B139,$L$5:$L$21) -> 2.696643345e+10 | D139: =+E139/C139 -> 0.5266657401 | E139: =+$E$143*F139 -> 1.420229663e+10 | F139: 0.35
B140: Servicios públicos e infraestructura urbana | C140: =SUMIF($C$5:$C$21,B140,$L$5:$L$21) -> 9025974933 | D140: =+E140/C140 -> 1.573491699 | E140: =+$E$143*F140 -> 1.420229663e+10 | F140: 0.35
B141: Programas sociales | C141: 4409653351 | D141: =+E141/C141 -> 1.380312254 | E141: =+$E$143*F141 -> 6086698556 | F141: 0.15
B142: Protección al medio ambiente | C142: 175928638 | D142: =+E142/C142 -> 34.59754265 | E142: =+$E$143*F142 -> 6086698556 | F142: 0.15
C143: =SUM(C139:C142) -> 40577990375 | E143: 40577990375
B145: Coeficientes de la fórmula de repartición
B147: Variable | D147: Total costo | E147: coeficientes
B148: Población | D148: =SUMIF($P$35:$P$132,B148,$X$35:$X$132) -> 2.050276942e+10 | E148: =(D148/$D$154) -> 0.5052682311
B149: Población pobreza (coneval) | D149: =SUMIF($P$35:$P$132,B149,$X$35:$X$132) -> 3055621846 | E149: 0.07530244396
B150: Población flotante | D150: =SUMIF($R$35:$R$132,TRUE,$AA$35:$AA$132) -> 4177583303 | E150: 0.1029519517
B151: Superficie urbana | D151: =SUMIF($P$35:$P$132,B151,$X$35:$X$132) -> 6042266655 | E151: 0.1489050246
B152: Superficie Área verde alcaldía | D152: =SUMIF($P$35:$P$132,B152,$X$35:$X$132) -> 3756399872 | E152: 0.09257234863
B153: Superficie de suelo de conservación | D153: =SUMIF($P$35:$P$132,B153,$X$35:$X$132) -> 3043349278 | E153: 0.075
D154: =SUM(D148:D153) -> 4.057799038e+10 | E154: =SUM(E148:E153) -> 1

Sheet Asignacion_Historica
B1: Partidas de las delegaciones | J1: Uso histórico según variable
J2: Población | K2: Población | L2: Superficie urbana | M2: Superficie urbana | N2: Superficie Área verde alcaldía | O2: Superficie urbana | P2: Superficie urbana | Q2: Población pobreza (coneval) | R2: Población | S2: Superficie urbana | T2: Población | U2: Población | V2: Superficie urbana | W2: Población | X2: Superficie Área verde alcaldía | Y2: Superficie Área verde alcaldía | Z2: Superficie de suelo de conservación | AT2: Población | AU2: Población | AV2: Superficie urbana | AW2: Superficie urbana | AX2: Superficie Área verde alcaldía | AY2: Superficie urbana | AZ2: Superficie urbana | BA2: Población pobreza (coneval) | BB2: Población | BC2: Superficie urbana | BD2: Población | BE2: Población | BF2: Superficie urbana | BG2: Población | BH2: Superficie Área verde alcaldía | BI2: Superficie Área verde alcaldía | BJ2: Superficie de suelo de conservación
J3: 1 | K3: 2 | L3: 3 | M3: 4 | N3: 5 | O3: 6 | P3: 7 | Q3: 8 | R3: 9 | S3: 10 | T3: 11 | U3: 12 | V3: 13 | W3: 14 | X3: 15 | Y3: 16 | Z3: 17 | AT3: 1 | AU3: 2 | AV3: 3 | AW3: 4 | AX3: 5 | AY3: 6 | AZ3: 7 | BA3: 8 | BB3: 9 | BC3: 10 | BD3: 11 | BE3: 12 | BF3: 13 | BG3: 14 | BH3: 15 | BI3: 16 | BJ3: 17
J4: Administración y gobierno | K4: Administración y gobierno | L4: Servicios públicos e infraestructura urbana | M4: Servicios públicos e infraestructura urbana | N4: Servicios públicos e infraestructura urbana | O4: Servicios públicos e infraestructura urbana | P4: Servicios públicos e infraestructura urbana | Q4: Programas sociales | R4: Programas sociales | S4: Servicios públicos e infraestructura urbana | T4: Servicios públicos e infraestructura urbana | U4: Servicios públicos e infraestructura urbana | V4: Servicios públicos e infraestructura urbana | W4: Servicios públicos e infraestructura urbana | X4: Servicios públicos e infraestructura urbana | Y4: Protección al medio ambiente | Z4: Protección al medio ambiente | AT4: Administración y gobierno | AU4: Administración y gobierno | AV4: Servicios públicos e infraestructura urbana | AW4: Servicios públicos e infraestructura urbana | AX4: Servicios públicos e infraestructura urbana | AY4: Servicios públicos e infraestructura urbana | AZ4: Servicios públicos e infraestructura urbana | BA4: Programas sociales | BB4: Programas sociales | BC4: Servicios públicos e infraestructura urbana | BD4: Servicios públicos e infraestructura urbana | BE4: Servicios públicos e infraestructura urbana | BF4: Servicios públicos e infraestructura urbana | BG4: Servicios públicos e infraestructura urbana | BH4: Servicios públicos e infraestructura urbana | BI4: Protección al medio ambiente | BJ4: Protección al medio ambiente
J5: Administración y gobierno | K5: Unidad de Género | L5: Alumbrado público | M5: Limpia | N5: Jardinería, poda de árboles | O5: Pavimentación | P5: Accesibilidad y diseño universal | Q5: Programas sociales | R5: Programas sociales (desarrollo económico) | S5: Pasos peatonales | T5: Rehabilitar y mantener escuelas, así como construir, bibliotecas, museos y demás centros de servicio social, cultural y deportivo a su cargo | U5: Administrar los centros sociales, instalaciones recreativas, de capacitación para el trabajo y centros deportivos, cuya administración no corresponda a otro orden de gobierno; | V5: Obras de regeneración de barrios | W5: Recolección de basura | X5: Espacio público (parques y plazas) | Y5: Áreas verdes | Z5: Suelo de conservación | AS5: 9 | AT5: Administración y gobierno | AU5: Unidad de Género | AV5: Alumbrado público | AW5: Limpia | AX5: Jardinería, poda de árboles | AY5: Pavimentación | AZ5: Accesibilidad y diseño universal | BA5: Programas sociales | BB5: Programas sociales (desarrollo económico) | BC5: Pasos peatonales | BD5: Rehabilitar y mantener escuelas, así como construir, bibliotecas, museos y demás centros de servicio social, cultural y deportivo a su cargo | BE5: Administrar los centros sociales, instalaciones recreativas, de capacitación para el trabajo y centros deportivos, cuya administración no corresponda a otro orden de gobierno; | BF5: Obras de regeneración de barrios | BG5: Recolección de basura | BH5: Espacio público (parques y plazas) | BI5: Áreas verdes | BJ5: Suelo de conservación
B6: PARTIDA | C6: CAPITULO | D6: CONCEPTO | E6: PTDA_GEN | F6: DESC_CAP | G6: DESC_CON | H6: DESC_PTDAGEN | I6: DESC_PTDA | J6: V1 | K6: V2 | L6: V3 | M6: V4 | N6: V5 | O6: V6 | P6: V7 | Q6: V8 | R6: V9 | S6: V10 | T6: V11 | U6: V12 | V6: V13 | W6: V14 | X6: V15 | Y6: V16 | Z6: V17 | AA6: Suma | AB6: V1 | AC6: V2 | AD6: V3 | AE6: V4 | AF6: V5 | AG6: V6 | AH6: V7 | AI6: V8 | AJ6: V9 | AK6: V10 | AL6: V11 | AM6: V12 | AN6: V13 | AO6: V14 | AP6: V15 | AQ6: V16 | AR6: V17 | AS6: 2018 | AT6: 2018_V1 | AU6: 2018_V2 | AV6: 2018_V3 | AW6: 2018_V4 | AX6: 2018_V5 | AY6: 2018_V6 | AZ6: 2018_V7 | BA6: 2018_V8 | BB6: 2018_V9 | BC6: 2018_V10 | BD6: 2018_V11 | BE6: 2018_V12 | BF6: 2018_V13 | BG6: 2018_V14 | BH6: 2018_V15 | BI6: 2018_V16 | BJ6: 2018_V17
B7: 1121 | C7: 1000 | D7: 1100 | E7: 1120 | F7: Servicios personales | G7: Remuneraciones al personal de carácter permanente. | H7: Haberes. | I7: Haberes para personal de seguridad pública y bomberos. | J7: 1 | K7: 0 | L7: 0 | M7: 0 | N7: 0 | O7: 0 | P7: 0 | Q7: 0 | R7: 0 | S7: 0 | T7: 0 | U7: 0 | V7: 0 | W7: 0 | X7: 0 | Y7: 0 | Z7: 0 | AA7: =SUM(J7:Z7) -> 1 | AB7: =J7/$AA7 -> 1 | AC7: 0 | AD7: 0 | AE7: 0 | AF7: 0 | AG7: 0 | AH7: 0 | AI7: 0 | AJ7: 0 | AK7: 0 | AL7: 0 | AM7: 0 | AN7: 0 | AO7: 0 | AP7: 0 | AQ7: 0 | AR7: =Z7/$AA7 -> 0 | AS7: 0 | AT7: =$AS7*AB7 -> 0 | AU7: =$AS7*AC7 -> 0 | AV7: =$AS7*AD7 -> 0 | AW7: =$AS7*AE7 -> 0 | AX7: =$AS7*AF7 -> 0 | AY7: =$AS7*AG7 -> 0 | AZ7: =$AS7*AH7 -> 0 | BA7: =$AS7*AI7 -> 0 | BB7: =$AS7*AJ7 -> 0 | BC7: =$AS7*AK7 -> 0 | BD7: =$AS7*AL7 -> 0 | BE7: =$AS7*AM7 -> 0 | BF7: =$AS7*AN7 -> 0 | BG7: =$AS7*AO7 -> 0 | BH7: =$AS7*AP7 -> 0 | BI7: =$AS7*AQ7 -> 0 | BJ7: =$AS7*AR7 -> 0
B8: 1131 | C8: 1000 | D8: 1100 | E8: 1130 | F8: Servicios personales | G8: Remuneraciones al personal de carácter permanente. | H8: Sueldos base al personal permanente. | I8: Sueldos base al personal permanente. | J8: 1 | K8: 0 | L8: 0 | M8: 0 | N8: 0 | O8: 0 | P8: 0 | Q8: 0 | R8: 0 | S8: 0 | T8: 0 | U8: 0 | V8: 0 | W8: 0 | X8: 0 | Y8: 0 | Z8: 0 | AA8: 1 | AB8: 1 | AC8: 0 | AD8: 0 | AE8: 0 | AF8: 0 | AG8: 0 | AH8: 0 | AI8: 0 | AJ8: 0 | AK8: 0 | AL8: 0 | AM8: 0 | AN8: 0 | AO8: 0 | AP8: 0 | AQ8: 0 | AR8: 0 | AS8: 2436757594 | AT8: 2436757594 | AU8: 0 | AV8: 0 | AW8: 0 | AX8: 0 | AY8: 0 | AZ8: 0 | BA8: 0 | BB8: 0 | BC8: 0 | BD8: 0 | BE8: 0 | BF8: 0 | BG8: 0 | BH8: 0 | BI8: 0 | BJ8: 0
B9: 1132 | C9: 1000 | D9: 1100 | E9: 1130 | F9: Servicios personales | G9: Remuneraciones al personal de carácter permanente. | H9: Sueldos base al personal permanente. | I9: Sueldos al personal a lista de raya base. | J9: 1 | K9: 0 | L9: 0 | M9: 0 | N9: 0 | O9: 0 | P9: 0 | Q9: 0 | R9: 0 | S9: 0 | T9: 0 | U9: 0 | V9: 0 | W9: 0 | X9: 0 | Y9: 0 | Z9: 0 | AA9: 1 | AB9: 1 | AC9: 0 | AD9: 0 | AE9: 0 | AF9: 0 | AG9: 0 | AH9: 0 | AI9: 0 | AJ9: 0 | AK9: 0 | AL9: 0 | AM9: 0 | AN9: 0 | AO9: 0 | AP9: 0 | AQ9: 0 | AR9: 0 | AS9: 4440797201 | AT9: 4440797201 | AU9: 0 | AV9: 0 | AW9: 0 | AX9: 0 | AY9: 0 | AZ9: 0 | BA9: 0 | BB9: 0 | BC9: 0 | BD9: 0 | BE9: 0 | BF9: 0 | BG9: 0 | BH9: 0 | BI9: 0 | BJ9: 0
B10: 1211 | C10: 1000 | D10: 1200 | E10: 1210 | F10: Servicios personales | G10: Remuneraciones al personal de carácter transitorio. | H10: Honorarios asimilables a salarios. | I10: Honorarios asimilables a salarios. | J10: 1 | K10: 0 | L10: 0 | M10: 0 | N10: 0 | O10: 0 | P10: 0 | Q10: 0 | R10: 0 | S10: 0 | T10: 0 | U10: 0 | V10: 0 | W10: 0 | X10: 0 | Y10: 0 | Z10: 0 | AA10: 1 | AB10: 1 | AC10: 0 | AD10: 0 | AE10: 0 | AF10: 0 | AG10: 0 | AH10: 0 | AI10: 0 | AJ10: 0 | AK10: 0 | AL10: 0 | AM10: 0 | AN10: 0 | AO10: 0 | AP10: 0 | AQ10: 0 | AR10: 0 | AS10: 556212320 | AT10: 556212320 | AU10: 0 | AV10: 0 | AW10: 0 | AX10: 0 | AY10: 0 | AZ10: 0 | BA10: 0 | BB10: 0 | BC10: 0 | BD10: 0 | BE10: 0 | BF10: 0 | BG10: 0 | BH10: 0 | BI10: 0 | BJ10: 0
B11: 1221 | C11: 1000 | D11: 1200 | E11: 1220 | F11: Servicios personales | G11: Remuneraciones al personal de carácter transitorio. | H11: Sueldos base al personal eventual. | I11: Sueldos base al personal eventual. | J11: 1 | K11: 0 | L11: 0 | M11: 0 | N11: 0 | O11: 0 | P11: 0 | Q11: 0 | R11: 0 | S11: 0 | T11: 0 | U11: 0 | V11: 0 | W11: 0 | X11: 0 | Y11: 0 | Z11: 0 | AA11: 1 | AB11: 1 | AC11: 0 | AD11: 0 | AE11: 0 | AF11: 0 | AG11: 0 | AH11: 0 | AI11: 0 | AJ11: 0 | AK11: 0 | AL11: 0 | AM11: 0 | AN11: 0 | AO11: 0 | AP11: 0 | AQ11: 0 | AR11: 0 | AS11: 823001204 | AT11: 823001204 | AU11: 0 | AV11: 0 | AW11: 0 | AX11: 0 | AY11: 0 | AZ11: 0 | BA11: 0 | BB11: 0 | BC11: 0 | BD11: 0 | BE11: 0 | BF11: 0 | BG11: 0 | BH11: 0 | BI11: 0 | BJ11: 0
B12: 1231 | C12: 1000 | D12: 1200 | E12: 1230 | F12: Servicios personales | G12: Remuneraciones al personal de carácter transitorio. | H12: Retribuciones por servicios de carácter social. | I12: Retribuciones por servicios de carácter social. | J12: 1 | K12: 0 | L12: 0 | M12: 0 | N12: 0 | O12: 0 | P12: 0 | Q12: 0 | R12: 0 | S12: 0 | T12: 0 | U12: 0 | V12: 0 | W12: 0 | X12: 0 | Y12: 0 | Z12: 0 | AA12: 1 | AB12: 1 | AC12: 0 | AD12: 0 | AE12: 0 | AF12: 0 | AG12: 0 | AH12: 0 | AI12: 0 | AJ12: 0 | AK12: 0 | AL12: 0 | AM12: 0 | AN12: 0 | AO12: 0 | AP12: 0 | AQ12: 0 | AR12: 0 | AS12: 21504989 | AT12: 21504989 | AU12: 0 | AV12: 0 | AW12: 0 | AX12: 0 | AY12: 0 | AZ12: 0 | BA12: 0 | BB12: 0 | BC12: 0 | BD12: 0 | BE12: 0 | BF12: 0 | BG12: 0 | BH12: 0 | BI12: 0 | BJ12: 0
B13: 1311 | C13: 1000 | D13: 1300 | E13: 1310 | F13: Servicios personales | G13: Remuneraciones adicionales y especiales. | H13: Primas por años de servicios efectivos prestados. | I13: Prima quinquenal por años de servicios efectivos prestados. | J13: 1 | K13: 0 | L13: 0 | M13: 0 | N13: 0 | O13: 0 | P13: 0 | Q13: 0 | R13: 0 | S13: 0 | T13: 0 | U13: 0 | V13: 0 | W13: 0 | X13: 0 | Y13: 0 | Z13: 0 | AA13: 1 | AB13: 1 | AC13: 0 | AD13: 0 | AE13: 0 | AF13: 0 | AG13: 0 | AH13: 0 | AI13: 0 | AJ13: 0 | AK13: 0 | AL13: 0 | AM13: 0 | AN13: 0 | AO13: 0 | AP13: 0 | AQ13: 0 | AR13: 0 | AS13: 82627042 | AT13: 82627042 | AU13: 0 | AV13: 0 | AW13: 0 | AX13: 0 | AY13: 0 | AZ13: 0 | BA13: 0 | BB13: 0 | BC13: 0 | BD13: 0 | BE13: 0 | BF13: 0 | BG13: 0 | BH13: 0 | BI13: 0 | BJ13: 0
B14: 1312 | C14: 1000 | D14: 1300 | E14: 1310 | F14: Servicios personales | G14: Remuneraciones adicionales y especiales. | H14: Primas por años de servicios efectivos prestados. | I14: Primas por años de servicio activo. | J14: 1 | K14: 0 | L14: 0 | M14: 0 | N14: 0 | O14: 0 | P14: 0 | Q14: 0 | R14: 0 | S14: 0 | T14: 0 | U14: 0 | V14: 0 | W14: 0 | X14: 0 | Y14: 0 | Z14: 0 | AA14: 1 | AB14: 1 | AC14: 0 | AD14: 0 | AE14: 0 | AF14: 0 | AG14: 0 | AH14: 0 | AI14: 0 | AJ14: 0 | AK14: 0 | AL14: 0 | AM14: 0 | AN14: 0 | AO14: 0 | AP14: 0 | AQ14: 0 | AR14: 0 | AS14: 0 | AT14: 0 | AU14: 0 | AV14: 0 | AW14: 0 | AX14: 0 | AY14: 0 | AZ14: 0 | BA14: 0 | BB14: 0 | BC14: 0 | BD14: 0 | BE14: 0 | BF14: 0 | BG14: 0 | BH14: 0 | BI14: 0 | BJ14: 0
B15: 1321 | C15: 1000 | D15: 1300 | E15: 1320 | F15: Servicios personales | G15: Remuneraciones adicionales y especiales. | H15: Primas de vacaciones, dominical y gratificación de fin de año. | I15: Prima de vacaciones. | J15: 1 | K15: 0 | L15: 0 | M15: 0 | N15: 0 | O15: 0 | P15: 0 | Q15: 0 | R15: 0 | S15: 0 | T15: 0 | U15: 0 | V15: 0 | W15: 0 | X15: 0 | Y15: 0 | Z15: 0 | AA15: 1 | AB15: 1 | AC15: 0 | AD15: 0 | AE15: 0 | AF15: 0 | AG15: 0 | AH15: 0 | AI15: 0 | AJ15: 0 | AK15: 0 | AL15: 0 | AM15: 0 | AN15: 0 | AO15: 0 | AP15: 0 | AQ15: 0 | AR15: 0 | AS15: 179738044 | AT15: 179738044 | AU15: 0 | AV15: 0 | AW15: 0 | AX15: 0 | AY15: 0 | AZ15: 0 | BA15: 0 | BB15: 0 | BC15: 0 | BD15: 0 | BE15: 0 | BF15: 0 | BG15: 0 | BH15: 0 | BI15: 0 | BJ15: 0
B16: 1322 | C16: 1000 | D16: 1300 | E16: 1320 | F16: Servicios personales | G16: Remuneraciones adicionales y especiales. | H16: Primas de vacaciones, dominical y gratificación de fin de año. | I16: Prima dominical. | J16: 1 | K16: 0 | L16: 0 | M16: 0 | N16: 0 | O16: 0 | P16: 0 | Q16: 0 | R16: 0 | S16: 0 | T16: 0 | U16: 0 | V16: 0 | W16: 0 | X16: 0 | Y16: 0 | Z16: 0 | AA16: 1 | AB16: 1 | AC16: 0 | AD16: 0 | AE16: 0 | AF16: 0 | AG16: 0 | AH16: 0 | AI16: 0 | AJ16: 0 | AK16: 0 | AL16: 0 | AM16: 0 | AN16: 0 | AO16: 0 | AP16: 0 | AQ16: 0 | AR16: 0 | AS16: 6232016 | AT16: 6232016 | AU16: 0 | AV16: 0 | AW16: 0 | AX16: 0 | AY16: 0 | AZ16: 0 | BA16: 0 | BB16: 0 | BC16: 0 | BD16: 0 | BE16: 0 | BF16: 0 | BG16: 0 | BH16: 0 | BI16: 0 | BJ16: 0
B17: 1323 | C17: 1000 | D17: 1300 | E17: 1320 | F17: Servicios personales | G17: Remuneraciones adicionales y especiales. | H17: Primas de vacaciones, dominical y gratificación de fin de año. | I17: Gratificación de fin de año. | J17: 1 | K17: 0 | L17: 0 | M17: 0 | N17: 0 | O17: 0 | P17: 0 | Q17: 0 | R17: 0 | S17: 0 | T17: 0 | U17: 0 | V17: 0 | W17: 0 | X17: 0 | Y17: 0 | Z17: 0 | AA17: 1 | AB17: 1 | AC17: 0 | AD17: 0 | AE17: 0 | AF17: 0 | AG17: 0 | AH17: 0 | AI17: 0 | AJ17: 0 | AK17: 0 | AL17: 0 | AM17: 0 | AN17: 0 | AO17: 0 | AP17: 0 | AQ17: 0 | AR17: 0 | AS17: 931044703 | AT17: 931044703 | AU17: 0 | AV17: 0 | AW17: 0 | AX17: 0 | AY17: 0 | AZ17: 0 | BA17: 0 | BB17: 0 | BC17: 0 | BD17: 0 | BE17: 0 | BF17: 0 | BG17: 0 | BH17: 0 | BI17: 0 | BJ17: 0
B18: 1331 | C18: 1000 | D18: 1300 | E18: 1330 | F18: Servicios personales | G18: Remuneraciones adicionales y especiales. | H18: Horas extraordinarias. | I18: Horas extraordinarias. | J18: 1 | K18: 0 | L18: 0 | M18: 0 | N18: 0 | O18: 0 | P18: 0 | Q18: 0 | R18: 0 | S18: 0 | T18: 0 | U18: 0 | V18: 0 | W18: 0 | X18: 0 | Y18: 0 | Z18: 0 | AA18: 1 | AB18: 1 | AC18: 0 | AD18: 0 | AE18: 0 | AF18: 0 | AG18: 0 | AH18: 0 | AI18: 0 | AJ18: 0 | AK18: 0 | AL18: 0 | AM18: 0 | AN18: 0 | AO18: 0 | AP18: 0 | AQ18: 0 | AR18: 0 | AS18: 703075019 | AT18: 703075019 | AU18: 0 | AV18: 0 | AW18: 0 | AX18: 0 | AY18: 0 | AZ18: 0 | BA18: 0 | BB18: 0 | BC18: 0 | BD18: 0 | BE18: 0 | BF18: 0 | BG18: 0 | BH18: 0 | BI18: 0 | BJ18: 0
B19: 1332 | C19: 1000 | D19: 1300 | E19: 1330 | F19: Servicios personales | G19: Remuneraciones adicionales y especiales. | H19: Horas extraordinarias. | I19: Guardias. | J19: 1 | K19: 0 | L19: 0 | M19: 0 | N19: 0 | O19: 0 | P19: 0 | Q19: 0 | R19: 0 | S19: 0 | T19: 0 | U19: 0 | V19: 0 | W19: 0 | X19: 0 | Y19: 0 | Z19: 0 | AA19: 1 | AB19: 1 | AC19: 0 | AD19: 0 | AE19: 0 | AF19: 0 | AG19: 0 | AH19: 0 | AI19: 0 | AJ19: 0 | AK19: 0 | AL19: 0 | AM19: 0 | AN19: 0 | AO19: 0 | AP19: 0 | AQ19: 0 | AR19: 0 | AS19: 349911061 | AT19: 349911061 | AU19: 0 | AV19: 0 | AW19: 0 | AX19: 0 | AY19: 0 | AZ19: 0 | BA19: 0 | BB19: 0 | BC19: 0 | BD19: 0 | BE19: 0 | BF19: 0 | BG19: 0 | BH19: 0 | BI19: 0 | BJ19: 0
B20: 1341 | C20: 1000 | D20: 1300 | E20: 1340 | F20: Servicios personales | G20: Remuneraciones adicionales y especiales. | H20: Compensaciones. | I20: Compensaciones. | J20: 1 | K20: 0 | L20: 0 | M20: 0 | N20: 0 | O20: 0 | P20: 0 | Q20: 0 | R20: 0 | S20: 0 | T20: 0 | U20: 0 | V20: 0 | W20: 0 | X20: 0 | Y20: 0 | Z20: 0 | AA20: 1 | AB20: 1 | AC20: 0 | AD20: 0 | AE20: 0 | AF20: 0 | AG20: 0 | AH20: 0 | AI20: 0 | AJ20: 0 | AK20: 0 | AL20: 0 | AM20: 0 | AN20: 0 | AO20: 0 | AP20: 0 | AQ20: 0 | AR20: 0 | AS20: 30464804 | AT20: 30464804 | AU20: 0 | AV20: 0 | AW20: 0 | AX20: 0 | AY20: 0 | AZ20: 0 | BA20: 0 | BB20: 0 | BC20: 0 | BD20: 0 | BE20: 0 | BF20: 0 | BG20: 0 | BH20: 0 | BI20: 0 | BJ20: 0
B21: 1342 | C21: 1000 | D21: 1300 | E21: 1340 | F21: Servicios personales | G21: Remuneraciones adicionales y especiales. | H21: Compensaciones. | I21: Compensaciones por servicios eventuales. | J21: 1 | K21: 0 | L21: 0 | M21: 0 | N21: 0 | O21: 0 | P21: 0 | Q21: 0 | R21: 0 | S21: 0 | T21: 0 | U21: 0 | V21: 0 | W21: 0 | X21: 0 | Y21: 0 | Z21: 0 | AA21: 1 | AB21: 1 | AC21: 0 | AD21: 0 | AE21: 0 | AF21: 0 | AG21: 0 | AH21: 0 | AI21: 0 | AJ21: 0 | AK21: 0 | AL21: 0 | AM21: 0 | AN21: 0 | AO21: 0 | AP21: 0 | AQ21: 0 | AR21: 0 | AS21: 47209903 | AT21: 47209903 | AU21: 0 | AV21: 0 | AW21: 0 | AX21: 0 | AY21: 0 | AZ21: 0 | BA21: 0 | BB21: 0 | BC21: 0 | BD21: 0 | BE21: 0 | BF21: 0 | BG21: 0 | BH21: 0 | BI21: 0 | BJ21: 0
B22: 1343 | C22: 1000 | D22: 1300 | E22: 1340 | F22: Servicios personales | G22: Remuneraciones adicionales y especiales. | H22: Compensaciones. | I22: Compensaciones adicionales y provisionales por servicios especiales. | J22: 1 | K22: 0 | L22: 0 | M22: 0 | N22: 0 | O22: 0 | P22: 0 | Q22: 0 | R22: 0 | S22: 0 | T22: 0 | U22: 0 | V22: 0 | W22: 0 | X22: 0 | Y22: 0 | Z22: 0 | AA22: 1 | AB22: 1 | AC22: 0 | AD22: 0 | AE22: 0 | AF22: 0 | AG22: 0 | AH22: 0 | AI22: 0 | AJ22: 0 | AK22: 0 | AL22: 0 | AM22: 0 | AN22: 0 | AO22: 0 | AP22: 0 | AQ22: =Y22/$AA22 -> 0 | AR22: 0 | AS22: 560600963 | AT22: 560600963 | AU22: 0 | AV22: 0 | AW22: 0 | AX22: 0 | AY22: 0 | AZ22: 0 | BA22: 0 | BB22: 0 | BC22: 0 | BD22: 0 | BE22: 0 | BF22: 0 | BG22: 0 | BH22: 0 | BI22: 0 | BJ22: 0
B23: 1411 | C23: 1000 | D23: 1400 | E23: 1410 | F23: Servicios personales | G23: Seguridad social. | H23: Aportaciones de seguridad social. | I23: Aportaciones a instituciones de seguridad social. | J23: 1 | K23: 0 | L23: 0 | M23: 0 | N23: 0 | O23: 0 | P23: 0 | Q23: 0 | R23: 0 | S23: 0 | T23: 0 | U23: 0 | V23: 0 | W23: 0 | X23: 0 | Y23: 0 | Z23: 0 | AA23: 1 | AB23: =J23/$AA23 -> 1 | AC23: 0 | AD23: 0 | AE23: 0 | AF23: 0 | AG23: 0 | AH23: 0 | AI23: 0 | AJ23: 0 | AK23: 0 | AL23: 0 | AM23: 0 | AN23: 0 | AO23: 0 | AP23: 0 | AQ23: 0 | AR23: 0 | AS23: 1086261573 | AT23: 1086261573 | AU23: 0 | AV23: 0 | AW23: 0 | AX23: 0 | AY23: 0 | AZ23: 0 | BA23: 0 | BB23: 0 | BC23: 0 | BD23: 0 | BE23: 0 | BF23: 0 | BG23: 0 | BH23: 0 | BI23: 0 | BJ23: 0
B24: 1421 | C24: 1000 | D24: 1400 | E24: 1420 | F24: Servicios personales | G24: Seguridad social. | H24: Aportaciones a fondos de vivienda. | I24: Aportaciones a fondos de vivienda. | J24: 1 | K24: 0 | L24: 0 | M24: 0 | N24: 0 | O24: 0 | P24: 0 | Q24: 0 | R24: 0 | S24: 0 | T24: 0 | U24: 0 | V24: 0 | W24: 0 | X24: 0 | Y24: 0 | Z24: 0 | AA24: 1 | AB24: 1 | AC24: 0 | AD24: 0 | AE24: 0 | AF24: 0 | AG24: 0 | AH24: 0 | AI24: 0 | AJ24: 0 | AK24: 0 | AL24: 0 | AM24: 0 | AN24: 0 | AO24: 0 | AP24: 0 | AQ24: 0 | AR24: 0 | AS24: 381367579 | AT24: 381367579 | AU24: 0 | AV24: 0 | AW24: 0 | AX24: 0 | AY24: 0 | AZ24: 0 | BA24: 0 | BB24: 0 | BC24: 0 | BD24: 0 | BE24: 0 | BF24: 0 | BG24: 0 | BH24: 0 | BI24: 0 | BJ24: 0
B25: 1431 | C25: 1000 | D25: 1400 | E25: 1430 | F25: Servicios personales | G25: Seguridad social. | H25: Aportaciones al sistema para el retiro. | I25: Aportaciones al sistema para el retiro o a la administradora de fondos para el retiro y ahorro solidario. | J25: 1 | K25: 0 | L25: 0 | M25: 0 | N25: 0 | O25: 0 | P25: 0 | Q25: 0 | R25: 0 | S25: 0 | T25: 0 | U25: 0 | V25: 0 | W25: 0 | X25: 0 | Y25: 0 | Z25: 0 | AA25: 1 | AB25: 1 | AC25: 0 | AD25: 0 | AE25: 0 | AF25: 0 | AG25: 0 | AH25: 0 | AI25: 0 | AJ25: 0 | AK25: 0 | AL25: 0 | AM25: 0 | AN25: 0 | AO25: 0 | AP25: 0 | AQ25: 0 | AR25: 0 | AS25: 208744629 | AT25: 208744629 | AU25: 0 | AV25: 0 | AW25: 0 | AX25: 0 | AY25: 0 | AZ25: 0 | BA25: 0 | BB25: 0 | BC25: 0 | BD25: 0 | BE25: 0 | BF25: 0 | BG25: 0 | BH25: 0 | BI25: 0 | BJ25: 0
B26: 1441 | C26: 1000 | D26: 1400 | E26: 1440 | F26: Servicios personales | G26: Seguridad social. | H26: Aportaciones para seguros. | I26: Primas por seguro de vida del personal civil. | J26: 1 | K26: 0 | L26: 0 | M26: 0 | N26: 0 | O26: 0 | P26: 0 | Q26: 0 | R26: 0 | S26: 0 | T26: 0 | U26: 0 | V26: 0 | W26: 0 | X26: 0 | Y26: 0 | Z26: 0 | AA26: 1 | AB26: 1 | AC26: 0 | AD26: 0 | AE26: 0 | AF26: 0 | AG26: 0 | AH26: 0 | AI26: 0 | AJ26: 0 | AK26: 0 | AL26: 0 | AM26: 0 | AN26: 0 | AO26: 0 | AP26: 0 | AQ26: 0 | AR26: 0 | AS26: 275492966 | AT26: 275492966 | AU26: 0 | AV26: 0 | AW26: 0 | AX26: 0 | AY26: 0 | AZ26: 0 | BA26: 0 | BB26: 0 | BC26: 0 | BD26: 0 | BE26: 0 | BF26: 0 | BG26: 0 | BH26: 0 | BI26: 0 | BJ26: 0
B27: 1443 | C27: 1000 | D27: 1400 | E27: 1440 | F27: Servicios personales | G27: Seguridad social. | H27: Aportaciones para seguros. | I27: Primas por seguro de retiro del personal al servicio de las unidades responsables del gasto del Distrito Federal. | J27: 1 | K27: 0 | L27: 0 | M27: 0 | N27: 0 | O27: 0 | P27: 0 | Q27: 0 | R27: 0 | S27: 0 | T27: 0 | U27: 0 | V27: 0 | W27: 0 | X27: 0 | Y27: 0 | Z27: 0 | AA27: 1 | AB27: 1 | AC27: 0 | AD27: 0 | AE27: 0 | AF27: 0 | AG27: 0 | AH27: 0 | AI27: 0 | AJ27: 0 | AK27: 0 | AL27: 0 | AM27: 0 | AN27: 0 | AO27: 0 | AP27: 0 | AQ27: 0 | AR27: 0 | AS27: 57425898 | AT27: 57425898 | AU27: 0 | AV27: 0 | AW27: 0 | AX27: 0 | AY27: 0 | AZ27: 0 | BA27: 0 | BB27: 0 | BC27: 0 | BD27: 0 | BE27: 0 | BF27: 0 | BG27: 0 | BH27: 0 | BI27: 0 | BJ27: 0
B28: 1511 | C28: 1000 | D28: 1500 | E28: 1510 | F28: Servicios personales | G28: Otras prestaciones sociales y económicas. | H28: Cuotas para el fondo de ahorro y fondo de trabajo. | I28: Cuotas para el fondo de ahorro y fondo de trabajo. | J28: 1 | K28: 0 | L28: 0 | M28: 0 | N28: 0 | O28: 0 | P28: 0 | Q28: 0 | R28: 0 | S28: 0 | T28: 0 | U28: 0 | V28: 0 | W28: 0 | X28: 0 | Y28: 0 | Z28: 0 | AA28: 1 | AB28: 1 | AC28: 0 | AD28: 0 | AE28: 0 | AF28: 0 | AG28: 0 | AH28: 0 | AI28: 0 | AJ28: 0 | AK28: 0 | AL28: 0 | AM28: 0 | AN28: 0 | AO28: 0 | AP28: 0 | AQ28: 0 | AR28: 0 | AS28: 679457170 | AT28: 679457170 | AU28: 0 | AV28: 0 | AW28: 0 | AX28: 0 | AY28: 0 | AZ28: 0 | BA28: 0 | BB28: 0 | BC28: 0 | BD28: 0 | BE28: 0 | BF28: 0 | BG28: 0 | BH28: 0 | BI28: 0 | BJ28: 0
B29: 1521 | C29: 1000 | D29: 1500 | E29: 1520 | F29: Servicios personales | G29: Otras prestaciones sociales y económicas. | H29: Indemnizaciones. | I29: Liquidaciones por indemnizaciones y por sueldos y salarios caídos. | J29: 1 | K29: 0 | L29: 0 | M29: 0 | N29: 0 | O29: 0 | P29: 0 | Q29: 0 | R29: 0 | S29: 0 | T29: 0 | U29: 0 | V29: 0 | W29: 0 | X29: 0 | Y29: 0 | Z29: 0 | AA29: 1 | AB29: 1 | AC29: 0 | AD29: 0 | AE29: 0 | AF29: 0 | AG29: 0 | AH29: 0 | AI29: 0 | AJ29: 0 | AK29: 0 | AL29: 0 | AM29: 0 | AN29: 0 | AO29: 0 | AP29: 0 | AQ29: 0 | AR29: 0 | AS29: 120470910 | AT29: 120470910 | AU29: 0 | AV29: 0 | AW29: 0 | AX29: 0 | AY29: 0 | AZ29: 0 | BA29: 0 | BB29: 0 | BC29: 0 | BD29: 0 | BE29: 0 | BF29: 0 | BG29: 0 | BH29: 0 | BI29: 0 | BJ29: 0
B30: 1531 | C30: 1000 | D30: 1500 | E30: 1530 | F30: Servicios personales | G30: Otras prestaciones sociales y económicas. | H30: Prestaciones y haberes de retiro. | I30: Prestaciones y haberes de retiro. | J30: 1 | K30: 0 | L30: 0 | M30: 0 | N30: 0 | O30: 0 | P30: 0 | Q30: 0 | R30: 0 | S30: 0 | T30: 0 | U30: 0 | V30: 0 | W30: 0 | X30: 0 | Y30: 0 | Z30: 0 | AA30: 1 | AB30: 1 | AC30: 0 | AD30: 0 | AE30: 0 | AF30: 0 | AG30: 0 | AH30: 0 | AI30: 0 | AJ30: 0 | AK30: 0 | AL30: 0 | AM30: 0 | AN30: 0 | AO30: 0 | AP30: 0 | AQ30: 0 | AR30: 0 | AS30: 550000 | AT30: 550000 | AU30: 0 | AV30: 0 | AW30: 0 | AX30: 0 | AY30: 0 | AZ30: 0 | BA30: 0 | BB30: 0 | BC30: 0 | BD30: 0 | BE30: 0 | BF30: 0 | BG30: 0 | BH30: 0 | BI30: 0 | BJ30: 0
B31: 1541 | C31: 1000 | D31: 1500 | E31: 1540 | F31: Servicios personales | G31: Otras prestaciones sociales y económicas. | H31: Prestaciones contractuales. | I31: Vales. | J31: 1 | K31: 0 | L31: 0 | M31: 0 | N31: 0 | O31: 0 | P31: 0 | Q31: 0 | R31: 0 | S31: 0 | T31: 0 | U31: 0 | V31: 0 | W31: 0 | X31: 0 | Y31: 0 | Z31: 0 | AA31: 1 | AB31: 1 | AC31: 0 | AD31: 0 | AE31: 0 | AF31: 0 | AG31: 0 | AH31: 0 | AI31: 0 | AJ31: 0 | AK31: 0 | AL31: 0 | AM31: 0 | AN31: 0 | AO31: 0 | AP31: 0 | AQ31: 0 | AR31: 0 | AS31: 1133838527 | AT31: 1133838527 | AU31: 0 | AV31: 0 | AW31: 0 | AX31: 0 | AY31: 0 | AZ31: 0 | BA31: 0 | BB31: 0 | BC31: 0 | BD31: 0 | BE31: 0 | BF31: 0 | BG31: 0 | BH31: 0 | BI31: 0 | BJ31: 0
B32: 1542 | C32: 1000 | D32: 1500 | E32: 1540 | F32: Servicios personales | G32: Otras prestaciones sociales y económicas. | H32: Prestaciones contractuales. | I32: Apoyo económico por defunción de familiares directos. | J32: 1 | K32: 0 | L32: 0 | M32: 0 | N32: 0 | O32: 0 | P32: 0 | Q32: 0 | R32: 0 | S32: 0 | T32: 0 | U32: 0 | V32: 0 | W32: 0 | X32: 0 | Y32: 0 | Z32: 0 | AA32: 1 | AB32: 1 | AC32: 0 | AD32: 0 | AE32: 0 | AF32: 0 | AG32: 0 | AH32: 0 | AI32: 0 | AJ32: 0 | AK32: 0 | AL32: 0 | AM32: 0 | AN32: 0 | AO32: 0 | AP32: 0 | AQ32: 0 | AR32: 0 | AS32: 8487826 | AT32: 8487826 | AU32: 0 | AV32: 0 | AW32: 0 | AX32: 0 | AY32: 0 | AZ32: 0 | BA32: 0 | BB32: 0 | BC32: 0 | BD32: 0 | BE32: 0 | BF32: 0 | BG32: 0 | BH32: 0 | BI32: 0 | BJ32: 0
B33: 1543 | C33: 1000 | D33: 1500 | E33: 1540 | F33: Servicios personales | G33: Otras prestaciones sociales y económicas. | H33: Prestaciones contractuales. | I33: Estancias de Desarrollo Infantil. | J33: 1 | K33: 0 | L33: 0 | M33: 0 | N33: 0 | O33: 0 | P33: 0 | Q33: 0 | R33: 0 | S33: 0 | T33: 0 | U33: 0 | V33: 0 | W33: 0 | X33: 0 | Y33: 0 | Z33: 0 | AA33: 1 | AB33: 1 | AC33: 0 | AD33: 0 | AE33: 0 | AF33: 0 | AG33: 0 | AH33: 0 | AI33: 0 | AJ33: 0 | AK33: 0 | AL33: 0 | AM33: 0 | AN33: 0 | AO33: 0 | AP33: 0 | AQ33: 0 | AR33: 0 | AS33: 2206563 | AT33: 2206563 | AU33: 0 | AV33: 0 | AW33: 0 | AX33: 0 | AY33: 0 | AZ33: 0 | BA33: 0 | BB33: 0 | BC33: 0 | BD33: 0 | BE33: 0 | BF33: 0 | BG33: 0 | BH33: 0 | BI33: 0 | BJ33: 0
B34: 1544 | C34: 1000 | D34: 1500 | E34: 1540 | F34: Servicios personales | G34: Otras prestaciones sociales y económicas. | H34: Prestaciones contractuales. | I34: Asignaciones para requerimiento de cargos de servidores públicos de nivel técnico operativo, de confianza y personal de la rama médica. | J34: 1 | K34: 0 | L34: 0 | M34: 0 | N34: 0 | O34: 0 | P34: 0 | Q34: 0 | R34: 0 | S34: 0 | T34: 0 | U34: 0 | V34: 0 | W34: 0 | X34: 0 | Y34: 0 | Z34: 0 | AA34: 1 | AB34: 1 | AC34: 0 | AD34: 0 | AE34: 0 | AF34: 0 | AG34: 0 | AH34: 0 | AI34: 0 | AJ34: 0 | AK34: 0 | AL34: 0 | AM34: 0 | AN34: 0 | AO34: 0 | AP34: 0 | AQ34: 0 | AR34: 0 | AS34: 370801333 | AT34: 370801333 | AU34: 0 | AV34: 0 | AW34: 0 | AX34: 0 | AY34: 0 | AZ34: 0 | BA34: 0 | BB34: 0 | BC34: 0 | BD34: 0 | BE34: 0 | BF34: 0 | BG34: 0 | BH34: 0 | BI34: 0 | BJ34: 0
B35: 1545 | C35: 1000 | D35: 1500 | E35: 1540 | F35: Servicios personales | G35: Otras prestaciones sociales y económicas. | H35: Prestaciones contractuales. | I35: Asignaciones para prestaciones a personal sindicalizado y no sindicalizado. | J35: 1 | K35: 0 | L35: 0 | M35: 0 | N35: 0 | O35: 0 | P35: 0 | Q35: 0 | R35: 0 | S35: 0 | T35: 0 | U35: 0 | V35: 0 | W35: 0 | X35: 0 | Y35: 0 | Z35: 0 | AA35: 1 | AB35: 1 | AC35: 0 | AD35: 0 | AE35: 0 | AF35: 0 | AG35: 0 | AH35: 0 | AI35: 0 | AJ35: 0 | AK35: 0 | AL35: 0 | AM35: 0 | AN35: 0 | AO35: 0 | AP35: 0 | AQ35: 0 | AR35: 0 | AS35: 460759782 | AT35: 460759782 | AU35: 0 | AV35: 0 | AW35: 0 | AX35: 0 | AY35: 0 | AZ35: 0 | BA35: 0 | BB35: 0 | BC35: 0 | BD35: 0 | BE35: 0 | BF35: 0 | BG35: 0 | BH35: 0 | BI35: 0 | BJ35: 0
B36: 1546 | C36: 1000 | D36: 1500 | E36: 1540 | F36: Servicios personales | G36: Otras prestaciones sociales y económicas. | H36: Prestaciones contractuales. | I36: Otras prestaciones contractuales. | J36: 1 | K36: 0 | L36: 0 | M36: 0 | N36: 0 | O36: 0 | P36: 0 | Q36: 0 | R36: 0 | S36: 0 | T36: 0 | U36: 0 | V36: 0 | W36: 0 | X36: 0 | Y36: 0 | Z36: 0 | AA36: 1 | AB36: 1 | AC36: 0 | AD36: 0 | AE36: 0 | AF36: 0 | AG36: 0 | AH36: 0 | AI36: 0 | AJ36: 0 | AK36: 0 | AL36: 0 | AM36: 0 | AN36: 0 | AO36: 0 | AP36: 0 | AQ36: 0 | AR36: 0 | AS36: 822758269 | AT36: 822758269 | AU36: 0 | AV36: 0 | AW36: 0 | AX36: 0 | AY36: 0 | AZ36: 0 | BA36: 0 | BB36: 0 | BC36: 0 | BD36: 0 | BE36: 0 | BF36: 0 | BG36: 0 | BH36: 0 | BI36: 0 | BJ36: 0
B37: 1547 | C37: 1000 | D37: 1500 | E37: 1540 | F37: Servicios personales | G37: Otras prestaciones sociales y económicas. | H37: Prestaciones contractuales. | I37: Asignaciones conmemorativas. | J37: 1 | K37: 0 | L37: 0 | M37: 0 | N37: 0 | O37: 0 | P37: 0 | Q37: 0 | R37: 0 | S37: 0 | T37: 0 | U37: 0 | V37: 0 | W37: 0 | X37: 0 | Y37: 0 | Z37: 0 | AA37: 1 | AB37: 1 | AC37: 0 | AD37: 0 | AE37: 0 | AF37: 0 | AG37: 0 | AH37: 0 | AI37: 0 | AJ37: 0 | AK37: 0 | AL37: 0 | AM37: 0 | AN37: 0 | AO37: 0 | AP37: 0 | AQ37: 0 | AR37: 0 | AS37: 96510021 | AT37: 96510021 | AU37: 0 | AV37: 0 | AW37: 0 | AX37: 0 | AY37: 0 | AZ37: 0 | BA37: 0 | BB37: 0 | BC37: 0 | BD37: 0 | BE37: 0 | BF37: 0 | BG37: 0 | BH37: 0 | BI37: 0 | BJ37: 0
B38: 1548 | C38: 1000 | D38: 1500 | E38: 1540 | F38: Servicios personales | G38: Otras prestaciones sociales y económicas. | H38: Prestaciones contractuales. | I38: Asignaciones para pago de antigüedad. | J38: 1 | K38: 0 | L38: 0 | M38: 0 | N38: 0 | O38: 0 | P38: 0 | Q38: 0 | R38: 0 | S38: 0 | T38: 0 | U38: 0 | V38: 0 | W38: 0 | X38: 0 | Y38: 0 | Z38: 0 | AA38: 1 | AB38: 1 | AC38: 0 | AD38: 0 | AE38: 0 | AF38: 0 | AG38: 0 | AH38: 0 | AI38: 0 | AJ38: 0 | AK38: 0 | AL38: 0 | AM38: 0 | AN38: 0 | AO38: 0 | AP38: 0 | AQ38: 0 | AR38: 0 | AS38: 589877448 | AT38: 589877448 | AU38: 0 | AV38: 0 | AW38: 0 | AX38: 0 | AY38: 0 | AZ38: 0 | BA38: 0 | BB38: 0 | BC38: 0 | BD38: 0 | BE38: 0 | BF38: 0 | BG38: 0 | BH38: 0 | BI38: 0 | BJ38: 0
B39: 1549 | C39: 1000 | D39: 1500 | E39: 1540 | F39: Servicios personales | G39: Otras prestaciones sociales y económicas. | H39: Prestaciones contractuales. | I39: Apoyos colectivos. | J39: 1 | K39: 0 | L39: 0 | M39: 0 | N39: 0 | O39: 0 | P39: 0 | Q39: 0 | R39: 0 | S39: 0 | T39: 0 | U39: 0 | V39: 0 | W39: 0 | X39: 0 | Y39: 0 | Z39: 0 | AA39: 1 | AB39: 1 | AC39: 0 | AD39: 0 | AE39: 0 | AF39: 0 | AG39: 0 | AH39: 0 | AI39: 0 | AJ39: 0 | AK39: 0 | AL39: 0 | AM39: 0 | AN39: 0 | AO39: 0 | AP39: 0 | AQ39: 0 | AR39: 0 | AS39: 82977412 | AT39: 82977412 | AU39: 0 | AV39: 0 | AW39: 0 | AX39: 0 | AY39: 0 | AZ39: 0 | BA39: 0 | BB39: 0 | BC39: 0 | BD39: 0 | BE39: 0 | BF39: 0 | BG39: 0 | BH39: 0 | BI39: 0 | BJ39: 0
B40: 1551 | C40: 1000 | D40: 1500 | E40: 1550 | F40: Servicios personales | G40: Otras prestaciones sociales y económicas. | H40: Apoyos a la capacitación de los servidores públicos. | I40: Apoyos a la capacitación de los servidores públicos. | J40: 1 | K40: 0 | L40: 0 | M40: 0 | N40: 0 | O40: 0 | P40: 0 | Q40: 0 | R40: 0 | S40: 0 | T40: 0 | U40: 0 | V40: 0 | W40: 0 | X40: 0 | Y40: 0 | Z40: 0 | AA40: 1 | AB40: =J40/$AA40 -> 1 | AC40: 0 | AD40: 0 | AE40: 0 | AF40: 0 | AG40: 0 | AH40: 0 | AI40: 0 | AJ40: 0 | AK40: 0 | AL40: 0 | AM40: 0 | AN40: 0 | AO40: 0 | AP40: 0 | AQ40: 0 | AR40: 0 | AS40: 3772131 | AT40: 3772131 | AU40: 0 | AV40: 0 | AW40: 0 | AX40: 0 | AY40: 0 | AZ40: 0 | BA40: 0 | BB40: 0 | BC40: 0 | BD40: 0 | BE40: 0 | BF40: 0 | BG40: 0 | BH40: 0 | BI40: 0 | BJ40: 0
B41: 1591 | C41: 1000 | D41: 1500 | E41: 1590 | F41: Servicios personales | G41: Otras prestaciones sociales y económicas. | H41: Otras prestaciones sociales y económicas. | I41: Asignaciones para requerimiento de cargos de servidores públicos superiores y de mandos medios así como de líderes coordinadores y enlaces. | J41: 1 | K41: 0 | L41: 0 | M41: 0 | N41: 0 | O41: 0 | P41: 0 | Q41: 0 | R41: 0 | S41: 0 | T41: 0 | U41: 0 | V41: 0 | W41: 0 | X41: 0 | Y41: 0 | Z41: 0 | AA41: 1 | AB41: 1 | AC41: 0 | AD41: 0 | AE41: 0 | AF41: 0 | AG41: 0 | AH41: 0 | AI41: 0 | AJ41: 0 | AK41: 0 | AL41: 0 | AM41: 0 | AN41: 0 | AO41: 0 | AP41: 0 | AQ41: 0 | AR41: 0 | AS41: 1002822697 | AT41: 1002822697 | AU41: 0 | AV41: 0 | AW41: 0 | AX41: 0 | AY41: 0 | AZ41: 0 | BA41: 0 | BB41: 0 | BC41: 0 | BD41: 0 | BE41: 0 | BF41: 0 | BG41: 0 | BH41: 0 | BI41: 0 | BJ41: 0
B42: 1593 | C42: 1000 | D42: 1500 | E42: 1590 | F42: Servicios personales | G42: Otras prestaciones sociales y económicas. | H42: Otras prestaciones sociales y económicas. | I42: Becas a hijos de trabajadores. | J42: 1 | K42: 0 | L42: 0 | M42: 0 | N42: 0 | O42: 0 | P42: 0 | Q42: 0 | R42: 0 | S42: 0 | T42: 0 | U42: 0 | V42: 0 | W42: 0 | X42: 0 | Y42: 0 | Z42: 0 | AA42: 1 | AB42: 1 | AC42: 0 | AD42: 0 | AE42: 0 | AF42: 0 | AG42: 0 | AH42: 0 | AI42: 0 | AJ42: 0 | AK42: 0 | AL42: 0 | AM42: 0 | AN42: 0 | AO42: 0 | AP42: 0 | AQ42: 0 | AR42: 0 | AS42: 36799321 | AT42: 36799321 | AU42: 0 | AV42: 0 | AW42: 0 | AX42: 0 | AY42: 0 | AZ42: 0 | BA42: 0 | BB42: 0 | BC42: 0 | BD42: 0 | BE42: 0 | BF42: 0 | BG42: 0 | BH42: 0 | BI42: 0 | BJ42: 0
B43: 1594 | C43: 1000 | D43: 1500 | E43: 1590 | F43: Servicios personales | G43: Otras prestaciones sociales y económicas. | H43: Otras prestaciones sociales y económicas. | I43: Becas de licenciatura. | J43: 0 | K43: 0 | L43: 0 | M43: 0 | N43: 0 | O43: 0 | P43: 0 | Q43: 1 | R43: 1 | S43: 0 | T43: 0 | U43: 0 | V43: 0 | W43: 0 | X43: 0 | Y43: 0 | Z43: 0 | AA43: 2 | AB43: 0 | AC43: 0 | AD43: 0 | AE43: 0 | AF43: 0 | AG43: 0 | AH43: 0 | AI43: 0.5 | AJ43: 0.5 | AK43: 0 | AL43: 0 | AM43: 0 | AN43: 0 | AO43: 0 | AP43: 0 | AQ43: 0 | AR43: 0 | AS43: 2990321 | AT43: 0 | AU43: 0 | AV43: 0 | AW43: 0 | AX43: 0 | AY43: 0 | AZ43: 0 | BA43: 1495160.5 | BB43: 1495160.5 | BC43: 0 | BD43: 0 | BE43: 0 | BF43: 0 | BG43: 0 | BH43: 0 | BI43: 0 | BJ43: 0
B44: 1599 | C44: 1000 | D44: 1500 | E44: 1590 | F44: Servicios personales | G44: Otras prestaciones sociales y económicas. | H44: Otras prestaciones sociales y económicas. | I44: Otras prestaciones sociales y económicas. | J44: 1 | K44: 0 | L44: 0 | M44: 0 | N44: 0 | O44: 0 | P44: 0 | Q44: 0 | R44: 0 | S44: 0 | T44: 0 | U44: 0 | V44: 0 | W44: 0 | X44: 0 | Y44: 0 | Z44: 0 | AA44: 1 | AB44: 1 | AC44: 0 | AD44: 0 | AE44: 0 | AF44: 0 | AG44: 0 | AH44: 0 | AI44: 0 | AJ44: 0 | AK44: 0 | AL44: 0 | AM44: 0 | AN44: 0 | AO44: 0 | AP44: 0 | AQ44: 0 | AR44: 0 | AS44: 62046114 | AT44: 62046114 | AU44: 0 | AV44: 0 | AW44: 0 | AX44: 0 | AY44: 0 | AZ44: 0 | BA44: 0 | BB44: 0 | BC44: 0 | BD44: 0 | BE44: 0 | BF44: 0 | BG44: 0 | BH44: 0 | BI44: 0 | BJ44: 0
B45: 1611 | C45: 1000 | D45: 1600 | E45: 1610 | F45: Servicios personales | G45: Previsiones. | H45: Previsiones de carácter laboral, económica y de seguridad social. | I45: Previsiones de carácter laboral, económica y de seguridad social. | J45: 1 | K45: 0 | L45: 0 | M45: 0 | N45: 0 | O45: 0 | P45: 0 | Q45: 0 | R45: 0 | S45: 0 | T45: 0 | U45: 0 | V45: 0 | W45: 0 | X45: 0 | Y45: 0 | Z45: 0 | AA45: 1 | AB45: 1 | AC45: 0 | AD45: 0 | AE45: 0 | AF45: 0 | AG45: 0 | AH45: 0 | AI45: 0 | AJ45: 0 | AK45: 0 | AL45: 0 | AM45: 0 | AN45: 0 | AO45: 0 | AP45: 0 | AQ45: 0 | AR45: 0 | AS45: 310000000 | AT45: 310000000 | AU45: 0 | AV45: 0 | AW45: 0 | AX45: 0 | AY45: 0 | AZ45: 0 | BA45: 0 | BB45: 0 | BC45: 0 | BD45: 0 | BE45: 0 | BF45: 0 | BG45: 0 | BH45: 0 | BI45: 0 | BJ45: 0
B46: 1711 | C46: 1000 | D46: 1700 | E46: 1710 | F46: Servicios personales | G46: Pago de estímulos a servidores públicos. | H46: Estímulos. | I46: Estímulos por productividad, eficiencia y calidad en el desempeño. | J46: 1 | K46: 0 | L46: 0 | M46: 0 | N46: 0 | O46: 0 | P46: 0 | Q46: 0 | R46: 0 | S46: 0 | T46: 0 | U46: 0 | V46: 0 | W46: 0 | X46: 0 | Y46: 0 | Z46: 0 | AA46: 1 | AB46: 1 | AC46: 0 | AD46: 0 | AE46: 0 | AF46: 0 | AG46: 0 | AH46: 0 | AI46: 0 | AJ46: 0 | AK46: 0 | AL46: 0 | AM46: 0 | AN46: 0 | AO46: 0 | AP46: 0 | AQ46: 0 | AR46: 0 | AS46: 11686422 | AT46: 11686422 | AU46: 0 | AV46: 0 | AW46: 0 | AX46: 0 | AY46: 0 | AZ46: 0 | BA46: 0 | BB46: 0 | BC46: 0 | BD46: 0 | BE46: 0 | BF46: 0 | BG46: 0 | BH46: 0 | BI46: 0 | BJ46: 0
B47: 1712 | C47: 1000 | D47: 1700 | E47: 1710 | F47: Servicios personales | G47: Pago de estímulos a servidores públicos. | H47: Estímulos. | I47: Premio de puntualidad. | J47: 1 | K47: 0 | L47: 0 | M47: 0 | N47: 0 | O47: 0 | P47: 0 | Q47: 0 | R47: 0 | S47: 0 | T47: 0 | U47: 0 | V47: 0 | W47: 0 | X47: 0 | Y47: 0 | Z47: 0 | AA47: 1 | AB47: 1 | AC47: 0 | AD47: 0 | AE47: 0 | AF47: 0 | AG47: 0 | AH47: 0 | AI47: 0 | AJ47: 0 | AK47: 0 | AL47: 0 | AM47: 0 | AN47: 0 | AO47: 0 | AP47: 0 | AQ47: 0 | AR47: 0 | AS47: 41088465 | AT47: 41088465 | AU47: 0 | AV47: 0 | AW47: 0 | AX47: 0 | AY47: 0 | AZ47: 0 | BA47: 0 | BB47: 0 | BC47: 0 | BD47: 0 | BE47: 0 | BF47: 0 | BG47: 0 | BH47: 0 | BI47: 0 | BJ47: 0
B48: 1713 | C48: 1000 | D48: 1700 | E48: 1710 | F48: Servicios personales | G48: Pago de estímulos a servidores públicos. | H48: Estímulos. | I48: Premio de antigüedad. | J48: 1 | K48: 0 | L48: 0 | M48: 0 | N48: 0 | O48: 0 | P48: 0 | Q48: 0 | R48: 0 | S48: 0 | T48: 0 | U48: 0 | V48: 0 | W48: 0 | X48: 0 | Y48: 0 | Z48: 0 | AA48: 1 | AB48: 1 | AC48: 0 | AD48: 0 | AE48: 0 | AF48: 0 | AG48: 0 | AH48: 0 | AI48: 0 | AJ48: 0 | AK48: 0 | AL48: 0 | AM48: 0 | AN48: 0 | AO48: 0 | AP48: 0 | AQ48: 0 | AR48: 0 | AS48: 101912603 | AT48: 101912603 | AU48: 0 | AV48: 0 | AW48: 0 | AX48: 0 | AY48: 0 | AZ48: 0 | BA48: 0 | BB48: 0 | BC48: 0 | BD48: 0 | BE48: 0 | BF48: 0 | BG48: 0 | BH48: 0 | BI48: 0 | BJ48: 0
B49: 1714 | C49: 1000 | D49: 1700 | E49: 1710 | F49: Servicios personales | G49: Pago de estímulos a servidores públicos. | H49: Estímulos. | I49: Premio de asistencia. | J49: 1 | K49: 0 | L49: 0 | M49: 0 | N49: 0 | O49: 0 | P49: 0 | Q49: 0 | R49: 0 | S49: 0 | T49: 0 | U49: 0 | V49: 0 | W49: 0 | X49: 0 | Y49: 0 | Z49: 0 | AA49: 1 | AB49: 1 | AC49: 0 | AD49: 0 | AE49: 0 | AF49: 0 | AG49: 0 | AH49: 0 | AI49: 0 | AJ49: 0 | AK49: 0 | AL49: 0 | AM49: 0 | AN49: 0 | AO49: 0 | AP49: 0 | AQ49: 0 | AR49: 0 | AS49: 303385776 | AT49: 303385776 | AU49: 0 | AV49: 0 | AW49: 0 | AX49: 0 | AY49: 0 | AZ49: 0 | BA49: 0 | BB49: 0 | BC49: 0 | BD49: 0 | BE49: 0 | BF49: 0 | BG49: 0 | BH49: 0 | BI49: 0 | BJ49: 0
B50: 1715 | C50: 1000 | D50: 1700 | E50: 1710 | F50: Servicios personales | G50: Pago de estímulos a servidores públicos. | H50: Estímulos. | I50: Estimulos por tesis y titulación | J50: 1 | K50: 0 | L50: 0 | M50: 0 | N50: 0 | O50: 0 | P50: 0 | Q50: 0 | R50: 0 | S50: 0 | T50: 0 | U50: 0 | V50: 0 | W50: 0 | X50: 0 | Y50: 0 | Z50: 0 | AA50: 1 | AB50: 1 | AC50: 0 | AD50: 0 | AE50: 0 | AF50: 0 | AG50: 0 | AH50: 0 | AI50: 0 | AJ50: 0 | AK50: 0 | AL50: 0 | AM50: 0 | AN50: 0 | AO50: 0 | AP50: 0 | AQ50: 0 | AR50: 0 | AS50: 0 | AT50: 0 | AU50: 0 | AV50: 0 | AW50: 0 | AX50: 0 | AY50: 0 | AZ50: 0 | BA50: 0 | BB50: 0 | BC50: 0 | BD50: 0 | BE50: 0 | BF50: 0 | BG50: 0 | BH50: 0 | BI50: 0 | BJ50: 0
B51: 1719 | C51: 1000 | D51: 1700 | E51: 1710 | F51: Servicios personales | G51: Pago de estímulos a servidores públicos. | H51: Estímulos. | I51: Otros estímulos. | J51: 1 | K51: 0 | L51: 0 | M51: 0 | N51: 0 | O51: 0 | P51: 0 | Q51: 0 | R51: 0 | S51: 0 | T51: 0 | U51: 0 | V51: 0 | W51: 0 | X51: 0 | Y51: 0 | Z51: 0 | AA51: 1 | AB51: 1 | AC51: 0 | AD51: 0 | AE51: 0 | AF51: 0 | AG51: 0 | AH51: 0 | AI51: 0 | AJ51: 0 | AK51: 0 | AL51: 0 | AM51: 0 | AN51: 0 | AO51: 0 | AP51: 0 | AQ51: 0 | AR51: 0 | AS51: 2337539 | AT51: 2337539 | AU51: 0 | AV51: 0 | AW51: 0 | AX51: 0 | AY51: 0 | AZ51: 0 | BA51: 0 | BB51: 0 | BC51: 0 | BD51: 0 | BE51: 0 | BF51: 0 | BG51: 0 | BH51: 0 | BI51: 0 | BJ51: 0
B52: 2111 | C52: 2000 | D52: 2100 | E52: 2110 | F52: Materiales y suministros. | G52: Materiales de administración, emisión de documentos y artículos oficiales. | H52: Materiales, útiles y equipos menores de oficina. | I52: Materiales, útiles y equipos menores de oficina. | J52: 1 | K52: 0 | L52: 0 | M52: 0 | N52: 0 | O52: 0 | P52: 0 | Q52: 0 | R52: 0 | S52: 0 | T52: 0 | U52: 0 | V52: 0 | W52: 0 | X52: 0 | Y52: 0 | Z52: 0 | AA52: 1 | AB52: 1 | AC52: 0 | AD52: 0 | AE52: 0 | AF52: 0 | AG52: 0 | AH52: 0 | AI52: 0 | AJ52: 0 | AK52: 0 | AL52: 0 | AM52: 0 | AN52: 0 | AO52: 0 | AP52: 0 | AQ52: 0 | AR52: 0 | AS52: 82949337 | AT52: 82949337 | AU52: 0 | AV52: 0 | AW52: 0 | AX52: 0 | AY52: 0 | AZ52: 0 | BA52: 0 | BB52: 0 | BC52: 0 | BD52: 0 | BE52: 0 | BF52: 0 | BG52: 0 | BH52: 0 | BI52: 0 | BJ52: 0
B53: 2121 | C53: 2000 | D53: 2100 | E53: 2120 | F53: Materiales y suministros. | G53: Materiales de administración, emisión de documentos y artículos oficiales. | H53: Materiales y útiles de impresión y reproducción. | I53: Materiales y útiles de impresión y reproducción. | J53: 1 | K53: 0 | L53: 0 | M53: 0 | N53: 0 | O53: 0 | P53: 0 | Q53: 0 | R53: 0 | S53: 0 | T53: 0 | U53: 0 | V53: 0 | W53: 0 | X53: 0 | Y53: 0 | Z53: 0 | AA53: 1 | AB53: 1 | AC53: 0 | AD53: 0 | AE53: 0 | AF53: 0 | AG53: 0 | AH53: 0 | AI53: 0 | AJ53: 0 | AK53: 0 | AL53: 0 | AM53: 0 | AN53: 0 | AO53: 0 | AP53: 0 | AQ53: 0 | AR53: 0 | AS53: 4254730 | AT53: 4254730 | AU53: 0 | AV53: 0 | AW53: 0 | AX53: 0 | AY53: 0 | AZ53: 0 | BA53: 0 | BB53: 0 | BC53: 0 | BD53: 0 | BE53: 0 | BF53: 0 | BG53: 0 | BH53: 0 | BI53: 0 | BJ53: 0
B54: 2131 | C54: 2000 | D54: 2100 | E54: 2130 | F54: Materiales y suministros. | G54: Materiales de administración, emisión de documentos y artículos oficiales. | H54: Material estadístico y geográfico. | I54: Material estadístico y geográfico. | J54: 1 | K54: 0 | L54: 0 | M54: 0 | N54: 0 | O54: 0 | P54: 0 | Q54: 0 | R54: 0 | S54: 0 | T54: 0 | U54: 0 | V54: 0 | W54: 0 | X54: 0 | Y54: 0 | Z54: 0 | AA54: 1 | AB54: 1 | AC54: 0 | AD54: 0 | AE54: 0 | AF54: 0 | AG54: 0 | AH54: 0 | AI54: 0 | AJ54: 0 | AK54: 0 | AL54: 0 | AM54: 0 | AN54: 0 | AO54: 0 | AP54: 0 | AQ54: 0 | AR54: 0 | AS54: 10000 | AT54: 10000 | AU54: 0 | AV54: 0 | AW54: 0 | AX54: 0 | AY54: 0 | AZ54: 0 | BA54: 0 | BB54: 0 | BC54: 0 | BD54: 0 | BE54: 0 | BF54: 0 | BG54: 0 | BH54: 0 | BI54: 0 | BJ54: 0
B55: 2141 | C55: 2000 | D55: 2100 | E55: 2140 | F55: Materiales y suministros. | G55: Materiales de administración, emisión de documentos y artículos oficiales. | H55: Materiales, útiles y equipos menores de tecnologías de la información y comunicaciones. | I55: Materiales, útiles y equipos menores de tecnologías de la información y comunicaciones. | J55: 1 | K55: 0 | L55: 0 | M55: 0 | N55: 0 | O55: 0 | P55: 0 | Q55: 0 | R55: 0 | S55: 0 | T55: 0 | U55: 0 | V55: 0 | W55: 0 | X55: 0 | Y55: 0 | Z55: 0 | AA55: 1 | AB55: 1 | AC55: 0 | AD55: 0 | AE55: 0 | AF55: 0 | AG55: 0 | AH55: 0 | AI55: 0 | AJ55: 0 | AK55: 0 | AL55: 0 | AM55: 0 | AN55: 0 | AO55: 0 | AP55: 0 | AQ55: 0 | AR55: 0 | AS55: 40881859 | AT55: 40881859 | AU55: 0 | AV55: 0 | AW55: 0 | AX55: 0 | AY55: 0 | AZ55: 0 | BA55: 0 | BB55: 0 | BC55: 0 | BD55: 0 | BE55: 0 | BF55: 0 | BG55: 0 | BH55: 0 | BI55: 0 | BJ55: 0
B56: 2151 | C56: 2000 | D56: 2100 | E56: 2150 | F56: Materiales y suministros. | G56: Materiales de administración, emisión de documentos y artículos oficiales. | H56: Material impreso e información digital. | I56: Material impreso e información digital. | J56: 1 | K56: 0 | L56: 0 | M56: 0 | N56: 0 | O56: 0 | P56: 0 | Q56: 0 | R56: 0 | S56: 0 | T56: 0 | U56: 0 | V56: 0 | W56: 0 | X56: 0 | Y56: 0 | Z56: 0 | AA56: 1 | AB56: 1 | AC56: 0 | AD56: 0 | AE56: 0 | AF56: 0 | AG56: 0 | AH56: 0 | AI56: 0 | AJ56: 0 | AK56: 0 | AL56: 0 | AM56: 0 | AN56: 0 | AO56: 0 | AP56: 0 | AQ56: 0 | AR56: 0 | AS56: 9694261 | AT56: 9694261 | AU56: 0 | AV56: 0 | AW56: 0 | AX56: 0 | AY56: 0 | AZ56: 0 | BA56: 0 | BB56: 0 | BC56: 0 | BD56: 0 | BE56: 0 | BF56: 0 | BG56: 0 | BH56: 0 | BI56: 0 | BJ56: 0
B57: 2161 | C57: 2000 | D57: 2100 | E57: 2160 | F57: Materiales y suministros. | G57: Materiales de administración, emisión de documentos y artículos oficiales. | H57: Material de limpieza. | I57: Material de limpieza. | J57: 1 | K57: 0 | L57: 0 | M57: 0 | N57: 0 | O57: 0 | P57: 0 | Q57: 0 | R57: 0 | S57: 0 | T57: 0 | U57: 0 | V57: 0 | W57: 0 | X57: 0 | Y57: 0 | Z57: 0 | AA57: 1 | AB57: =J57/$AA57 -> 1 | AC57: 0 | AD57: 0 | AE57: 0 | AF57: 0 | AG57: 0 | AH57: 0 | AI57: 0 | AJ57: 0 | AK57: 0 | AL57: 0 | AM57: 0 | AN57: 0 | AO57: 0 | AP57: 0 | AQ57: 0 | AR57: 0 | AS57: 45744139 | AT57: 45744139 | AU57: 0 | AV57: 0 | AW57: 0 | AX57: 0 | AY57: 0 | AZ57: 0 | BA57: 0 | BB57: 0 | BC57: 0 | BD57: 0 | BE57: 0 | BF57: 0 | BG57: 0 | BH57: 0 | BI57: 0 | BJ57: 0
B58: 2171 | C58: 2000 | D58: 2100 | E58: 2170 | F58: Materiales y suministros. | G58: Materiales de administración, emisión de documentos y artículos oficiales. | H58: Materiales y útiles de enseñanza. | I58: Materiales y útiles de enseñanza. | J58: 1 | K58: 0 | L58: 0 | M58: 0 | N58: 0 | O58: 0 | P58: 0 | Q58: 0 | R58: 0 | S58: 0 | T58: 0 | U58: 0 | V58: 0 | W58: 0 | X58: 0 | Y58: 0 | Z58: 0 | AA58: 1 | AB58: 1 | AC58: 0 | AD58: 0 | AE58: 0 | AF58: 0 | AG58: 0 | AH58: 0 | AI58: 0 | AJ58: 0 | AK58: 0 | AL58: 0 | AM58: 0 | AN58: 0 | AO58: 0 | AP58: 0 | AQ58: 0 | AR58: 0 | AS58: 31062743 | AT58: 31062743 | AU58: 0 | AV58: 0 | AW58: 0 | AX58: 0 | AY58: 0 | AZ58: 0 | BA58: 0 | BB58: 0 | BC58: 0 | BD58: 0 | BE58: 0 | BF58: 0 | BG58: 0 | BH58: 0 | BI58: 0 | BJ58: 0
B59: 2181 | C59: 2000 | D59: 2100 | E59: 2180 | F59: Materiales y suministros. | G59: Materiales de administración, emisión de documentos y artículos oficiales. | H59: Materiales para el registro e identificación de bienes y personas. | I59: Materiales para el registro e identificación de bienes y personas. | J59: 1 | K59: 0 | L59: 0 | M59: 0 | N59: 0 | O59: 0 | P59: 0 | Q59: 0 | R59: 0 | S59: 0 | T59: 0 | U59: 0 | V59: 0 | W59: 0 | X59: 0 | Y59: 0 | Z59: 0 | AA59: 1 | AB59: 1 | AC59: 0 | AD59: 0 | AE59: 0 | AF59: 0 | AG59: 0 | AH59: 0 | AI59: 0 | AJ59: 0 | AK59: 0 | AL59: 0 | AM59: 0 | AN59: 0 | AO59: 0 | AP59: 0 | AQ59: 0 | AR59: 0 | AS59: 237454 | AT59: 237454 | AU59: 0 | AV59: 0 | AW59: 0 | AX59: 0 | AY59: 0 | AZ59: 0 | BA59: 0 | BB59: 0 | BC59: 0 | BD59: 0 | BE59: 0 | BF59: 0 | BG59: 0 | BH59: 0 | BI59: 0 | BJ59: 0
